Body Name,Body,Service Label,Service Code,Service Division Label,Service Division Code,Expenditure Category,Expenditure Code,CIPFA Detailed Expenditure Type,CIPFA Detailed Expenditure Code,Date,Transaction Number,CC 43 TBM Section,CCN 43 TBM Section,Net Amount,Capital and Revenue,Creditor Name
Brighton & Hove City Council,http://statistics.data.gov.uk/id/local-authority/00ML,Adult Social Care,BVASOC,ASC Memory Cognition Support,MEM,Third Party Payments,F,Other Establishments,FH,11/04/2014,PAY00655641,COGN,Memory Cognition Support,6198,Revenue, Arlington House
Brighton & Hove City Council,http://statistics.data.gov.uk/id/local-authority/00ML,Adult Social Care,BVASOC,ASC Memory Cognition Support,MEM,Customer n Client Receipts,M,Fees n Charges,MB,11/04/2014,PAY00655641,COGN,Memory Cognition Support,-2441.5,Revenue, Arlington House
Brighton & Hove City Council,http://statistics.data.gov.uk/id/local-authority/00ML,Adult Social Care,BVASOC,ASC Physical Support,PHY,Third Party Payments,F,Other Establishments,FH,11/04/2014,PAY00655641,PHYS,Physical Support,28468,Revenue, Arlington House
Brighton & Hove City Council,http://statistics.data.gov.uk/id/local-authority/00ML,Adult Social Care,BVASOC,ASC Physical Support,PHY,Customer n Client Receipts,M,Fees n Charges,MB,11/04/2014,PAY00655641,PHYS,Physical Support,-5042.95,Revenue, Arlington House
Brighton & Hove City Council,http://statistics.data.gov.uk/id/local-authority/00ML,Adult Social Care,BVASOC,S Svcs - Older People Svcs,PPL,Third Party Payments,F,Other Establishments,FH,11/04/2014,PAY00655641,CCOP,Community Care Older People,-2524.29,Revenue, Arlington House
Brighton & Hove City Council,http://statistics.data.gov.uk/id/local-authority/00ML,Adult Social Care,BVASOC,S Svcs - Older People Svcs,PPL,Customer n Client Receipts,M,Fees n Charges,MB,11/04/2014,PAY00655641,CCOP,Community Care Older People,1060.25,Revenue, Arlington House
Brighton & Hove City Council,http://statistics.data.gov.uk/id/local-authority/00ML,Adult Social Care,BVASOC,ASC Physical Support,PHY,Customer n Client Receipts,M,Fees n Charges,MB,16/04/2014,PAY00656539,PHYS,Physical Support,371.85,Revenue, Arlington House
Brighton & Hove City Council,http://statistics.data.gov.uk/id/local-authority/00ML,Adult Social Care,BVASOC,ASC Memory Cognition Support,MEM,Third Party Payments,F,Other Establishments,FH,30/04/2014,PAY00659519,COGN,Memory Cognition Support,2429.57,Revenue, Arlington House
Brighton & Hove City Council,http://statistics.data.gov.uk/id/local-authority/00ML,Adult Social Care,BVASOC,ASC Memory Cognition Support,MEM,Customer n Client Receipts,M,Fees n Charges,MB,30/04/2014,PAY00659519,COGN,Memory Cognition Support,-971.19,Revenue, Arlington House
Brighton & Hove City Council,http://statistics.data.gov.uk/id/local-authority/00ML,Adult Social Care,BVASOC,ASC Physical Support,PHY,Third Party Payments,F,Other Establishments,FH,30/04/2014,PAY00659519,PHYS,Physical Support,1998,Revenue, Arlington House
Brighton & Hove City Council,http://statistics.data.gov.uk/id/local-authority/00ML,Adult Social Care,BVASOC,ASC Physical Support,PHY,Customer n Client Receipts,M,Fees n Charges,MB,30/04/2014,PAY00659519,PHYS,Physical Support,-2876.41,Revenue, Arlington House
Brighton & Hove City Council,http://statistics.data.gov.uk/id/local-authority/00ML,Non-BHC Organisations,BVANON,Trusts,TRT,Supplies and Services,E,Miscellaneous Expenses,EM,30/04/2014,PAY00659519,NBHC,Non Council,400,Revenue, Arlington House
Brighton & Hove City Council,http://statistics.data.gov.uk/id/local-authority/00ML,Adult Social Care,BVASOC,S Svcs - Older People Svcs,PPL,Third Party Payments,F,Other Establishments,FH,02/04/2014,PAY00652015,CCOP,Community Care Older People,-248.01,Revenue, Arundel Park Lodge
Brighton & Hove City Council,http://statistics.data.gov.uk/id/local-authority/00ML,Adult Social Care,BVASOC,S Svcs - Older People Svcs,PPL,Customer n Client Receipts,M,Fees n Charges,MB,02/04/2014,PAY00652015,CCOP,Community Care Older People,230.75,Revenue, Arundel Park Lodge
Brighton & Hove City Council,http://statistics.data.gov.uk/id/local-authority/00ML,Central Support and Overheads,BVACEN,Support Services (SSC),PPT,Third Party Payments,F,Other Establishments,FH,02/04/2014,PAY00652015,FINS,Financial Services,3267.32,Revenue, Arundel Park Lodge
Brighton & Hove City Council,http://statistics.data.gov.uk/id/local-authority/00ML,Adult Social Care,BVASOC,ASC Physical Support,PHY,Third Party Payments,F,Other Establishments,FH,11/04/2014,PAY00655642,PHYS,Physical Support,22207.76,Revenue, Arundel Park Lodge
Brighton & Hove City Council,http://statistics.data.gov.uk/id/local-authority/00ML,Adult Social Care,BVASOC,ASC Physical Support,PHY,Customer n Client Receipts,M,Fees n Charges,MB,11/04/2014,PAY00655642,PHYS,Physical Support,-7935.52,Revenue, Arundel Park Lodge
Brighton & Hove City Council,http://statistics.data.gov.uk/id/local-authority/00ML,Central Support and Overheads,BVACEN,Support Services (SSC),PPT,Third Party Payments,F,Other Establishments,FH,16/04/2014,PAY00656540,FINS,Financial Services,1385.47,Revenue, Arundel Park Lodge
Brighton & Hove City Council,http://statistics.data.gov.uk/id/local-authority/00ML,Central Support and Overheads,BVACEN,Support Services (SSC),PPT,Third Party Payments,F,Other Establishments,FH,23/04/2014,PAY00658149,FINS,Financial Services,3769.28,Revenue, Arundel Park Lodge
Brighton & Hove City Council,http://statistics.data.gov.uk/id/local-authority/00ML,Cultural and Related Serv,BVACUL,Culture and Heritage,CHG,Premises Related,C,Energy Costs,CB,02/04/2014,PAY00652670,RPMU,Royal Pavilion and Museums,250,Revenue, Brighton Energy Services
Brighton & Hove City Council,http://statistics.data.gov.uk/id/local-authority/00ML,Children`s & Education Serv,BVAEDU,Child Srvcs - Fostering,FLF,Third Party Payments,F,Other Establishments,FH,02/04/2014,PAY00651896,CHIC,Children In Care,520,Revenue, Lone Coyote Records
Brighton & Hove City Council,http://statistics.data.gov.uk/id/local-authority/00ML,Children`s & Education Serv,BVAEDU,Ed EY Central,EAE,Premises Related,C,Repair Maint n Alterations,CA,04/04/2014,PAY00653643,EYRS,Early Years,300,Revenue, Room Outside
Brighton & Hove City Council,http://statistics.data.gov.uk/id/local-authority/00ML,Children`s & Education Serv,BVAEDU,Ed EY Central,EAE,Supplies and Services,E,Equip't Furniture n Materials,EA,04/04/2014,PAY00653643,EYRS,Early Years,95,Revenue, Room Outside
Brighton & Hove City Council,http://statistics.data.gov.uk/id/local-authority/00ML,Children`s & Education Serv,BVAEDU,Ed EY Central,EAE,Supplies and Services,E,Equip't Furniture n Materials,EA,09/04/2014,PAY00654716,EYRS,Early Years,543,Revenue, Room Outside
Brighton & Hove City Council,http://statistics.data.gov.uk/id/local-authority/00ML,Cultural and Related Serv,BVACUL,Culture and Heritage,CHG,Supplies and Services,E,Miscellaneous Expenses,EM,04/04/2014,PAY00653466,ODEV,Outdoor Events,345,Revenue, Westbourne Motors
Brighton & Hove City Council,http://statistics.data.gov.uk/id/local-authority/00ML,Central Support and Overheads,BVACEN,Support Services (SSC),PPT,Transport Related,D,Direct Transport Costs,DA,09/04/2014,PAY00654493,PROP,Property and Design,86.62,Revenue, Westbourne Motors
Brighton & Hove City Council,http://statistics.data.gov.uk/id/local-authority/00ML,Cultural and Related Serv,BVACUL,Management Services (DEC),MGT,Transport Related,D,Direct Transport Costs,DA,09/04/2014,PAY00654493,CIPK,City Parks,167.2,Revenue, Westbourne Motors
Brighton & Hove City Council,http://statistics.data.gov.uk/id/local-authority/00ML,Environment & Regulatory Serv,BVAERS,Management Services (DEC),MGT,Transport Related,D,Direct Transport Costs,DA,09/04/2014,PAY00654493,CICL,City Clean,71.94,Revenue, Westbourne Motors
Brighton & Hove City Council,http://statistics.data.gov.uk/id/local-authority/00ML,Highways and Transportation,BVAHRT,Parking Services,PRK,Transport Related,D,Direct Transport Costs,DA,09/04/2014,PAY00654493,PARK,Parking,46.2,Revenue, Westbourne Motors
Brighton & Hove City Council,http://statistics.data.gov.uk/id/local-authority/00ML,Housing Revenue Account,BVAHOU,Hsing Management - HRA,HGM,Transport Related,D,Direct Transport Costs,DA,09/04/2014,PAY00654493,HTEN,Tenancy Services,69.3,Revenue, Westbourne Motors
Brighton & Hove City Council,http://statistics.data.gov.uk/id/local-authority/00ML,Housing General Fund,BVAHOG,Homelessness,HML,Supplies and Services,E,Miscellaneous Expenses,EM,23/04/2014,PAY00658146,TRAV,Travellers,897.5,Revenue, Westbourne Motors
Brighton & Hove City Council,http://statistics.data.gov.uk/id/local-authority/00ML,Cultural and Related Serv,BVACUL,Culture and Heritage,CHG,Supplies and Services,E,Services,EF,23/04/2014,PAY00658450,RPMU,Royal Pavilion and Museums,2400,Revenue,2 Seas Links Ltd
Brighton & Hove City Council,http://statistics.data.gov.uk/id/local-authority/00ML,Adult Social Care,BVASOC,S Svcs - Older People Svcs,PPL,Supplies and Services,E,Catering,EB,02/04/2014,PAY00651955,RCOP,Resource Centres Older People,1894.45,Revenue,3663 BFS Group Ltd
Brighton & Hove City Council,http://statistics.data.gov.uk/id/local-authority/00ML,Adult Social Care,BVASOC,S Svcs - Older People Svcs,PPL,Supplies and Services,E,Equip't Furniture n Materials,EA,02/04/2014,PAY00651955,RCOP,Resource Centres Older People,69.27,Revenue,3663 BFS Group Ltd
Brighton & Hove City Council,http://statistics.data.gov.uk/id/local-authority/00ML,Adult Social Care,BVASOC,S Svcs - Older People Svcs,PPL,Supplies and Services,E,Catering,EB,04/04/2014,PAY00653264,RCOP,Resource Centres Older People,804.67,Revenue,3663 BFS Group Ltd
Brighton & Hove City Council,http://statistics.data.gov.uk/id/local-authority/00ML,Adult Social Care,BVASOC,S Svcs - Older People Svcs,PPL,Supplies and Services,E,Catering,EB,09/04/2014,PAY00654409,RCOP,Resource Centres Older People,883.7,Revenue,3663 BFS Group Ltd
Brighton & Hove City Council,http://statistics.data.gov.uk/id/local-authority/00ML,Housing General Fund,BVAHOG,Homelessness,HML,Premises Related,C,Energy Costs,CB,11/04/2014,PAY00655449,HOSS,Housing Supports Services,920.31,Revenue,3663 BFS Group Ltd
Brighton & Hove City Council,http://statistics.data.gov.uk/id/local-authority/00ML,Housing General Fund,BVAHOG,Homelessness,HML,Supplies and Services,E,Catering,EB,11/04/2014,PAY00655449,HOSS,Housing Supports Services,506.24,Revenue,3663 BFS Group Ltd
Brighton & Hove City Council,http://statistics.data.gov.uk/id/local-authority/00ML,Adult Social Care,BVASOC,ASC Physical Support,PHY,Supplies and Services,E,Catering,EB,16/04/2014,PAY00656472,RCOP,Resource Centres Older People,508.78,Revenue,3663 BFS Group Ltd
Brighton & Hove City Council,http://statistics.data.gov.uk/id/local-authority/00ML,Adult Social Care,BVASOC,S Svcs - Older People Svcs,PPL,Supplies and Services,E,Catering,EB,16/04/2014,PAY00656472,DAYS,Day Services,456.9,Revenue,3663 BFS Group Ltd
Brighton & Hove City Council,http://statistics.data.gov.uk/id/local-authority/00ML,Adult Social Care,BVASOC,ASC Memory Cognition Support,MEM,Supplies and Services,E,Catering,EB,17/04/2014,PAY00657237,RCOP,Resource Centres Older People,243.02,Revenue,3663 BFS Group Ltd
Brighton & Hove City Council,http://statistics.data.gov.uk/id/local-authority/00ML,Adult Social Care,BVASOC,ASC Physical Support,PHY,Supplies and Services,E,Catering,EB,17/04/2014,PAY00657237,DAYS,Day Services,129.7,Revenue,3663 BFS Group Ltd
Brighton & Hove City Council,http://statistics.data.gov.uk/id/local-authority/00ML,Housing General Fund,BVAHOG,Homelessness,HML,Premises Related,C,Repair Maint n Alterations,CA,17/04/2014,PAY00657237,HOSS,Housing Supports Services,300.1,Revenue,3663 BFS Group Ltd
Brighton & Hove City Council,http://statistics.data.gov.uk/id/local-authority/00ML,Adult Social Care,BVASOC,ASC Memory Cognition Support,MEM,Supplies and Services,E,Catering,EB,23/04/2014,PAY00658101,RCOP,Resource Centres Older People,-10.84,Revenue,3663 BFS Group Ltd
Brighton & Hove City Council,http://statistics.data.gov.uk/id/local-authority/00ML,Adult Social Care,BVASOC,ASC Physical Support,PHY,Supplies and Services,E,Catering,EB,23/04/2014,PAY00658101,RCOP,Resource Centres Older People,994.62,Revenue,3663 BFS Group Ltd
Brighton & Hove City Council,http://statistics.data.gov.uk/id/local-authority/00ML,Adult Social Care,BVASOC,ASC Physical Support,PHY,Supplies and Services,E,Catering,EB,30/04/2014,PAY00659454,DAYS,Day Services,182.61,Revenue,3663 BFS Group Ltd
Brighton & Hove City Council,http://statistics.data.gov.uk/id/local-authority/00ML,Adult Social Care,BVASOC,ASC Physical Support,PHY,Supplies and Services,E,Catering,EB,30/04/2014,PAY00659454,RCOP,Resource Centres Older People,-1.4,Revenue,3663 BFS Group Ltd
Brighton & Hove City Council,http://statistics.data.gov.uk/id/local-authority/00ML,Housing General Fund,BVAHOG,Homelessness,HML,Supplies and Services,E,Catering,EB,30/04/2014,PAY00659454,HOSS,Housing Supports Services,408.77,Revenue,3663 BFS Group Ltd
Brighton & Hove City Council,http://statistics.data.gov.uk/id/local-authority/00ML,Cultural and Related Serv,BVACUL,Culture and Heritage,CHG,Supplies and Services,E,Communications n Computing,EH,09/04/2014,PAY00654590,VENU,Venues,-11,Revenue,3A Entertainment Ltd
Brighton & Hove City Council,http://statistics.data.gov.uk/id/local-authority/00ML,Cultural and Related Serv,BVACUL,Culture and Heritage,CHG,Supplies and Services,E,Equip't Furniture n Materials,EA,09/04/2014,PAY00654590,VENU,Venues,-408,Revenue,3A Entertainment Ltd
Brighton & Hove City Council,http://statistics.data.gov.uk/id/local-authority/00ML,Cultural and Related Serv,BVACUL,Culture and Heritage,CHG,Supplies and Services,E,Miscellaneous Expenses,EM,09/04/2014,PAY00654590,VENU,Venues,-18032.3,Revenue,3A Entertainment Ltd
Brighton & Hove City Council,http://statistics.data.gov.uk/id/local-authority/00ML,Cultural and Related Serv,BVACUL,Culture and Heritage,CHG,Customer n Client Receipts,M,Fees n Charges,MB,09/04/2014,PAY00654590,VENU,Venues,-27250,Revenue,3A Entertainment Ltd
Brighton & Hove City Council,http://statistics.data.gov.uk/id/local-authority/00ML,Cultural and Related Serv,BVACUL,Culture and Heritage,CHG,Customer n Client Receipts,M,Sales,MA,09/04/2014,PAY00654590,VENU,Venues,158018.13,Revenue,3A Entertainment Ltd
Brighton & Hove City Council,http://statistics.data.gov.uk/id/local-authority/00ML,Cultural and Related Serv,BVACUL,Culture and Heritage,CHG,Supplies and Services,E,Miscellaneous Expenses,EM,16/04/2014,PAY00656612,VENU,Venues,12421.33,Revenue,3A Entertainment Ltd
Brighton & Hove City Council,http://statistics.data.gov.uk/id/local-authority/00ML,Cultural and Related Serv,BVACUL,Tourism,TRM,Supplies and Services,E,Miscellaneous Expenses,EM,09/04/2014,PAY00655116,TOMA,Tourism and Marketing,235.62,Revenue,64 Degrees Ltd
Brighton & Hove City Council,http://statistics.data.gov.uk/id/local-authority/00ML,Children`s & Education Serv,BVAEDU,Ed EY PVI,ENP,Supplies and Services,E,Grants n Subscriptions,EK,04/04/2014,PAY00653574,EYRS,Early Years,579,Revenue,A & A Childcare
Brighton & Hove City Council,http://statistics.data.gov.uk/id/local-authority/00ML,Children`s & Education Serv,BVAEDU,Ed EY PVI,ENP,Supplies and Services,E,Grants n Subscriptions,EK,09/04/2014,PAY00654624,EYRS,Early Years,753,Revenue,A & A Childcare
Brighton & Hove City Council,http://statistics.data.gov.uk/id/local-authority/00ML,Central Support and Overheads,BVACEN,Holding Accounts,PPH,Supplies and Services,E,Print Stat & Gen Office Exps,ED,02/04/2014,PAY00651692,PROP,Property and Design,478.8,Revenue,A 1 News
Brighton & Hove City Council,http://statistics.data.gov.uk/id/local-authority/00ML,Cultural and Related Serv,BVACUL,Culture and Heritage,CHG,Supplies and Services,E,Equip't Furniture n Materials,EA,09/04/2014,PAY00654676,RPMU,Royal Pavilion and Museums,250,Revenue,A C Special Projects Ltd
Brighton & Hove City Council,http://statistics.data.gov.uk/id/local-authority/00ML,Cultural and Related Serv,BVACUL,Recreation and Sport,REC,Third Party Payments,F,Independent Units of Council,FA,11/04/2014,PAY00655368,SFAC,Sports Facilities,250,Revenue,A M Construction (Southern) Ltd
Brighton & Hove City Council,http://statistics.data.gov.uk/id/local-authority/00ML,Adult Social Care,BVASOC,S Svcs Other Adult Services,ADT,Indirect Employees,B,Training,BM,02/04/2014,PAY00651854,ORGD,Organisational Development,2600,Revenue,a.i.d Training & Operations Ltd
Brighton & Hove City Council,http://statistics.data.gov.uk/id/local-authority/00ML,Central Support and Overheads,BVACEN,Support Services (SSC),PPT,Indirect Employees,B,Training,BM,02/04/2014,PAY00651854,ORGD,Organisational Development,650,Revenue,a.i.d Training & Operations Ltd
Brighton & Hove City Council,http://statistics.data.gov.uk/id/local-authority/00ML,Adult Social Care,BVASOC,S Svcs - Learning Disability,LDY,Indirect Employees,B,Training,BM,04/04/2014,PAY00653192,ORGD,Organisational Development,105,Revenue,a.i.d Training & Operations Ltd
Brighton & Hove City Council,http://statistics.data.gov.uk/id/local-authority/00ML,Adult Social Care,BVASOC,S Svcs Other Adult Services,ADT,Indirect Employees,B,Training,BM,04/04/2014,PAY00653192,ORGD,Organisational Development,3885,Revenue,a.i.d Training & Operations Ltd
Brighton & Hove City Council,http://statistics.data.gov.uk/id/local-authority/00ML,Central Support and Overheads,BVACEN,Support Services (SSC),PPT,Indirect Employees,B,Training,BM,04/04/2014,PAY00653192,OHAS,Occupational Health and Safety,1425,Revenue,a.i.d Training & Operations Ltd
Brighton & Hove City Council,http://statistics.data.gov.uk/id/local-authority/00ML,Central Support and Overheads,BVACEN,Support Services (SSC),PPT,Indirect Employees,B,Training,BM,04/04/2014,PAY00653192,ORGD,Organisational Development,235,Revenue,a.i.d Training & Operations Ltd
Brighton & Hove City Council,http://statistics.data.gov.uk/id/local-authority/00ML,Central Support and Overheads,BVACEN,Support Services (SSC),PPT,Supplies and Services,E,Miscellaneous Expenses,EM,04/04/2014,PAY00653192,OHAS,Occupational Health and Safety,275,Revenue,a.i.d Training & Operations Ltd
Brighton & Hove City Council,http://statistics.data.gov.uk/id/local-authority/00ML,Adult Social Care,BVASOC,ASC Learning Disabilities,ALD,Third Party Payments,F,Other Establishments,FH,11/04/2014,PAY00655685,LDIS,Learning Disabilities,6296.6,Revenue,Abbey Care Group Ltd-Saxon Court
Brighton & Hove City Council,http://statistics.data.gov.uk/id/local-authority/00ML,Adult Social Care,BVASOC,ASC Learning Disabilities,ALD,Customer n Client Receipts,M,Fees n Charges,MB,11/04/2014,PAY00655685,LDIS,Learning Disabilities,-397.15,Revenue,Abbey Care Group Ltd-Saxon Court
Brighton & Hove City Council,http://statistics.data.gov.uk/id/local-authority/00ML,Environment & Regulatory Serv,BVAERS,Environmental Health,EVH,Indirect Employees,B,Training,BM,23/04/2014,PAY00658029,PROT,Public Protection,280,Revenue,ABC Food Safety Ltd
Brighton & Hove City Council,http://statistics.data.gov.uk/id/local-authority/00ML,Non-BHC Organisations,BVANON,Trusts,TRT,Supplies and Services,E,Grants n Subscriptions,EK,24/04/2014,PAY502075,NBHC,Non Council,295,Revenue,ABC Removals
Brighton & Hove City Council,http://statistics.data.gov.uk/id/local-authority/00ML,Adult Social Care,BVASOC,ASC Physical Support,PHY,Third Party Payments,F,Other Establishments,FH,09/04/2014,PAY00654738,PHYS,Physical Support,3720,Revenue,Abi House
Brighton & Hove City Council,http://statistics.data.gov.uk/id/local-authority/00ML,Adult Social Care,BVASOC,ASC Learning Disabilities,ALD,Third Party Payments,F,Other Establishments,FH,11/04/2014,PAY00655836,LDIS,Learning Disabilities,4884,Revenue,Abi House
Brighton & Hove City Council,http://statistics.data.gov.uk/id/local-authority/00ML,Adult Social Care,BVASOC,ASC Learning Disabilities,ALD,Customer n Client Receipts,M,Fees n Charges,MB,11/04/2014,PAY00655836,LDIS,Learning Disabilities,-391,Revenue,Abi House
Brighton & Hove City Council,http://statistics.data.gov.uk/id/local-authority/00ML,Adult Social Care,BVASOC,S Svcs - Physical Disability,PDY,Third Party Payments,F,Other Establishments,FH,02/04/2014,PAY00652041,CCPD,Com Care Physical Disabilities,388.2,Revenue,About Me Care & Support
Brighton & Hove City Council,http://statistics.data.gov.uk/id/local-authority/00ML,Adult Social Care,BVASOC,S Svcs - Physical Disability,PDY,Customer n Client Receipts,M,Fees n Charges,MB,02/04/2014,PAY00652041,CCPD,Com Care Physical Disabilities,-51,Revenue,About Me Care & Support
Brighton & Hove City Council,http://statistics.data.gov.uk/id/local-authority/00ML,Housing General Fund,BVAHOG,Hsing Welfare,HGW,Transfer Payments,G,Supporting People,GF,30/04/2014,PAY00659539,SUPP,Supporting People,2500,Revenue,About Me Care & Support
Brighton & Hove City Council,http://statistics.data.gov.uk/id/local-authority/00ML,Children`s & Education Serv,BVAEDU,Management Services (DEC),MGT,Supplies and Services,E,Miscellaneous Expenses,EM,09/04/2014,PAY00654960,SOCK,Social Work,1821.06,Revenue,Absolute Translations Ltd
Brighton & Hove City Council,http://statistics.data.gov.uk/id/local-authority/00ML,Central Support and Overheads,BVACEN,Support Services (SSC),PPT,Supplies and Services,E,Miscellaneous Expenses,EM,09/04/2014,PAY00654398,COMU,Communications,5682.42,Revenue,Accelerated Mailing & Marketing
Brighton & Hove City Council,http://statistics.data.gov.uk/id/local-authority/00ML,Environment & Regulatory Serv,BVAERS,Waste Management,WMT,Supplies and Services,E,Communications n Computing,EH,16/04/2014,PAY00656463,CICL,City Clean,3370.93,Revenue,Accelerated Mailing & Marketing
Brighton & Hove City Council,http://statistics.data.gov.uk/id/local-authority/00ML,Non I&E,BVANON,CAP Housing Services GF,4HG,Capital Grants,PF,Capital Grants,PFL5,02/04/2014,PAY00651737,PSHG,Private Sector Housing,9445.18,Capital,Access Mobility
Brighton & Hove City Council,http://statistics.data.gov.uk/id/local-authority/00ML,Non I&E,BVANON,Cap - Housing Services - HRA,4HR,New Construction n Conversion,PB,New Construction n Conversion,PBL5,02/04/2014,PAY00651737,HPAI,Property & Investment,24188.22,Capital,Access Mobility
Brighton & Hove City Council,http://statistics.data.gov.uk/id/local-authority/00ML,Non I&E,BVANON,CAP Housing Services GF,4HG,Capital Grants,PF,Capital Grants,PFL5,04/04/2014,PAY00653105,PSHG,Private Sector Housing,867.22,Capital,Access Mobility
Brighton & Hove City Council,http://statistics.data.gov.uk/id/local-authority/00ML,Non I&E,BVANON,Cap - Housing Services - HRA,4HR,New Construction n Conversion,PB,New Construction n Conversion,PBL5,09/04/2014,PAY00654158,HPAI,Property & Investment,4962.99,Capital,Access Mobility
Brighton & Hove City Council,http://statistics.data.gov.uk/id/local-authority/00ML,Non I&E,BVANON,Cap - Housing Services - HRA,4HR,New Construction n Conversion,PB,New Construction n Conversion,PBL5,11/04/2014,PAY00655296,HPAI,Property & Investment,3599.65,Capital,Access Mobility
Brighton & Hove City Council,http://statistics.data.gov.uk/id/local-authority/00ML,Non I&E,BVANON,CAP Social Services,4RV,New Construction n Conversion,PB,New Construction n Conversion,PBL5,11/04/2014,PAY00656095,DAYS,Day Services,2316,Capital,Accora
Brighton & Hove City Council,http://statistics.data.gov.uk/id/local-authority/00ML,Central Support and Overheads,BVACEN,Support Services (SSC),PPT,Indirect Employees,B,Training,BM,04/04/2014,PAY00653898,DEMO,Democratic Services,959.9,Revenue,Ace Education Training LLP
Brighton & Hove City Council,http://statistics.data.gov.uk/id/local-authority/00ML,Children`s & Education Serv,BVAEDU,Ed Ed Other LA Attrib Sch,ELA,Transport Related,D,Other Transport Costs,DG,23/04/2014,PAY00658076,OEDS,Other Education Support,3940,Revenue,Ace Travel Ltd
Brighton & Hove City Council,http://statistics.data.gov.uk/id/local-authority/00ML,Children`s & Education Serv,BVAEDU,Child Srvcs - Fostering,FLF,Third Party Payments,F,Other Establishments,FH,02/04/2014,PAY00652100,AVFM,Agency Placements\VFM,12080.64,Revenue,Achieving Together 
Brighton & Hove City Council,http://statistics.data.gov.uk/id/local-authority/00ML,Children`s & Education Serv,BVAEDU,Child Srvcs - Residential Svcs,FLR,Third Party Payments,F,Other Establishments,FH,02/04/2014,PAY00652100,AVFM,Agency Placements\VFM,11400,Revenue,Achieving Together 
Brighton & Hove City Council,http://statistics.data.gov.uk/id/local-authority/00ML,Children`s & Education Serv,BVAEDU,Child Srvcs - Fostering,FLF,Third Party Payments,F,Other Establishments,FH,30/04/2014,PAY00659592,AVFM,Agency Placements\VFM,12080.64,Revenue,Achieving Together 
Brighton & Hove City Council,http://statistics.data.gov.uk/id/local-authority/00ML,Children`s & Education Serv,BVAEDU,Child Srvcs - Residential Svcs,FLR,Third Party Payments,F,Other Establishments,FH,30/04/2014,PAY00659592,AVFM,Agency Placements\VFM,3664.29,Revenue,Achieving Together 
Brighton & Hove City Council,http://statistics.data.gov.uk/id/local-authority/00ML,Children`s & Education Serv,BVAEDU,Ed Mgmt and Support Services,EMG,Supplies and Services,E,Equip't Furniture n Materials,EA,04/04/2014,PAY00653135,MUSE,Music Service,619.9,Revenue,Ackerman Music Ltd
Brighton & Hove City Council,http://statistics.data.gov.uk/id/local-authority/00ML,Adult Social Care,BVASOC,ASC Learning Disabilities,ALD,Third Party Payments,F,Other Establishments,FH,11/04/2014,PAY00655639,LDIS,Learning Disabilities,13329.84,Revenue,Acorn (Watford) Ltd
Brighton & Hove City Council,http://statistics.data.gov.uk/id/local-authority/00ML,Adult Social Care,BVASOC,ASC Learning Disabilities,ALD,Customer n Client Receipts,M,Fees n Charges,MB,11/04/2014,PAY00655639,LDIS,Learning Disabilities,-1750.25,Revenue,Acorn (Watford) Ltd
Brighton & Hove City Council,http://statistics.data.gov.uk/id/local-authority/00ML,Central Support and Overheads,BVACEN,Support Services (SSC),PPT,Premises Related,C,Cleaning n Domestic Supps,CH,09/04/2014,PAY00654832,PROP,Property and Design,7743.07,Revenue,Acorn Environmental
Brighton & Hove City Council,http://statistics.data.gov.uk/id/local-authority/00ML,Children`s & Education Serv,BVAEDU,Child Srvcs Adoption,FAA,Third Party Payments,F,Other Establishments,FH,09/04/2014,PAY00654654,CHIC,Children In Care,750,Revenue,Action For Children
Brighton & Hove City Council,http://statistics.data.gov.uk/id/local-authority/00ML,Adult Social Care,BVASOC,ASC Mental Health Support,MHP,Third Party Payments,F,Other Establishments,FH,11/04/2014,PAY00655623,MENH,Mental Health Support,5060.46,Revenue,Action on Hearing loss
Brighton & Hove City Council,http://statistics.data.gov.uk/id/local-authority/00ML,Adult Social Care,BVASOC,ASC Physical Support,PHY,Third Party Payments,F,Other Establishments,FH,11/04/2014,PAY00655623,PHYS,Physical Support,6000.95,Revenue,Action on Hearing loss
Brighton & Hove City Council,http://statistics.data.gov.uk/id/local-authority/00ML,Adult Social Care,BVASOC,ASC Physical Support,PHY,Customer n Client Receipts,M,Fees n Charges,MB,11/04/2014,PAY00655623,PHYS,Physical Support,-588,Revenue,Action on Hearing loss
Brighton & Hove City Council,http://statistics.data.gov.uk/id/local-authority/00ML,Adult Social Care,BVASOC,ASC Physical Support,PHY,Third Party Payments,F,Other Establishments,FH,16/04/2014,PAY00656516,PHYS,Physical Support,798,Revenue,Action on Hearing loss
Brighton & Hove City Council,http://statistics.data.gov.uk/id/local-authority/00ML,Adult Social Care,BVASOC,ASC Physical Support,PHY,Customer n Client Receipts,M,Fees n Charges,MB,16/04/2014,PAY00656516,PHYS,Physical Support,-108,Revenue,Action on Hearing loss
Brighton & Hove City Council,http://statistics.data.gov.uk/id/local-authority/00ML,Central Services to the Public,BVACEN,Elections,ELE,Supplies and Services,E,Equip't Furniture n Materials,EA,09/04/2014,PAY00654235,LIFE,Life Events,443.06,Revenue,Action on Hearing Loss (Products)
Brighton & Hove City Council,http://statistics.data.gov.uk/id/local-authority/00ML,Central Support and Overheads,BVACEN,Support Services (SSC),PPT,Supplies and Services,E,Equip't Furniture n Materials,EA,09/04/2014,PAY00654235,LIFE,Life Events,443.06,Revenue,Action on Hearing Loss (Products)
Brighton & Hove City Council,http://statistics.data.gov.uk/id/local-authority/00ML,Children`s & Education Serv,BVAEDU,Ed Special Ed,EKE,Supplies and Services,E,Equip't Furniture n Materials,EA,16/04/2014,PAY00656642,SENS,Special Educational Needs,1414.5,Revenue,Active Design Ltd
Brighton & Hove City Council,http://statistics.data.gov.uk/id/local-authority/00ML,Environment & Regulatory Serv,BVAERS,Environmental Health,EVH,Supplies and Services,E,Miscellaneous Expenses,EM,16/04/2014,PAY00656631,PROT,Public Protection,825,Revenue,Active Sussex
Brighton & Hove City Council,http://statistics.data.gov.uk/id/local-authority/00ML,Children`s & Education Serv,BVAEDU,Ed EY PVI,ENP,Supplies and Services,E,Grants n Subscriptions,EK,04/04/2014,PAY00653938,EYRS,Early Years,11999,Revenue,ActiveKids Nursery
Brighton & Hove City Council,http://statistics.data.gov.uk/id/local-authority/00ML,Adult Social Care,BVASOC,S Svcs Supported Employment,EMP,Supplies and Services,E,Miscellaneous Expenses,EM,17/04/2014,PAY00657720,SUPE,Supported Employment,1993.74,Revenue,AD Colour Ltd
Brighton & Hove City Council,http://statistics.data.gov.uk/id/local-authority/00ML,Children`s & Education Serv,BVAEDU,Ed Ed Other LA Attrib Sch,ELA,Indirect Employees,B,Training,BM,04/04/2014,PAY00653101,OEDS,Other Education Support,500,Revenue,Adamson Publishing Ltd
Brighton & Hove City Council,http://statistics.data.gov.uk/id/local-authority/00ML,Children`s & Education Serv,BVAEDU,Ed Mgmt and Support Services,EMG,Supplies and Services,E,Equip't Furniture n Materials,EA,04/04/2014,PAY00653101,SACH,Standards and Achievement,500,Revenue,Adamson Publishing Ltd
Brighton & Hove City Council,http://statistics.data.gov.uk/id/local-authority/00ML,Adult Social Care,BVASOC,ASC Physical Support,PHY,Third Party Payments,F,Other Establishments,FH,11/04/2014,PAY00655790,PHYS,Physical Support,2432.87,Revenue,Adelaide Healthcare Ltd
Brighton & Hove City Council,http://statistics.data.gov.uk/id/local-authority/00ML,Adult Social Care,BVASOC,ASC Physical Support,PHY,Customer n Client Receipts,M,Fees n Charges,MB,11/04/2014,PAY00655790,PHYS,Physical Support,-562.43,Revenue,Adelaide Healthcare Ltd
Brighton & Hove City Council,http://statistics.data.gov.uk/id/local-authority/00ML,Central Support and Overheads,BVACEN,Support Services (SSC),PPT,Third Party Payments,F,Other Establishments,FH,02/04/2014,PAY00652014,FINS,Financial Services,3651.28,Revenue,Adelaide Nursing Home
Brighton & Hove City Council,http://statistics.data.gov.uk/id/local-authority/00ML,Adult Social Care,BVASOC,ASC Physical Support,PHY,Third Party Payments,F,Other Establishments,FH,11/04/2014,PAY00655640,PHYS,Physical Support,43750.37,Revenue,Adelaide Nursing Home
Brighton & Hove City Council,http://statistics.data.gov.uk/id/local-authority/00ML,Adult Social Care,BVASOC,ASC Physical Support,PHY,Customer n Client Receipts,M,Fees n Charges,MB,11/04/2014,PAY00655640,PHYS,Physical Support,-8826.58,Revenue,Adelaide Nursing Home
Brighton & Hove City Council,http://statistics.data.gov.uk/id/local-authority/00ML,Central Support and Overheads,BVACEN,Support Services (SSC),PPT,Third Party Payments,F,Other Establishments,FH,23/04/2014,PAY00658148,FINS,Financial Services,3686.48,Revenue,Adelaide Nursing Home
Brighton & Hove City Council,http://statistics.data.gov.uk/id/local-authority/00ML,Housing General Fund,BVAHOG,Homelessness,HML,Premises Related,C,Rents Payable,CC,02/04/2014,PAY00651899,HOSS,Housing Supports Services,11927.9,Revenue,Adelphi Court Services Limited
Brighton & Hove City Council,http://statistics.data.gov.uk/id/local-authority/00ML,Housing General Fund,BVAHOG,Homelessness,HML,Premises Related,C,Rents Payable,CC,09/04/2014,PAY00654352,HOSS,Housing Supports Services,3253.06,Revenue,Adelphi Court Services Limited
Brighton & Hove City Council,http://statistics.data.gov.uk/id/local-authority/00ML,Adult Social Care,BVASOC,S Svcs - Older People Svcs,PPL,Third Party Payments,F,Other Establishments,FH,04/04/2014,PAY00653807,CCOP,Community Care Older People,5930,Revenue,Adiemus Care Ltd
Brighton & Hove City Council,http://statistics.data.gov.uk/id/local-authority/00ML,Adult Social Care,BVASOC,S Svcs - Older People Svcs,PPL,Customer n Client Receipts,M,Fees n Charges,MB,04/04/2014,PAY00653807,CCOP,Community Care Older People,-1113.65,Revenue,Adiemus Care Ltd
Brighton & Hove City Council,http://statistics.data.gov.uk/id/local-authority/00ML,Adult Social Care,BVASOC,ASC Physical Support,PHY,Third Party Payments,F,Other Establishments,FH,04/04/2014,PAY00653969,PHYS,Physical Support,77.34,Revenue,Adiemus Care t/a Cams Ridge Care Home
Brighton & Hove City Council,http://statistics.data.gov.uk/id/local-authority/00ML,Adult Social Care,BVASOC,ASC Physical Support,PHY,Customer n Client Receipts,M,Fees n Charges,MB,04/04/2014,PAY00653969,PHYS,Physical Support,-19.93,Revenue,Adiemus Care t/a Cams Ridge Care Home
Brighton & Hove City Council,http://statistics.data.gov.uk/id/local-authority/00ML,Adult Social Care,BVASOC,S Svcs - Older People Svcs,PPL,Third Party Payments,F,Other Establishments,FH,04/04/2014,PAY00653969,CCOP,Community Care Older People,4253.7,Revenue,Adiemus Care t/a Cams Ridge Care Home
Brighton & Hove City Council,http://statistics.data.gov.uk/id/local-authority/00ML,Adult Social Care,BVASOC,S Svcs - Older People Svcs,PPL,Customer n Client Receipts,M,Fees n Charges,MB,04/04/2014,PAY00653969,CCOP,Community Care Older People,-1096.15,Revenue,Adiemus Care t/a Cams Ridge Care Home
Brighton & Hove City Council,http://statistics.data.gov.uk/id/local-authority/00ML,Cultural and Related Serv,BVACUL,Culture and Heritage,CHG,Premises Related,C,Repair Maint n Alterations,CA,02/04/2014,PAY00652048,RPMU,Royal Pavilion and Museums,34,Revenue,ADT Fire & Security Plc
Brighton & Hove City Council,http://statistics.data.gov.uk/id/local-authority/00ML,Cultural and Related Serv,BVACUL,Culture and Heritage,CHG,Supplies and Services,E,Miscellaneous Expenses,EM,02/04/2014,PAY00652048,RPMU,Royal Pavilion and Museums,273,Revenue,ADT Fire & Security Plc
Brighton & Hove City Council,http://statistics.data.gov.uk/id/local-authority/00ML,Housing Revenue Account,BVAHOU,Hsing Management - HRA,HGM,Premises Related,C,Repair Maint n Alterations,CA,02/04/2014,PAY00652048,HIII,Income Involvement Improvement,81,Revenue,ADT Fire & Security Plc
Brighton & Hove City Council,http://statistics.data.gov.uk/id/local-authority/00ML,Cultural and Related Serv,BVACUL,Culture and Heritage,CHG,Premises Related,C,Repair Maint n Alterations,CA,04/04/2014,PAY00653523,RPMU,Royal Pavilion and Museums,230,Revenue,ADT Fire & Security Plc
Brighton & Hove City Council,http://statistics.data.gov.uk/id/local-authority/00ML,Cultural and Related Serv,BVACUL,Culture and Heritage,CHG,Premises Related,C,Repair Maint n Alterations,CA,11/04/2014,PAY00655712,RPMU,Royal Pavilion and Museums,320,Revenue,ADT Fire & Security Plc
Brighton & Hove City Council,http://statistics.data.gov.uk/id/local-authority/00ML,Housing Revenue Account,BVAHOU,Hsing Management - HRA,HGM,Supplies and Services,E,Services,EF,11/04/2014,PAY00655712,HIII,Income Involvement Improvement,106,Revenue,ADT Fire & Security Plc
Brighton & Hove City Council,http://statistics.data.gov.uk/id/local-authority/00ML,Cultural and Related Serv,BVACUL,Culture and Heritage,CHG,Premises Related,C,Repair Maint n Alterations,CA,16/04/2014,PAY00656603,RPMU,Royal Pavilion and Museums,563.89,Revenue,ADT Fire & Security Plc
Brighton & Hove City Council,http://statistics.data.gov.uk/id/local-authority/00ML,Cultural and Related Serv,BVACUL,Culture and Heritage,CHG,Premises Related,C,Repair Maint n Alterations,CA,17/04/2014,PAY00657449,RPMU,Royal Pavilion and Museums,228,Revenue,ADT Fire & Security Plc
Brighton & Hove City Council,http://statistics.data.gov.uk/id/local-authority/00ML,Cultural and Related Serv,BVACUL,Culture and Heritage,CHG,Supplies and Services,E,Miscellaneous Expenses,EM,23/04/2014,PAY00658174,RPMU,Royal Pavilion and Museums,283,Revenue,ADT Fire & Security Plc
Brighton & Hove City Council,http://statistics.data.gov.uk/id/local-authority/00ML,Cultural and Related Serv,BVACUL,Culture and Heritage,CHG,Premises Related,C,Repair Maint n Alterations,CA,30/04/2014,PAY00659545,RPMU,Royal Pavilion and Museums,449.58,Revenue,ADT Fire & Security Plc
Brighton & Hove City Council,http://statistics.data.gov.uk/id/local-authority/00ML,Adult Social Care,BVASOC,ASC Learning Disabilities,ALD,Third Party Payments,F,Other Establishments,FH,30/04/2014,PAY00659829,LDIS,Learning Disabilities,275.2,Revenue,Advance Housing and Support Ltd
Brighton & Hove City Council,http://statistics.data.gov.uk/id/local-authority/00ML,Non I&E,BVANON,CAP Education Services,4ED,Plant Machinery n Equipment,PE2,Plant Machinery n Equipment,PE2L5,04/04/2014,PAY00653606,OEDS,Other Education Support,11550,Capital,Advanced Connections Ltd
Brighton & Hove City Council,http://statistics.data.gov.uk/id/local-authority/00ML,Non I&E,BVANON,CAP Education Services,4ED,New Construction n Conversion,PB,New Construction n Conversion,PBL5,30/04/2014,PAY00659626,OEDS,Other Education Support,5680,Capital,Advanced Connections Ltd
Brighton & Hove City Council,http://statistics.data.gov.uk/id/local-authority/00ML,Adult Social Care,BVASOC,ASC Mental Health Support,MHP,Third Party Payments,F,Other Establishments,FH,09/04/2014,PAY00654353,MENH,Mental Health Support,1431.9,Revenue,Advantage Healthcare Nursing & Care Ltd
Brighton & Hove City Council,http://statistics.data.gov.uk/id/local-authority/00ML,Adult Social Care,BVASOC,ASC Mental Health Support,MHP,Third Party Payments,F,Other Establishments,FH,11/04/2014,PAY00655418,MENH,Mental Health Support,601.92,Revenue,Advantage Healthcare Nursing & Care Ltd
Brighton & Hove City Council,http://statistics.data.gov.uk/id/local-authority/00ML,Adult Social Care,BVASOC,ASC Mental Health Support,MHP,Third Party Payments,F,Other Establishments,FH,17/04/2014,PAY00657212,MENH,Mental Health Support,1462.23,Revenue,Advantage Healthcare Nursing & Care Ltd
Brighton & Hove City Council,http://statistics.data.gov.uk/id/local-authority/00ML,Adult Social Care,BVASOC,ASC Mental Health Support,MHP,Third Party Payments,F,Other Establishments,FH,30/04/2014,PAY00659408,MENH,Mental Health Support,1450.84,Revenue,Advantage Healthcare Nursing & Care Ltd
Brighton & Hove City Council,http://statistics.data.gov.uk/id/local-authority/00ML,Housing General Fund,BVAHOG,Hsing Welfare,HGW,Transfer Payments,G,Supporting People,GF,30/04/2014,PAY00659468,SUPP,Supporting People,8333.34,Revenue,Affinity Sutton Homes Ltd
Brighton & Hove City Council,http://statistics.data.gov.uk/id/local-authority/00ML,Adult Social Care,BVASOC,S Svcs - Learning Disability,LDY,Premises Related,C,Rents Payable,CC,11/04/2014,PAY00655421,LDAS,LD Accommodation Services,1152.66,Revenue,Affinity Sutton Homes Ltd  (Rent)
Brighton & Hove City Council,http://statistics.data.gov.uk/id/local-authority/00ML,Adult Social Care,BVASOC,S Svcs - Mental Health,MHT,Third Party Payments,F,Other Establishments,FH,02/04/2014,PAY00651897,ADMH,Community Care Adult MH,57.5,Revenue,Agincare UK Ltd
Brighton & Hove City Council,http://statistics.data.gov.uk/id/local-authority/00ML,Adult Social Care,BVASOC,S Svcs - Mental Health,MHT,Customer n Client Receipts,M,Fees n Charges,MB,02/04/2014,PAY00651897,ADMH,Community Care Adult MH,-7,Revenue,Agincare UK Ltd
Brighton & Hove City Council,http://statistics.data.gov.uk/id/local-authority/00ML,Adult Social Care,BVASOC,S Svcs - Older People Svcs,PPL,Third Party Payments,F,Other Establishments,FH,02/04/2014,PAY00651897,OPMH,Community Care Older People MH,4914.52,Revenue,Agincare UK Ltd
Brighton & Hove City Council,http://statistics.data.gov.uk/id/local-authority/00ML,Adult Social Care,BVASOC,S Svcs - Older People Svcs,PPL,Customer n Client Receipts,M,Fees n Charges,MB,02/04/2014,PAY00651897,OPMH,Community Care Older People MH,-590,Revenue,Agincare UK Ltd
Brighton & Hove City Council,http://statistics.data.gov.uk/id/local-authority/00ML,Adult Social Care,BVASOC,S Svcs Other Adult Services,ADT,Third Party Payments,F,Other Establishments,FH,02/04/2014,PAY00651897,CHIV,Community Care HIV,122.1,Revenue,Agincare UK Ltd
Brighton & Hove City Council,http://statistics.data.gov.uk/id/local-authority/00ML,Adult Social Care,BVASOC,S Svcs - Physical Disability,PDY,Third Party Payments,F,Other Establishments,FH,02/04/2014,PAY00651897,CCPD,Com Care Physical Disabilities,969.65,Revenue,Agincare UK Ltd
Brighton & Hove City Council,http://statistics.data.gov.uk/id/local-authority/00ML,Adult Social Care,BVASOC,S Svcs - Physical Disability,PDY,Customer n Client Receipts,M,Fees n Charges,MB,02/04/2014,PAY00651897,CCPD,Com Care Physical Disabilities,-42,Revenue,Agincare UK Ltd
Brighton & Hove City Council,http://statistics.data.gov.uk/id/local-authority/00ML,Adult Social Care,BVASOC,S Svcs - Mental Health,MHT,Third Party Payments,F,Other Establishments,FH,04/04/2014,PAY00653227,ADMH,Community Care Adult MH,42.7,Revenue,Agincare UK Ltd
Brighton & Hove City Council,http://statistics.data.gov.uk/id/local-authority/00ML,Adult Social Care,BVASOC,S Svcs - Mental Health,MHT,Customer n Client Receipts,M,Fees n Charges,MB,04/04/2014,PAY00653227,ADMH,Community Care Adult MH,-7,Revenue,Agincare UK Ltd
Brighton & Hove City Council,http://statistics.data.gov.uk/id/local-authority/00ML,Adult Social Care,BVASOC,S Svcs - Older People Svcs,PPL,Third Party Payments,F,Other Establishments,FH,04/04/2014,PAY00653227,OPMH,Community Care Older People MH,5048.89,Revenue,Agincare UK Ltd
Brighton & Hove City Council,http://statistics.data.gov.uk/id/local-authority/00ML,Adult Social Care,BVASOC,S Svcs - Older People Svcs,PPL,Customer n Client Receipts,M,Fees n Charges,MB,04/04/2014,PAY00653227,OPMH,Community Care Older People MH,-681,Revenue,Agincare UK Ltd
Brighton & Hove City Council,http://statistics.data.gov.uk/id/local-authority/00ML,Adult Social Care,BVASOC,S Svcs Other Adult Services,ADT,Third Party Payments,F,Other Establishments,FH,04/04/2014,PAY00653227,CHIV,Community Care HIV,106,Revenue,Agincare UK Ltd
Brighton & Hove City Council,http://statistics.data.gov.uk/id/local-authority/00ML,Adult Social Care,BVASOC,S Svcs - Physical Disability,PDY,Third Party Payments,F,Other Establishments,FH,04/04/2014,PAY00653227,CCPD,Com Care Physical Disabilities,747.55,Revenue,Agincare UK Ltd
Brighton & Hove City Council,http://statistics.data.gov.uk/id/local-authority/00ML,Adult Social Care,BVASOC,S Svcs - Physical Disability,PDY,Customer n Client Receipts,M,Fees n Charges,MB,04/04/2014,PAY00653227,CCPD,Com Care Physical Disabilities,-42,Revenue,Agincare UK Ltd
Brighton & Hove City Council,http://statistics.data.gov.uk/id/local-authority/00ML,Adult Social Care,BVASOC,ASC Physical Support,PHY,Third Party Payments,F,Other Establishments,FH,09/04/2014,PAY00654351,PHYS,Physical Support,2597.17,Revenue,Agincare UK Ltd
Brighton & Hove City Council,http://statistics.data.gov.uk/id/local-authority/00ML,Adult Social Care,BVASOC,ASC Physical Support,PHY,Customer n Client Receipts,M,Fees n Charges,MB,09/04/2014,PAY00654351,PHYS,Physical Support,-168,Revenue,Agincare UK Ltd
Brighton & Hove City Council,http://statistics.data.gov.uk/id/local-authority/00ML,Adult Social Care,BVASOC,ASC Memory Cognition Support,MEM,Third Party Payments,F,Other Establishments,FH,11/04/2014,PAY00655416,COGN,Memory Cognition Support,252.1,Revenue,Agincare UK Ltd
Brighton & Hove City Council,http://statistics.data.gov.uk/id/local-authority/00ML,Adult Social Care,BVASOC,ASC Memory Cognition Support,MEM,Customer n Client Receipts,M,Fees n Charges,MB,11/04/2014,PAY00655416,COGN,Memory Cognition Support,-91,Revenue,Agincare UK Ltd
Brighton & Hove City Council,http://statistics.data.gov.uk/id/local-authority/00ML,Adult Social Care,BVASOC,ASC Mental Health Support,MHP,Third Party Payments,F,Other Establishments,FH,11/04/2014,PAY00655416,MENH,Mental Health Support,65.8,Revenue,Agincare UK Ltd
Brighton & Hove City Council,http://statistics.data.gov.uk/id/local-authority/00ML,Adult Social Care,BVASOC,ASC Mental Health Support,MHP,Customer n Client Receipts,M,Fees n Charges,MB,11/04/2014,PAY00655416,MENH,Mental Health Support,-7,Revenue,Agincare UK Ltd
Brighton & Hove City Council,http://statistics.data.gov.uk/id/local-authority/00ML,Adult Social Care,BVASOC,ASC Physical Support,PHY,Third Party Payments,F,Other Establishments,FH,11/04/2014,PAY00655416,PHYS,Physical Support,6239.99,Revenue,Agincare UK Ltd
Brighton & Hove City Council,http://statistics.data.gov.uk/id/local-authority/00ML,Adult Social Care,BVASOC,ASC Physical Support,PHY,Customer n Client Receipts,M,Fees n Charges,MB,11/04/2014,PAY00655416,PHYS,Physical Support,-749,Revenue,Agincare UK Ltd
Brighton & Hove City Council,http://statistics.data.gov.uk/id/local-authority/00ML,Adult Social Care,BVASOC,S Svcs Other Adult Services,ADT,Third Party Payments,F,Other Establishments,FH,11/04/2014,PAY00655416,CHIV,Community Care HIV,107.1,Revenue,Agincare UK Ltd
Brighton & Hove City Council,http://statistics.data.gov.uk/id/local-authority/00ML,Adult Social Care,BVASOC,ASC Memory Cognition Support,MEM,Third Party Payments,F,Other Establishments,FH,16/04/2014,PAY00656431,COGN,Memory Cognition Support,299,Revenue,Agincare UK Ltd
Brighton & Hove City Council,http://statistics.data.gov.uk/id/local-authority/00ML,Adult Social Care,BVASOC,ASC Memory Cognition Support,MEM,Customer n Client Receipts,M,Fees n Charges,MB,16/04/2014,PAY00656431,COGN,Memory Cognition Support,-91,Revenue,Agincare UK Ltd
Brighton & Hove City Council,http://statistics.data.gov.uk/id/local-authority/00ML,Adult Social Care,BVASOC,ASC Physical Support,PHY,Third Party Payments,F,Other Establishments,FH,16/04/2014,PAY00656431,PHYS,Physical Support,2119.9,Revenue,Agincare UK Ltd
Brighton & Hove City Council,http://statistics.data.gov.uk/id/local-authority/00ML,Adult Social Care,BVASOC,ASC Physical Support,PHY,Customer n Client Receipts,M,Fees n Charges,MB,16/04/2014,PAY00656431,PHYS,Physical Support,-382,Revenue,Agincare UK Ltd
Brighton & Hove City Council,http://statistics.data.gov.uk/id/local-authority/00ML,Adult Social Care,BVASOC,ASC Memory Cognition Support,MEM,Third Party Payments,F,Other Establishments,FH,23/04/2014,PAY00658066,COGN,Memory Cognition Support,258.2,Revenue,Agincare UK Ltd
Brighton & Hove City Council,http://statistics.data.gov.uk/id/local-authority/00ML,Adult Social Care,BVASOC,ASC Memory Cognition Support,MEM,Customer n Client Receipts,M,Fees n Charges,MB,23/04/2014,PAY00658066,COGN,Memory Cognition Support,-91,Revenue,Agincare UK Ltd
Brighton & Hove City Council,http://statistics.data.gov.uk/id/local-authority/00ML,Adult Social Care,BVASOC,ASC Mental Health Support,MHP,Third Party Payments,F,Other Establishments,FH,23/04/2014,PAY00658066,MENH,Mental Health Support,60.8,Revenue,Agincare UK Ltd
Brighton & Hove City Council,http://statistics.data.gov.uk/id/local-authority/00ML,Adult Social Care,BVASOC,ASC Mental Health Support,MHP,Customer n Client Receipts,M,Fees n Charges,MB,23/04/2014,PAY00658066,MENH,Mental Health Support,-7,Revenue,Agincare UK Ltd
Brighton & Hove City Council,http://statistics.data.gov.uk/id/local-authority/00ML,Adult Social Care,BVASOC,ASC Physical Support,PHY,Third Party Payments,F,Other Establishments,FH,23/04/2014,PAY00658066,PHYS,Physical Support,8500.06,Revenue,Agincare UK Ltd
Brighton & Hove City Council,http://statistics.data.gov.uk/id/local-authority/00ML,Adult Social Care,BVASOC,ASC Physical Support,PHY,Customer n Client Receipts,M,Fees n Charges,MB,23/04/2014,PAY00658066,PHYS,Physical Support,-776,Revenue,Agincare UK Ltd
Brighton & Hove City Council,http://statistics.data.gov.uk/id/local-authority/00ML,Adult Social Care,BVASOC,ASC Sensory Support,AHV,Third Party Payments,F,Other Establishments,FH,23/04/2014,PAY00658066,SORY,Sensory Support,78.8,Revenue,Agincare UK Ltd
Brighton & Hove City Council,http://statistics.data.gov.uk/id/local-authority/00ML,Adult Social Care,BVASOC,ASC Sensory Support,AHV,Customer n Client Receipts,M,Fees n Charges,MB,23/04/2014,PAY00658066,SORY,Sensory Support,-30,Revenue,Agincare UK Ltd
Brighton & Hove City Council,http://statistics.data.gov.uk/id/local-authority/00ML,Adult Social Care,BVASOC,S Svcs Other Adult Services,ADT,Third Party Payments,F,Other Establishments,FH,23/04/2014,PAY00658066,CHIV,Community Care HIV,-0.2,Revenue,Agincare UK Ltd
Brighton & Hove City Council,http://statistics.data.gov.uk/id/local-authority/00ML,Adult Social Care,BVASOC,S Svcs - Physical Disability,PDY,Supplies and Services,E,Equip't Furniture n Materials,EA,16/04/2014,PAY00656320,SSCT,S75 SCT,1053.75,Revenue,Aidapt Bathrooms Ltd
Brighton & Hove City Council,http://statistics.data.gov.uk/id/local-authority/00ML,Adult Social Care,BVASOC,S Svcs - Physical Disability,PDY,Supplies and Services,E,Equip't Furniture n Materials,EA,17/04/2014,PAY00657152,SSCT,S75 SCT,511,Revenue,Aidapt Bathrooms Ltd
Brighton & Hove City Council,http://statistics.data.gov.uk/id/local-authority/00ML,Housing Revenue Account,BVAHOU,Hsing Management - HRA,HGM,Premises Related,C,Repair Maint n Alterations,CA,16/04/2014,PAY00656604,HPAI,Property & Investment,2795.96,Revenue,Airconaire Ltd
Brighton & Hove City Council,http://statistics.data.gov.uk/id/local-authority/00ML,Cultural and Related Serv,BVACUL,Recreation and Sport,REC,Third Party Payments,F,Private Contractors,FJ,11/04/2014,PAY00655941,SDEV,Sports Development,1401,Revenue,Airquee Ltd
Brighton & Hove City Council,http://statistics.data.gov.uk/id/local-authority/00ML,Adult Social Care,BVASOC,ASC Learning Disabilities,ALD,Third Party Payments,F,Other Establishments,FH,11/04/2014,PAY00655424,LDIS,Learning Disabilities,45271,Revenue,Aitch Care Homes (London) Ltd
Brighton & Hove City Council,http://statistics.data.gov.uk/id/local-authority/00ML,Adult Social Care,BVASOC,ASC Learning Disabilities,ALD,Customer n Client Receipts,M,Fees n Charges,MB,11/04/2014,PAY00655424,LDIS,Learning Disabilities,-2757.9,Revenue,Aitch Care Homes (London) Ltd
Brighton & Hove City Council,http://statistics.data.gov.uk/id/local-authority/00ML,Environment & Regulatory Serv,BVAERS,Environmental Health,EVH,Supplies and Services,E,Print Stat & Gen Office Exps,ED,16/04/2014,PAY00656465,PROT,Public Protection,397.26,Revenue,Aldrington Press Ltd
Brighton & Hove City Council,http://statistics.data.gov.uk/id/local-authority/00ML,Environment & Regulatory Serv,BVAERS,Environmental Health,EVH,Supplies and Services,E,Equip't Furniture n Materials,EA,30/04/2014,PAY00659449,PROT,Public Protection,2236,Revenue,Aldrington Press Ltd
Brighton & Hove City Council,http://statistics.data.gov.uk/id/local-authority/00ML,Children`s & Education Serv,BVAEDU,Ed Primary Ed,EHE,Supplies and Services,E,Miscellaneous Expenses,EM,30/04/2014,PAY00659629,SACH,Standards and Achievement,7500,Revenue,Alembic TV Ltd
Brighton & Hove City Council,http://statistics.data.gov.uk/id/local-authority/00ML,Environment & Regulatory Serv,BVAERS,Environmental Health,EVH,Supplies and Services,E,Equip't Furniture n Materials,EA,09/04/2014,PAY00654739,PROT,Public Protection,1615.6,Revenue,Alere Ltd
Brighton & Hove City Council,http://statistics.data.gov.uk/id/local-authority/00ML,Children`s & Education Serv,BVAEDU,Management Services (DEC),MGT,Supplies and Services,E,Services,EF,04/04/2014,PAY00653219,SOCK,Social Work,418.75,Revenue,Alere Toxicology PLC
Brighton & Hove City Council,http://statistics.data.gov.uk/id/local-authority/00ML,Children`s & Education Serv,BVAEDU,Child Srvcs Com and Scl Work,FCW,Supplies and Services,E,Equip't Furniture n Materials,EA,09/04/2014,PAY00654336,SOCK,Social Work,328,Revenue,Alere Toxicology PLC
Brighton & Hove City Council,http://statistics.data.gov.uk/id/local-authority/00ML,Central Support and Overheads,BVACEN,Support Services (SSC),PPT,Supplies and Services,E,Services,EF,16/04/2014,PAY00656427,LEGS,Legal Services,643,Revenue,Alere Toxicology PLC
Brighton & Hove City Council,http://statistics.data.gov.uk/id/local-authority/00ML,Children`s & Education Serv,BVAEDU,Management Services (DEC),MGT,Supplies and Services,E,Services,EF,16/04/2014,PAY00656427,SOCK,Social Work,720,Revenue,Alere Toxicology PLC
Brighton & Hove City Council,http://statistics.data.gov.uk/id/local-authority/00ML,Central Support and Overheads,BVACEN,Support Services (SSC),PPT,Supplies and Services,E,Services,EF,23/04/2014,PAY00658061,LEGS,Legal Services,598,Revenue,Alere Toxicology PLC
Brighton & Hove City Council,http://statistics.data.gov.uk/id/local-authority/00ML,Planning and Development,BVAPLA,Development Control,DEV,Supplies and Services,E,Miscellaneous Expenses,EM,02/04/2014,PAY00651950,DEVP,Development Planning,1401.7,Revenue,Alexander Advertising(International)Ltd
Brighton & Hove City Council,http://statistics.data.gov.uk/id/local-authority/00ML,Planning and Development,BVAPLA,Development Control,DEV,Supplies and Services,E,Miscellaneous Expenses,EM,09/04/2014,PAY00654400,DEVP,Development Planning,1401.7,Revenue,Alexander Advertising(International)Ltd
Brighton & Hove City Council,http://statistics.data.gov.uk/id/local-authority/00ML,Planning and Development,BVAPLA,Development Control,DEV,Supplies and Services,E,Miscellaneous Expenses,EM,30/04/2014,PAY00659448,DEVP,Development Planning,2803.4,Revenue,Alexander Advertising(International)Ltd
Brighton & Hove City Council,http://statistics.data.gov.uk/id/local-authority/00ML,Housing General Fund,BVAHOG,Homelessness,HML,Premises Related,C,Rents Payable,CC,09/04/2014,PAY00654794,TAAS,Temp Accom and Allocations,3058.9,Revenue,A-List Properties Limited
Brighton & Hove City Council,http://statistics.data.gov.uk/id/local-authority/00ML,Adult Social Care,BVASOC,S Svcs - Learning Disability,LDY,Third Party Payments,F,Other Establishments,FH,02/04/2014,PAY00651846,CCLD,Com Care Learning Disabilities,257.38,Revenue,Allied Healthcare Brighton Domicillary
Brighton & Hove City Council,http://statistics.data.gov.uk/id/local-authority/00ML,Adult Social Care,BVASOC,S Svcs - Older People Svcs,PPL,Third Party Payments,F,Other Establishments,FH,02/04/2014,PAY00651846,OPMH,Community Care Older People MH,1667.9,Revenue,Allied Healthcare Brighton Domicillary
Brighton & Hove City Council,http://statistics.data.gov.uk/id/local-authority/00ML,Adult Social Care,BVASOC,S Svcs - Older People Svcs,PPL,Customer n Client Receipts,M,Fees n Charges,MB,02/04/2014,PAY00651846,OPMH,Community Care Older People MH,-300,Revenue,Allied Healthcare Brighton Domicillary
Brighton & Hove City Council,http://statistics.data.gov.uk/id/local-authority/00ML,Adult Social Care,BVASOC,S Svcs - Physical Disability,PDY,Third Party Payments,F,Other Establishments,FH,02/04/2014,PAY00651846,CCPD,Com Care Physical Disabilities,623.65,Revenue,Allied Healthcare Brighton Domicillary
Brighton & Hove City Council,http://statistics.data.gov.uk/id/local-authority/00ML,Adult Social Care,BVASOC,S Svcs - Physical Disability,PDY,Customer n Client Receipts,M,Fees n Charges,MB,02/04/2014,PAY00651846,CCPD,Com Care Physical Disabilities,-116,Revenue,Allied Healthcare Brighton Domicillary
Brighton & Hove City Council,http://statistics.data.gov.uk/id/local-authority/00ML,Adult Social Care,BVASOC,ASC Learning Disabilities,ALD,Third Party Payments,F,Other Establishments,FH,09/04/2014,PAY00654291,LDIS,Learning Disabilities,118.4,Revenue,Allied Healthcare Brighton Domicillary
Brighton & Hove City Council,http://statistics.data.gov.uk/id/local-authority/00ML,Adult Social Care,BVASOC,ASC Physical Support,PHY,Third Party Payments,F,Other Establishments,FH,09/04/2014,PAY00654291,PHYS,Physical Support,3872.54,Revenue,Allied Healthcare Brighton Domicillary
Brighton & Hove City Council,http://statistics.data.gov.uk/id/local-authority/00ML,Adult Social Care,BVASOC,ASC Physical Support,PHY,Customer n Client Receipts,M,Fees n Charges,MB,09/04/2014,PAY00654291,PHYS,Physical Support,-497,Revenue,Allied Healthcare Brighton Domicillary
Brighton & Hove City Council,http://statistics.data.gov.uk/id/local-authority/00ML,Adult Social Care,BVASOC,ASC Physical Support,PHY,Third Party Payments,F,Other Establishments,FH,11/04/2014,PAY00655382,PHYS,Physical Support,1347.79,Revenue,Allied Healthcare Brighton Domicillary
Brighton & Hove City Council,http://statistics.data.gov.uk/id/local-authority/00ML,Adult Social Care,BVASOC,ASC Physical Support,PHY,Customer n Client Receipts,M,Fees n Charges,MB,11/04/2014,PAY00655382,PHYS,Physical Support,-222,Revenue,Allied Healthcare Brighton Domicillary
Brighton & Hove City Council,http://statistics.data.gov.uk/id/local-authority/00ML,Adult Social Care,BVASOC,ASC Learning Disabilities,ALD,Third Party Payments,F,Other Establishments,FH,23/04/2014,PAY00658041,LDIS,Learning Disabilities,10.06,Revenue,Allied Healthcare Brighton Domicillary
Brighton & Hove City Council,http://statistics.data.gov.uk/id/local-authority/00ML,Adult Social Care,BVASOC,ASC Physical Support,PHY,Third Party Payments,F,Other Establishments,FH,23/04/2014,PAY00658041,PHYS,Physical Support,1138.6,Revenue,Allied Healthcare Brighton Domicillary
Brighton & Hove City Council,http://statistics.data.gov.uk/id/local-authority/00ML,Adult Social Care,BVASOC,ASC Physical Support,PHY,Customer n Client Receipts,M,Fees n Charges,MB,23/04/2014,PAY00658041,PHYS,Physical Support,-161,Revenue,Allied Healthcare Brighton Domicillary
Brighton & Hove City Council,http://statistics.data.gov.uk/id/local-authority/00ML,Adult Social Care,BVASOC,ASC Learning Disabilities,ALD,Third Party Payments,F,Other Establishments,FH,30/04/2014,PAY00659376,LDIS,Learning Disabilities,583.42,Revenue,Allied Healthcare Brighton Domicillary
Brighton & Hove City Council,http://statistics.data.gov.uk/id/local-authority/00ML,Adult Social Care,BVASOC,ASC Physical Support,PHY,Third Party Payments,F,Other Establishments,FH,30/04/2014,PAY00659376,PHYS,Physical Support,1574.11,Revenue,Allied Healthcare Brighton Domicillary
Brighton & Hove City Council,http://statistics.data.gov.uk/id/local-authority/00ML,Adult Social Care,BVASOC,ASC Physical Support,PHY,Customer n Client Receipts,M,Fees n Charges,MB,30/04/2014,PAY00659376,PHYS,Physical Support,4139.72,Revenue,Allied Healthcare Brighton Domicillary
Brighton & Hove City Council,http://statistics.data.gov.uk/id/local-authority/00ML,Central Support and Overheads,BVACEN,Support Services (SSC),PPT,Premises Related,C,Repair Maint n Alterations,CA,04/04/2014,PAY00653159,PROP,Property and Design,969.07,Revenue,Allsop & Francis Ltd
Brighton & Hove City Council,http://statistics.data.gov.uk/id/local-authority/00ML,Central Support and Overheads,BVACEN,Support Services (SSC),PPT,Premises Related,C,Repair Maint n Alterations,CA,09/04/2014,PAY00654250,PROP,Property and Design,337.05,Revenue,Allsop & Francis Ltd
Brighton & Hove City Council,http://statistics.data.gov.uk/id/local-authority/00ML,Planning and Development,BVAPLA,Economic Development,ECD,Supplies and Services,E,Grants n Subscriptions,EK,09/04/2014,PAY00654174,CMNY,Communities and Equalities,5500,Revenue,Allsorts Youth Project
Brighton & Hove City Council,http://statistics.data.gov.uk/id/local-authority/00ML,Central Support and Overheads,BVACEN,Holding Accounts,PPH,Transport Related,D,Direct Transport Costs,DA,02/04/2014,PAY00652578,CICL,City Clean,6477.79,Revenue,Allstar Business Solutions Ltd
Brighton & Hove City Council,http://statistics.data.gov.uk/id/local-authority/00ML,Central Support and Overheads,BVACEN,Holding Accounts,PPH,Transport Related,D,Direct Transport Costs,DA,17/04/2014,PAY00657706,CICL,City Clean,7067.83,Revenue,Allstar Business Solutions Ltd
Brighton & Hove City Council,http://statistics.data.gov.uk/id/local-authority/00ML,Environment & Regulatory Serv,BVAERS,Street Cleansing,CLE,Supplies and Services,E,Equip't Furniture n Materials,EA,02/04/2014,PAY00652480,CICL,City Clean,373.5,Revenue,Alpha Workwear Direct Ltd
Brighton & Hove City Council,http://statistics.data.gov.uk/id/local-authority/00ML,Environment & Regulatory Serv,BVAERS,Street Cleansing,CLE,Supplies and Services,E,Equip't Furniture n Materials,EA,09/04/2014,PAY00654863,CICL,City Clean,570,Revenue,Alpha Workwear Direct Ltd
Brighton & Hove City Council,http://statistics.data.gov.uk/id/local-authority/00ML,Adult Social Care,BVASOC,ASC Learning Disabilities,ALD,Transport Related,D,Contract Hire n Operating Leas,DB,25/04/2014,PAY00658897,SUPE,Supported Employment,228.02,Revenue,Alphabet (UK) Fleet Management Ltd
Brighton & Hove City Council,http://statistics.data.gov.uk/id/local-authority/00ML,Adult Social Care,BVASOC,ASC Physical Support,PHY,Transport Related,D,Contract Hire n Operating Leas,DB,25/04/2014,PAY00658897,DAYS,Day Services,200.26,Revenue,Alphabet (UK) Fleet Management Ltd
Brighton & Hove City Council,http://statistics.data.gov.uk/id/local-authority/00ML,Adult Social Care,BVASOC,ASC Physical Support,PHY,Transport Related,D,Contract Hire n Operating Leas,DB,25/04/2014,PAY00658897,RCOP,Resource Centres Older People,511.81,Revenue,Alphabet (UK) Fleet Management Ltd
Brighton & Hove City Council,http://statistics.data.gov.uk/id/local-authority/00ML,Adult Social Care,BVASOC,Hsing Welfare,HGW,Transport Related,D,Contract Hire n Operating Leas,DB,25/04/2014,PAY00658897,ASIT,Assessment and SIT,270.32,Revenue,Alphabet (UK) Fleet Management Ltd
Brighton & Hove City Council,http://statistics.data.gov.uk/id/local-authority/00ML,Adult Social Care,BVASOC,Social Care Activities,ACM,Transport Related,D,Contract Hire n Operating Leas,DB,25/04/2014,PAY00658897,ASIT,Assessment and SIT,286.13,Revenue,Alphabet (UK) Fleet Management Ltd
Brighton & Hove City Council,http://statistics.data.gov.uk/id/local-authority/00ML,Adult Social Care,BVASOC,Social Care Activities,ACM,Transport Related,D,Contract Hire n Operating Leas,DB,25/04/2014,PAY00658897,SPFT,S75 SPFT,172.67,Revenue,Alphabet (UK) Fleet Management Ltd
Brighton & Hove City Council,http://statistics.data.gov.uk/id/local-authority/00ML,Children`s & Education Serv,BVAEDU,Child Srvcs Com and Scl Work,FCW,Transport Related,D,Contract Hire n Operating Leas,DB,25/04/2014,PAY00658897,SOCK,Social Work,557.07,Revenue,Alphabet (UK) Fleet Management Ltd
Brighton & Hove City Council,http://statistics.data.gov.uk/id/local-authority/00ML,Children`s & Education Serv,BVAEDU,Child Srvcs Leaving Care,FAL,Transport Related,D,Contract Hire n Operating Leas,DB,25/04/2014,PAY00658897,CHIC,Children In Care,165.54,Revenue,Alphabet (UK) Fleet Management Ltd
Brighton & Hove City Council,http://statistics.data.gov.uk/id/local-authority/00ML,Children`s & Education Serv,BVAEDU,Child Srvcs - Other Fam Supp,FFX,Transport Related,D,Contract Hire n Operating Leas,DB,25/04/2014,PAY00658897,DISS,Disability Services,298.84,Revenue,Alphabet (UK) Fleet Management Ltd
Brighton & Hove City Council,http://statistics.data.gov.uk/id/local-authority/00ML,Children`s & Education Serv,BVAEDU,Support Services (SSC),PPT,Transport Related,D,Contract Hire n Operating Leas,DB,25/04/2014,PAY00658897,OEDS,Other Education Support,741.83,Revenue,Alphabet (UK) Fleet Management Ltd
Brighton & Hove City Council,http://statistics.data.gov.uk/id/local-authority/00ML,Highways and Transportation,BVAHRT,Parking Services,PRK,Transport Related,D,Contract Hire n Operating Leas,DB,25/04/2014,PAY00658897,PARK,Parking,381.3,Revenue,Alphabet (UK) Fleet Management Ltd
Brighton & Hove City Council,http://statistics.data.gov.uk/id/local-authority/00ML,Housing General Fund,BVAHOG,Homelessness,HML,Transport Related,D,Contract Hire n Operating Leas,DB,25/04/2014,PAY00658897,TAAS,Temp Accom and Allocations,400.21,Revenue,Alphabet (UK) Fleet Management Ltd
Brighton & Hove City Council,http://statistics.data.gov.uk/id/local-authority/00ML,Housing Revenue Account,BVAHOU,Hsing Management - HRA,HGM,Transport Related,D,Contract Hire n Operating Leas,DB,25/04/2014,PAY00658897,HTEN,Tenancy Services,163.06,Revenue,Alphabet (UK) Fleet Management Ltd
Brighton & Hove City Council,http://statistics.data.gov.uk/id/local-authority/00ML,Housing Revenue Account,BVAHOU,Hsing Strategy - HRA,HGT,Transport Related,D,Contract Hire n Operating Leas,DB,25/04/2014,PAY00658897,HSTR,Housing Strategy,248.62,Revenue,Alphabet (UK) Fleet Management Ltd
Brighton & Hove City Council,http://statistics.data.gov.uk/id/local-authority/00ML,Adult Social Care,BVASOC,S Svcs - Physical Disability,PDY,Supplies and Services,E,Equip't Furniture n Materials,EA,04/04/2014,PAY00653114,SSCT,S75 SCT,598.54,Revenue,Alsford Timber Ltd
Brighton & Hove City Council,http://statistics.data.gov.uk/id/local-authority/00ML,Children`s & Education Serv,BVAEDU,Child Srvcs - Yth Offender Tm,FYY,Supplies and Services,E,Equip't Furniture n Materials,EA,09/04/2014,PAY00654687,YOTS,Youth Service,546.26,Revenue,Altodigital Networks Ltd
Brighton & Hove City Council,http://statistics.data.gov.uk/id/local-authority/00ML,Children`s & Education Serv,BVAEDU,Ed EY Central,EAE,Supplies and Services,E,Print Stat & Gen Office Exps,ED,09/04/2014,PAY00654687,EYRS,Early Years,85.1,Revenue,Altodigital Networks Ltd
Brighton & Hove City Council,http://statistics.data.gov.uk/id/local-authority/00ML,Children`s & Education Serv,BVAEDU,Ed Srvcs YP Youth Srvcs,ENY,Supplies and Services,E,Print Stat & Gen Office Exps,ED,09/04/2014,PAY00654687,YOTS,Youth Service,67.32,Revenue,Altodigital Networks Ltd
Brighton & Hove City Council,http://statistics.data.gov.uk/id/local-authority/00ML,Central Support and Overheads,BVACEN,Support Services (SSC),PPT,Supplies and Services,E,Communications n Computing,EH,16/04/2014,PAY00656683,ICTA,ICT,74400,Revenue,Altodigital Networks Ltd
Brighton & Hove City Council,http://statistics.data.gov.uk/id/local-authority/00ML,Central Support and Overheads,BVACEN,Support Services (SSC),PPT,Supplies and Services,E,Communications n Computing,EH,25/04/2014,PAY00658912,ICTA,ICT,49318.05,Revenue,Altodigital Networks Ltd
Brighton & Hove City Council,http://statistics.data.gov.uk/id/local-authority/00ML,Housing Revenue Account,BVAHOU,Hsing Management - HRA,HGM,Supplies and Services,E,Services,EF,02/04/2014,PAY00651951,HIII,Income Involvement Improvement,2925.8,Revenue,AM Fire & Security Group
Brighton & Hove City Council,http://statistics.data.gov.uk/id/local-authority/00ML,Highways and Transportation,BVAHRT,Parking Services,PRK,Supplies and Services,E,Services,EF,09/04/2014,PAY00654401,HIGH,Highways,749.54,Revenue,AM Fire & Security Group
Brighton & Hove City Council,http://statistics.data.gov.uk/id/local-authority/00ML,Highways and Transportation,BVAHRT,Parking Services,PRK,Premises Related,C,Repair Maint n Alterations,CA,30/04/2014,PAY00659450,PARK,Parking,1944.19,Revenue,AM Fire & Security Group
Brighton & Hove City Council,http://statistics.data.gov.uk/id/local-authority/00ML,Housing General Fund,BVAHOG,Homelessness,HML,Supplies and Services,E,Services,EF,30/04/2014,PAY00659450,HOPT,Housing Options,94,Revenue,AM Fire & Security Group
Brighton & Hove City Council,http://statistics.data.gov.uk/id/local-authority/00ML,Planning and Development,BVAPLA,Economic Development,ECD,Supplies and Services,E,Grants n Subscriptions,EK,04/04/2014,PAY00653092,CMNY,Communities and Equalities,6500,Revenue,Amaze Brighton & Hove
Brighton & Hove City Council,http://statistics.data.gov.uk/id/local-authority/00ML,Planning and Development,BVAPLA,Economic Development,ECD,Supplies and Services,E,Grants n Subscriptions,EK,09/04/2014,PAY00654136,CMNY,Communities and Equalities,1250,Revenue,Amaze Brighton & Hove
Brighton & Hove City Council,http://statistics.data.gov.uk/id/local-authority/00ML,Non I&E,BVANON,CAP Housing Services GF,4HG,Capital Grants,PF,Capital Grants,PFL5,02/04/2014,PAY00652154,PSHG,Private Sector Housing,2766.48,Capital,Amber
Brighton & Hove City Council,http://statistics.data.gov.uk/id/local-authority/00ML,Non I&E,BVANON,CAP Housing Services GF,4HG,Capital Grants,PF,Capital Grants,PFL5,04/04/2014,PAY00653608,PSHG,Private Sector Housing,3247.92,Capital,Amber
Brighton & Hove City Council,http://statistics.data.gov.uk/id/local-authority/00ML,Non I&E,BVANON,CAP Transport,4TR,New Construction n Conversion,PB,New Construction n Conversion,PBL5,09/04/2014,PAY00655095,HWEN,Highways Engineering,3950.31,Capital,Amberol Ltd
Brighton & Hove City Council,http://statistics.data.gov.uk/id/local-authority/00ML,Cultural and Related Serv,BVACUL,Management Services (DEC),MGT,Supplies and Services,E,Equip't Furniture n Materials,EA,16/04/2014,PAY00656641,CIPK,City Parks,868.55,Revenue,Amethyst Horticulture Ltd
Brighton & Hove City Council,http://statistics.data.gov.uk/id/local-authority/00ML,Non I&E,BVANON,CAP Other Env Services,4EV,New Construction n Conversion,PB,New Construction n Conversion,PBL5,09/04/2014,PAY00654143,PROP,Property and Design,2261.43,Capital,Amey OW Limited
Brighton & Hove City Council,http://statistics.data.gov.uk/id/local-authority/00ML,Central Support and Overheads,BVACEN,Support Services (SSC),PPT,Supplies and Services,E,Miscellaneous Expenses,EM,11/04/2014,PAY00655288,BIPR,Bulk Insurance Premia,93,Revenue,Amey OW Limited
Brighton & Hove City Council,http://statistics.data.gov.uk/id/local-authority/00ML,Highways and Transportation,BVAHRT,Highways and Roads - Mntnce,HRM,Supplies and Services,E,Services,EF,11/04/2014,PAY00655288,HWEN,Highways Engineering,1749.98,Revenue,Amey OW Limited
Brighton & Hove City Council,http://statistics.data.gov.uk/id/local-authority/00ML,Highways and Transportation,BVAHRT,Management Services (DEC),MGT,Supplies and Services,E,Services,EF,11/04/2014,PAY00655288,HOTR,Head of Transport,1110.25,Revenue,Amey OW Limited
Brighton & Hove City Council,http://statistics.data.gov.uk/id/local-authority/00ML,Non I&E,BVANON,CAP Other Env Services,4EV,New Construction n Conversion,PB,New Construction n Conversion,PBL5,11/04/2014,PAY00655288,PROP,Property and Design,6454.98,Capital,Amey OW Limited
Brighton & Hove City Council,http://statistics.data.gov.uk/id/local-authority/00ML,Non I&E,BVANON,CAP Transport,4TR,New Construction n Conversion,PB,New Construction n Conversion,PBL5,11/04/2014,PAY00655288,HWEN,Highways Engineering,45384.92,Capital,Amey OW Limited
Brighton & Hove City Council,http://statistics.data.gov.uk/id/local-authority/00ML,Highways and Transportation,BVAHRT,Highways and Roads - Mntnce,HRM,Supplies and Services,E,Services,EF,17/04/2014,PAY00657150,HWEN,Highways Engineering,1536.54,Revenue,Amey OW Limited
Brighton & Hove City Council,http://statistics.data.gov.uk/id/local-authority/00ML,Non I&E,BVANON,CAP Transport,4TR,New Construction n Conversion,PB,New Construction n Conversion,PBL5,17/04/2014,PAY00657150,HWEN,Highways Engineering,4178.31,Capital,Amey OW Limited
Brighton & Hove City Council,http://statistics.data.gov.uk/id/local-authority/00ML,Children`s & Education Serv,BVAEDU,Ed EY PVI,ENP,Supplies and Services,E,Grants n Subscriptions,EK,04/04/2014,PAY00653475,EYRS,Early Years,10312,Revenue,Amigos Pre-School Playgroup
Brighton & Hove City Council,http://statistics.data.gov.uk/id/local-authority/00ML,Children`s & Education Serv,BVAEDU,Ed EY PVI,ENP,Supplies and Services,E,Grants n Subscriptions,EK,09/04/2014,PAY00654509,EYRS,Early Years,1205,Revenue,Amigos Pre-School Playgroup
Brighton & Hove City Council,http://statistics.data.gov.uk/id/local-authority/00ML,Non I&E,BVANON,CAP Social Services,4RV,Capital Grants,PF,Capital Grants,PFL5,02/04/2014,PAY00651952,COMM,Commissioning,10110,Capital,Anchor Trust
Brighton & Hove City Council,http://statistics.data.gov.uk/id/local-authority/00ML,Housing General Fund,BVAHOG,Hsing Welfare,HGW,Transfer Payments,G,Supporting People,GF,30/04/2014,PAY00659391,SUPP,Supporting People,2976.92,Revenue,Anchor Trust Rent Account
Brighton & Hove City Council,http://statistics.data.gov.uk/id/local-authority/00ML,Adult Social Care,BVASOC,ASC Physical Support,PHY,Third Party Payments,F,Other Establishments,FH,09/04/2014,PAY00655001,PHYS,Physical Support,3180,Revenue,Anglia Retirement Homes Ltd T/A St Mary`s Court
Brighton & Hove City Council,http://statistics.data.gov.uk/id/local-authority/00ML,Children`s & Education Serv,BVAEDU,Ed EY PVI,ENP,Supplies and Services,E,Grants n Subscriptions,EK,04/04/2014,PAY00653680,EYRS,Early Years,18100,Revenue,Angmering Day Nurseries Ltd
Brighton & Hove City Council,http://statistics.data.gov.uk/id/local-authority/00ML,Cultural and Related Serv,BVACUL,Culture and Heritage,CHG,Supplies and Services,E,Equip't Furniture n Materials,EA,11/04/2014,PAY00656081,RPMU,Royal Pavilion and Museums,11000,Revenue,Antenna Audio Ltd
Brighton & Hove City Council,http://statistics.data.gov.uk/id/local-authority/00ML,Non I&E,BVANON,CAP Social Services,4RV,New Construction n Conversion,PB,New Construction n Conversion,PBL5,04/04/2014,PAY00653957,DAYS,Day Services,7900,Capital,Antony Ashbee Landscapes
Brighton & Hove City Council,http://statistics.data.gov.uk/id/local-authority/00ML,Cultural and Related Serv,BVACUL,Culture and Heritage,CHG,Supplies and Services,E,Services,EF,11/04/2014,PAY00655868,RPMU,Royal Pavilion and Museums,2221,Revenue,Apple Retail UK LTD
Brighton & Hove City Council,http://statistics.data.gov.uk/id/local-authority/00ML,Cultural and Related Serv,BVACUL,Culture and Heritage,CHG,Supplies and Services,E,Communications n Computing,EH,25/04/2014,PAY00658956,RPMU,Royal Pavilion and Museums,1176,Revenue,Apple Retail UK LTD
Brighton & Hove City Council,http://statistics.data.gov.uk/id/local-authority/00ML,Housing General Fund,BVAHOG,Homelessness,HML,Premises Related,C,Rents Payable,CC,09/04/2014,PAY00654681,TAAS,Temp Accom and Allocations,765,Revenue,Applegate Properties Ltd
Brighton & Hove City Council,http://statistics.data.gov.uk/id/local-authority/00ML,Housing General Fund,BVAHOG,Homelessness,HML,Premises Related,C,Rents Payable,CC,11/04/2014,PAY00655802,TAAS,Temp Accom and Allocations,1200,Revenue,Applegate Properties Ltd
Brighton & Hove City Council,http://statistics.data.gov.uk/id/local-authority/00ML,Highways and Transportation,BVAHRT,Parking Services,PRK,Supplies and Services,E,Print Stat & Gen Office Exps,ED,02/04/2014,PAY00652441,PARK,Parking,3809.4,Revenue,APS Aegis Limited
Brighton & Hove City Council,http://statistics.data.gov.uk/id/local-authority/00ML,Highways and Transportation,BVAHRT,Parking Services,PRK,Premises Related,C,Repair Maint n Alterations,CA,30/04/2014,PAY00659781,PARK,Parking,329.8,Revenue,APS Aegis Limited
Brighton & Hove City Council,http://statistics.data.gov.uk/id/local-authority/00ML,Highways and Transportation,BVAHRT,Parking Services,PRK,Premises Related,C,Repair Maint n Alterations,CA,30/04/2014,PAY00659397,PARK,Parking,1685.66,Revenue,APT Skidata Ltd
Brighton & Hove City Council,http://statistics.data.gov.uk/id/local-authority/00ML,Highways and Transportation,BVAHRT,Parking Services,PRK,Supplies and Services,E,Equip't Furniture n Materials,EA,30/04/2014,PAY00659397,PARK,Parking,16161.4,Revenue,APT Skidata Ltd
Brighton & Hove City Council,http://statistics.data.gov.uk/id/local-authority/00ML,Highways and Transportation,BVAHRT,Parking Services,PRK,Supplies and Services,E,Services,EF,30/04/2014,PAY00659397,HIGH,Highways,231,Revenue,APT Skidata Ltd
Brighton & Hove City Council,http://statistics.data.gov.uk/id/local-authority/00ML,Central Support and Overheads,BVACEN,Support Services (SSC),PPT,Supplies and Services,E,Print Stat & Gen Office Exps,ED,11/04/2014,PAY00655322,LIFE,Life Events,438,Revenue,AquAid (West sussex) 
Brighton & Hove City Council,http://statistics.data.gov.uk/id/local-authority/00ML,Children`s & Education Serv,BVAEDU,Ed EY Central,EAE,Supplies and Services,E,Catering,EB,11/04/2014,PAY00655322,EYRS,Early Years,39.25,Revenue,AquAid (West sussex) 
Brighton & Hove City Council,http://statistics.data.gov.uk/id/local-authority/00ML,Children`s & Education Serv,BVAEDU,Ed Special Ed,EKE,Supplies and Services,E,Catering,EB,11/04/2014,PAY00655322,SENS,Special Educational Needs,13.78,Revenue,AquAid (West sussex) 
Brighton & Hove City Council,http://statistics.data.gov.uk/id/local-authority/00ML,Children`s & Education Serv,BVAEDU,Ed EY Central,EAE,Premises Related,C,Repair Maint n Alterations,CA,04/04/2014,PAY00653764,EYRS,Early Years,2574.6,Revenue,Arbworx Ltd
Brighton & Hove City Council,http://statistics.data.gov.uk/id/local-authority/00ML,Children`s & Education Serv,BVAEDU,Ed EY Central,EAE,Premises Related,C,Repair Maint n Alterations,CA,09/04/2014,PAY00654853,EYRS,Early Years,1547,Revenue,Arbworx Ltd
Brighton & Hove City Council,http://statistics.data.gov.uk/id/local-authority/00ML,Children`s & Education Serv,BVAEDU,Ed EY Central,EAE,Supplies and Services,E,Equip't Furniture n Materials,EA,09/04/2014,PAY00654853,EYRS,Early Years,1426.55,Revenue,Arbworx Ltd
Brighton & Hove City Council,http://statistics.data.gov.uk/id/local-authority/00ML,Children`s & Education Serv,BVAEDU,Ed EY PVI,ENP,Supplies and Services,E,Grants n Subscriptions,EK,23/04/2014,PAY00658326,EYRS,Early Years,780,Revenue,Arbworx Ltd
Brighton & Hove City Council,http://statistics.data.gov.uk/id/local-authority/00ML,Children`s & Education Serv,BVAEDU,Ed EY PVI,ENP,Supplies and Services,E,Intrnl Rchrgs Supplies and Svs,HJE,23/04/2014,PAY00658326,EYRS,Early Years,8564,Revenue,Arbworx Ltd
Brighton & Hove City Council,http://statistics.data.gov.uk/id/local-authority/00ML,Children`s & Education Serv,BVAEDU,Child Srvcs - Residential Svcs,FLR,Third Party Payments,F,Other Establishments,FH,02/04/2014,PAY00651947,AVFM,Agency Placements\VFM,38171.43,Revenue,ARC Adventure (Sussex) Ltd
Brighton & Hove City Council,http://statistics.data.gov.uk/id/local-authority/00ML,Children`s & Education Serv,BVAEDU,Child Srvcs - Fostering,FLF,Third Party Payments,F,Other Establishments,FH,25/04/2014,PAY00658663,CHIC,Children In Care,1000,Revenue,ARC Adventure (Sussex) Ltd
Brighton & Hove City Council,http://statistics.data.gov.uk/id/local-authority/00ML,Children`s & Education Serv,BVAEDU,Child Srvcs - Residential Svcs,FLR,Third Party Payments,F,Other Establishments,FH,30/04/2014,PAY00659444,AVFM,Agency Placements\VFM,46400,Revenue,ARC Adventure (Sussex) Ltd
Brighton & Hove City Council,http://statistics.data.gov.uk/id/local-authority/00ML,Cultural and Related Serv,BVACUL,Recreation and Sport,REC,Supplies and Services,E,Equip't Furniture n Materials,EA,09/04/2014,PAY00655039,SDEV,Sports Development,550,Revenue,Arc172 Ltd
Brighton & Hove City Council,http://statistics.data.gov.uk/id/local-authority/00ML,Adult Social Care,BVASOC,ASC Memory Cognition Support,MEM,Third Party Payments,F,Other Establishments,FH,17/04/2014,PAY00657164,COGN,Memory Cognition Support,4696.32,Revenue,Archmore Care Services Ltd T/A Birchwood Grove NH
Brighton & Hove City Council,http://statistics.data.gov.uk/id/local-authority/00ML,Adult Social Care,BVASOC,ASC Memory Cognition Support,MEM,Customer n Client Receipts,M,Fees n Charges,MB,17/04/2014,PAY00657164,COGN,Memory Cognition Support,-877.94,Revenue,Archmore Care Services Ltd T/A Birchwood Grove NH
Brighton & Hove City Council,http://statistics.data.gov.uk/id/local-authority/00ML,Central Support and Overheads,BVACEN,Support Services (SSC),PPT,Supplies and Services,E,Equip't Furniture n Materials,EA,17/04/2014,PAY00657573,OEDS,Other Education Support,456.4,Revenue,Arcool Ltd
Brighton & Hove City Council,http://statistics.data.gov.uk/id/local-authority/00ML,Adult Social Care,BVASOC,S Svcs - Older People Svcs,PPL,Supplies and Services,E,Equip't Furniture n Materials,EA,02/04/2014,PAY00651933,RCOP,Resource Centres Older People,371.77,Revenue,Argos Business Solutions Ltd
Brighton & Hove City Council,http://statistics.data.gov.uk/id/local-authority/00ML,Adult Social Care,BVASOC,S Svcs - Older People Svcs,PPL,Supplies and Services,E,Equip't Furniture n Materials,EA,09/04/2014,PAY00654383,RCOP,Resource Centres Older People,284.96,Revenue,Argos Business Solutions Ltd
Brighton & Hove City Council,http://statistics.data.gov.uk/id/local-authority/00ML,Children`s & Education Serv,BVAEDU,Child Srvcs Leaving Care,FAL,Transfer Payments,G,Other Transfer Payments,GD,11/04/2014,PAY00655435,CHIC,Children In Care,673.36,Revenue,Argos Business Solutions Ltd
Brighton & Hove City Council,http://statistics.data.gov.uk/id/local-authority/00ML,Children`s & Education Serv,BVAEDU,Child Srvcs - Othr LAC Svcs,FLX,Transfer Payments,G,Other Transfer Payments,GD,11/04/2014,PAY00655435,CHIC,Children In Care,257.45,Revenue,Argos Business Solutions Ltd
Brighton & Hove City Council,http://statistics.data.gov.uk/id/local-authority/00ML,Housing General Fund,BVAHOG,Hsing Benefits,HGB,Transfer Payments,G,Other Transfer Payments,GD,11/04/2014,PAY00655435,REVS,Revenues and Benefits,4324.87,Revenue,Argos Business Solutions Ltd
Brighton & Hove City Council,http://statistics.data.gov.uk/id/local-authority/00ML,Adult Social Care,BVASOC,ASC Physical Support,PHY,Supplies and Services,E,Equip't Furniture n Materials,EA,25/04/2014,PAY00658658,RCOP,Resource Centres Older People,313.81,Revenue,Argos Business Solutions Ltd
Brighton & Hove City Council,http://statistics.data.gov.uk/id/local-authority/00ML,Children`s & Education Serv,BVAEDU,Child Srvcs Leaving Care,FAL,Transfer Payments,G,Other Transfer Payments,GD,25/04/2014,PAY00658658,CHIC,Children In Care,211.92,Revenue,Argos Business Solutions Ltd
Brighton & Hove City Council,http://statistics.data.gov.uk/id/local-authority/00ML,Adult Social Care,BVASOC,ASC Physical Support,PHY,Supplies and Services,E,Equip't Furniture n Materials,EA,30/04/2014,PAY00659427,RCOP,Resource Centres Older People,254.94,Revenue,Argos Business Solutions Ltd
Brighton & Hove City Council,http://statistics.data.gov.uk/id/local-authority/00ML,Non-BHC Organisations,BVANON,Trusts,TRT,Supplies and Services,E,Grants n Subscriptions,EK,24/04/2014,PAY502083,NBHC,Non Council,325.47,Revenue,Argos Distributors Ltd
Brighton & Hove City Council,http://statistics.data.gov.uk/id/local-authority/00ML,Non-BHC Organisations,BVANON,Trusts,TRT,Supplies and Services,E,Grants n Subscriptions,EK,24/04/2014,PAY502084,NBHC,Non Council,453.88,Revenue,Argos Distributors Ltd
Brighton & Hove City Council,http://statistics.data.gov.uk/id/local-authority/00ML,Cultural and Related Serv,BVACUL,Open Spaces,PEN,Third Party Payments,F,Private Contractors,FJ,16/04/2014,PAY00656978,CIPK,City Parks,515,Revenue,Arrow Security Shutters Ltd
Brighton & Hove City Council,http://statistics.data.gov.uk/id/local-authority/00ML,Adult Social Care,BVASOC,ASC Learning Disabilities,ALD,Third Party Payments,F,Other Establishments,FH,09/04/2014,PAY00654745,LDIS,Learning Disabilities,78141.52,Revenue,Arundel Domiciliary Care Services
Brighton & Hove City Council,http://statistics.data.gov.uk/id/local-authority/00ML,Adult Social Care,BVASOC,ASC Learning Disabilities,ALD,Customer n Client Receipts,M,Fees n Charges,MB,09/04/2014,PAY00654745,LDIS,Learning Disabilities,-544,Revenue,Arundel Domiciliary Care Services
Brighton & Hove City Council,http://statistics.data.gov.uk/id/local-authority/00ML,Adult Social Care,BVASOC,ASC Learning Disabilities,ALD,Third Party Payments,F,Other Establishments,FH,11/04/2014,PAY00655844,LDIS,Learning Disabilities,6120,Revenue,Arundel Domiciliary Care Services
Brighton & Hove City Council,http://statistics.data.gov.uk/id/local-authority/00ML,Adult Social Care,BVASOC,ASC Learning Disabilities,ALD,Customer n Client Receipts,M,Fees n Charges,MB,11/04/2014,PAY00655844,LDIS,Learning Disabilities,-318.35,Revenue,Arundel Domiciliary Care Services
Brighton & Hove City Council,http://statistics.data.gov.uk/id/local-authority/00ML,Non I&E,BVANON,CAP Social Services,4RV,New Construction n Conversion,PB,New Construction n Conversion,PBL5,09/04/2014,PAY00654723,PROP,Property and Design,7735,Capital,Asbestos Damage Limitation Ltd
Brighton & Hove City Council,http://statistics.data.gov.uk/id/local-authority/00ML,Adult Social Care,BVASOC,ASC Learning Disabilities,ALD,Third Party Payments,F,Other Establishments,FH,09/04/2014,PAY00654149,LDIS,Learning Disabilities,4486.2,Revenue,ASD Unique Services LLP
Brighton & Hove City Council,http://statistics.data.gov.uk/id/local-authority/00ML,Adult Social Care,BVASOC,ASC Learning Disabilities,ALD,Customer n Client Receipts,M,Fees n Charges,MB,09/04/2014,PAY00654149,LDIS,Learning Disabilities,-318.35,Revenue,ASD Unique Services LLP
Brighton & Hove City Council,http://statistics.data.gov.uk/id/local-authority/00ML,Adult Social Care,BVASOC,ASC Learning Disabilities,ALD,Third Party Payments,F,Other Establishments,FH,16/04/2014,PAY00656317,LDIS,Learning Disabilities,4486.2,Revenue,ASD Unique Services LLP
Brighton & Hove City Council,http://statistics.data.gov.uk/id/local-authority/00ML,Adult Social Care,BVASOC,ASC Learning Disabilities,ALD,Customer n Client Receipts,M,Fees n Charges,MB,16/04/2014,PAY00656317,LDIS,Learning Disabilities,-319.4,Revenue,ASD Unique Services LLP
Brighton & Hove City Council,http://statistics.data.gov.uk/id/local-authority/00ML,Adult Social Care,BVASOC,ASC Memory Cognition Support,MEM,Third Party Payments,F,Other Establishments,FH,11/04/2014,PAY00655409,COGN,Memory Cognition Support,4964.87,Revenue,Ashdown NH - Newcare Homes Ltd
Brighton & Hove City Council,http://statistics.data.gov.uk/id/local-authority/00ML,Adult Social Care,BVASOC,ASC Memory Cognition Support,MEM,Customer n Client Receipts,M,Fees n Charges,MB,11/04/2014,PAY00655409,COGN,Memory Cognition Support,-995.75,Revenue,Ashdown NH - Newcare Homes Ltd
Brighton & Hove City Council,http://statistics.data.gov.uk/id/local-authority/00ML,Adult Social Care,BVASOC,ASC Learning Disabilities,ALD,Third Party Payments,F,Other Establishments,FH,09/04/2014,PAY00654815,LDIS,Learning Disabilities,2974,Revenue,Ashmeadows House Ltd
Brighton & Hove City Council,http://statistics.data.gov.uk/id/local-authority/00ML,Adult Social Care,BVASOC,ASC Learning Disabilities,ALD,Customer n Client Receipts,M,Fees n Charges,MB,09/04/2014,PAY00654815,LDIS,Learning Disabilities,-180,Revenue,Ashmeadows House Ltd
Brighton & Hove City Council,http://statistics.data.gov.uk/id/local-authority/00ML,Adult Social Care,BVASOC,ASC Memory Cognition Support,MEM,Third Party Payments,F,Other Establishments,FH,11/04/2014,PAY00655370,COGN,Memory Cognition Support,1876,Revenue,Ashton Care
Brighton & Hove City Council,http://statistics.data.gov.uk/id/local-authority/00ML,Adult Social Care,BVASOC,ASC Memory Cognition Support,MEM,Customer n Client Receipts,M,Fees n Charges,MB,11/04/2014,PAY00655370,COGN,Memory Cognition Support,-493.35,Revenue,Ashton Care
Brighton & Hove City Council,http://statistics.data.gov.uk/id/local-authority/00ML,Adult Social Care,BVASOC,ASC Mental Health Support,MHP,Third Party Payments,F,Other Establishments,FH,11/04/2014,PAY00655370,MENH,Mental Health Support,1763.36,Revenue,Ashton Care
Brighton & Hove City Council,http://statistics.data.gov.uk/id/local-authority/00ML,Adult Social Care,BVASOC,ASC Mental Health Support,MHP,Customer n Client Receipts,M,Fees n Charges,MB,11/04/2014,PAY00655370,MENH,Mental Health Support,-493.35,Revenue,Ashton Care
Brighton & Hove City Council,http://statistics.data.gov.uk/id/local-authority/00ML,Adult Social Care,BVASOC,ASC Memory Cognition Support,MEM,Third Party Payments,F,Other Establishments,FH,11/04/2014,PAY00655284,COGN,Memory Cognition Support,11081.74,Revenue,Ashton House
Brighton & Hove City Council,http://statistics.data.gov.uk/id/local-authority/00ML,Adult Social Care,BVASOC,ASC Memory Cognition Support,MEM,Customer n Client Receipts,M,Fees n Charges,MB,11/04/2014,PAY00655284,COGN,Memory Cognition Support,-1525.14,Revenue,Ashton House
Brighton & Hove City Council,http://statistics.data.gov.uk/id/local-authority/00ML,Adult Social Care,BVASOC,ASC Physical Support,PHY,Third Party Payments,F,Other Establishments,FH,11/04/2014,PAY00655284,PHYS,Physical Support,3200,Revenue,Ashton House
Brighton & Hove City Council,http://statistics.data.gov.uk/id/local-authority/00ML,Adult Social Care,BVASOC,ASC Physical Support,PHY,Customer n Client Receipts,M,Fees n Charges,MB,11/04/2014,PAY00655284,PHYS,Physical Support,-3200,Revenue,Ashton House
Brighton & Hove City Council,http://statistics.data.gov.uk/id/local-authority/00ML,Non I&E,BVANON,CAP Other Env Services,4EV,Vehicles,PE1,Vehicles,PE1L5,16/04/2014,PAY00656867,CICL,City Clean,24953.5,Capital,Ashwood Automotive Ltd
Brighton & Hove City Council,http://statistics.data.gov.uk/id/local-authority/00ML,Environment & Regulatory Serv,BVAERS,Street Cleansing,CLE,Supplies and Services,E,Equip't Furniture n Materials,EA,02/04/2014,PAY00652417,CICL,City Clean,354.69,Revenue,ASKAS
Brighton & Hove City Council,http://statistics.data.gov.uk/id/local-authority/00ML,Children`s & Education Serv,BVAEDU,Child Srvcs - Fostering,FLF,Third Party Payments,F,Other Establishments,FH,02/04/2014,PAY00651752,AVFM,Agency Placements\VFM,7520,Revenue,Asphaleia Ltd
Brighton & Hove City Council,http://statistics.data.gov.uk/id/local-authority/00ML,Children`s & Education Serv,BVAEDU,Child Srvcs - Fostering,FLF,Third Party Payments,F,Other Establishments,FH,30/04/2014,PAY00659304,AVFM,Agency Placements\VFM,5228,Revenue,Asphaleia Ltd
Brighton & Hove City Council,http://statistics.data.gov.uk/id/local-authority/00ML,Adult Social Care,BVASOC,S Svcs - Learning Disability,LDY,Third Party Payments,F,Other Establishments,FH,02/04/2014,PAY00651713,CCLD,Com Care Learning Disabilities,356.79,Revenue,Aspirations
Brighton & Hove City Council,http://statistics.data.gov.uk/id/local-authority/00ML,Adult Social Care,BVASOC,ASC Learning Disabilities,ALD,Third Party Payments,F,Other Establishments,FH,30/04/2014,PAY00659269,LDIS,Learning Disabilities,569.36,Revenue,Aspirations
Brighton & Hove City Council,http://statistics.data.gov.uk/id/local-authority/00ML,Adult Social Care,BVASOC,ASC Learning Disabilities,ALD,Customer n Client Receipts,M,Fees n Charges,MB,30/04/2014,PAY00659269,LDIS,Learning Disabilities,-93.65,Revenue,Aspirations
Brighton & Hove City Council,http://statistics.data.gov.uk/id/local-authority/00ML,Adult Social Care,BVASOC,ASC Learning Disabilities,ALD,Third Party Payments,F,Other Establishments,FH,16/04/2014,PAY00656593,LDIS,Learning Disabilities,826.2,Revenue,Aspirations Active
Brighton & Hove City Council,http://statistics.data.gov.uk/id/local-authority/00ML,Adult Social Care,BVASOC,S Svcs - Learning Disability,LDY,Third Party Payments,F,Other Establishments,FH,16/04/2014,PAY00656593,CCLD,Com Care Learning Disabilities,17045.49,Revenue,Aspirations Active
Brighton & Hove City Council,http://statistics.data.gov.uk/id/local-authority/00ML,Adult Social Care,BVASOC,S Svcs - Learning Disability,LDY,Third Party Payments,F,Other Establishments,FH,30/04/2014,PAY00659537,LDAS,LD Accommodation Services,709.83,Revenue,Aspirations Active
Brighton & Hove City Council,http://statistics.data.gov.uk/id/local-authority/00ML,Children`s & Education Serv,BVAEDU,Child Srvcs Other,FAX,Supplies and Services,E,Communications n Computing,EH,02/04/2014,PAY00652246,YOTS,Youth Service,2293,Revenue,Aspire Business Solutions Limited
Brighton & Hove City Council,http://statistics.data.gov.uk/id/local-authority/00ML,Financing & Investment I&E,BVAOEX,Non Service Costs,NVC,Capital Financing Costs,J,Interest Payable,JN,02/04/2014,PAY00651753,CFCS,Capital Financing Costs,846,Revenue,Asset Advantage Group Ltd
Brighton & Hove City Council,http://statistics.data.gov.uk/id/local-authority/00ML,Financing & Investment I&E,BVAOEX,Non Service Costs,NVC,Capital Financing Costs,J,Interest Payable,JN,04/04/2014,PAY00653120,CFCS,Capital Financing Costs,1307.04,Revenue,Asset Advantage Group Ltd
Brighton & Hove City Council,http://statistics.data.gov.uk/id/local-authority/00ML,Adult Social Care,BVASOC,S Svcs - Older People Svcs,PPL,Supplies and Services,E,Equip't Furniture n Materials,EA,16/04/2014,PAY00656881,ASIT,Assessment and SIT,285.32,Revenue,Associated Optical
Brighton & Hove City Council,http://statistics.data.gov.uk/id/local-authority/00ML,Adult Social Care,BVASOC,S Svcs - Older People Svcs,PPL,Supplies and Services,E,Equip't Furniture n Materials,EA,23/04/2014,PAY00658406,ASIT,Assessment and SIT,677.56,Revenue,Associated Optical
Brighton & Hove City Council,http://statistics.data.gov.uk/id/local-authority/00ML,Children`s & Education Serv,BVAEDU,Ed Primary Schools,EHH,Premises Related,C,Repair Maint n Alterations,CA,02/04/2014,PAY00652309,SCHL,Schools,1170,Revenue,Astound Facilities Group
Brighton & Hove City Council,http://statistics.data.gov.uk/id/local-authority/00ML,Children`s & Education Serv,BVAEDU,Child Srvcs - Other Fam Supp,FFX,Supplies and Services,E,Miscellaneous Expenses,EM,02/04/2014,PAY00651874,SFSC,Stronger Families Stronger Com,5000,Revenue,Audioactive 2
Brighton & Hove City Council,http://statistics.data.gov.uk/id/local-authority/00ML,Planning and Development,BVAPLA,Economic Development,ECD,Supplies and Services,E,Grants n Subscriptions,EK,09/04/2014,PAY00654324,CMNY,Communities and Equalities,1250,Revenue,Audioactive 2
Brighton & Hove City Council,http://statistics.data.gov.uk/id/local-authority/00ML,Children`s & Education Serv,BVAEDU,Ed Special Ed,EKE,Indirect Employees,B,Training,BM,11/04/2014,PAY00655331,SENS,Special Educational Needs,3731.25,Revenue,Auditory Verbal UK
Brighton & Hove City Council,http://statistics.data.gov.uk/id/local-authority/00ML,Central Support and Overheads,BVACEN,Support Services (SSC),PPT,Premises Related,C,Repair Maint n Alterations,CA,04/04/2014,PAY00653261,PROP,Property and Design,16458,Revenue,Austins Cradles Ltd
Brighton & Hove City Council,http://statistics.data.gov.uk/id/local-authority/00ML,Adult Social Care,BVASOC,S Svcs - Learning Disability,LDY,Third Party Payments,F,Other Establishments,FH,02/04/2014,PAY00652044,CCLD,Com Care Learning Disabilities,3102,Revenue,Autism Sussex Ltd
Brighton & Hove City Council,http://statistics.data.gov.uk/id/local-authority/00ML,Adult Social Care,BVASOC,S Svcs - Learning Disability,LDY,Customer n Client Receipts,M,Fees n Charges,MB,02/04/2014,PAY00652044,CCLD,Com Care Learning Disabilities,-114,Revenue,Autism Sussex Ltd
Brighton & Hove City Council,http://statistics.data.gov.uk/id/local-authority/00ML,Adult Social Care,BVASOC,S Svcs - Mental Health,MHT,Third Party Payments,F,Other Establishments,FH,02/04/2014,PAY00652044,ADMH,Community Care Adult MH,924,Revenue,Autism Sussex Ltd
Brighton & Hove City Council,http://statistics.data.gov.uk/id/local-authority/00ML,Adult Social Care,BVASOC,S Svcs - Physical Disability,PDY,Third Party Payments,F,Other Establishments,FH,02/04/2014,PAY00652044,CCPD,Com Care Physical Disabilities,198,Revenue,Autism Sussex Ltd
Brighton & Hove City Council,http://statistics.data.gov.uk/id/local-authority/00ML,Children`s & Education Serv,BVAEDU,Child Srvcs - Other Fam Supp,FFX,Transfer Payments,G,Other Transfer Payments,GD,02/04/2014,PAY00652044,DISS,Disability Services,865.81,Revenue,Autism Sussex Ltd
Brighton & Hove City Council,http://statistics.data.gov.uk/id/local-authority/00ML,Adult Social Care,BVASOC,ASC Learning Disabilities,ALD,Third Party Payments,F,Other Establishments,FH,09/04/2014,PAY00654573,LDIS,Learning Disabilities,1876.8,Revenue,Autism Sussex Ltd
Brighton & Hove City Council,http://statistics.data.gov.uk/id/local-authority/00ML,Adult Social Care,BVASOC,ASC Mental Health Support,MHP,Third Party Payments,F,Other Establishments,FH,09/04/2014,PAY00654573,MENH,Mental Health Support,330,Revenue,Autism Sussex Ltd
Brighton & Hove City Council,http://statistics.data.gov.uk/id/local-authority/00ML,Adult Social Care,BVASOC,S Svcs - Learning Disability,LDY,Third Party Payments,F,Other Establishments,FH,09/04/2014,PAY00654573,CCLD,Com Care Learning Disabilities,290.16,Revenue,Autism Sussex Ltd
Brighton & Hove City Council,http://statistics.data.gov.uk/id/local-authority/00ML,Children`s & Education Serv,BVAEDU,Child Srvcs - Other Fam Supp,FFX,Transfer Payments,G,Other Transfer Payments,GD,09/04/2014,PAY00654573,DISS,Disability Services,1083.76,Revenue,Autism Sussex Ltd
Brighton & Hove City Council,http://statistics.data.gov.uk/id/local-authority/00ML,Adult Social Care,BVASOC,ASC Learning Disabilities,ALD,Third Party Payments,F,Other Establishments,FH,11/04/2014,PAY00655703,LDIS,Learning Disabilities,24697.6,Revenue,Autism Sussex Ltd
Brighton & Hove City Council,http://statistics.data.gov.uk/id/local-authority/00ML,Adult Social Care,BVASOC,ASC Learning Disabilities,ALD,Customer n Client Receipts,M,Fees n Charges,MB,11/04/2014,PAY00655703,LDIS,Learning Disabilities,-1108.5,Revenue,Autism Sussex Ltd
Brighton & Hove City Council,http://statistics.data.gov.uk/id/local-authority/00ML,Adult Social Care,BVASOC,ASC Learning Disabilities,ALD,Third Party Payments,F,Other Establishments,FH,16/04/2014,PAY00656600,LDIS,Learning Disabilities,382,Revenue,Autism Sussex Ltd
Brighton & Hove City Council,http://statistics.data.gov.uk/id/local-authority/00ML,Adult Social Care,BVASOC,ASC Learning Disabilities,ALD,Customer n Client Receipts,M,Fees n Charges,MB,16/04/2014,PAY00656600,LDIS,Learning Disabilities,-52,Revenue,Autism Sussex Ltd
Brighton & Hove City Council,http://statistics.data.gov.uk/id/local-authority/00ML,Adult Social Care,BVASOC,ASC Mental Health Support,MHP,Third Party Payments,F,Other Establishments,FH,16/04/2014,PAY00656600,MENH,Mental Health Support,297,Revenue,Autism Sussex Ltd
Brighton & Hove City Council,http://statistics.data.gov.uk/id/local-authority/00ML,Adult Social Care,BVASOC,ASC Learning Disabilities,ALD,Third Party Payments,F,Other Establishments,FH,23/04/2014,PAY00658170,LDIS,Learning Disabilities,297,Revenue,Autism Sussex Ltd
Brighton & Hove City Council,http://statistics.data.gov.uk/id/local-authority/00ML,Children`s & Education Serv,BVAEDU,Child Srvcs - Fostering,FLF,Third Party Payments,F,Other Establishments,FH,17/04/2014,PAY00657848,CHIC,Children In Care,1527,Revenue,Automatic Gate Systems Ltd.
Brighton & Hove City Council,http://statistics.data.gov.uk/id/local-authority/00ML,Cultural and Related Serv,BVACUL,Culture and Heritage,CHG,Supplies and Services,E,Equip't Furniture n Materials,EA,11/04/2014,PAY00656134,RPMU,Royal Pavilion and Museums,1987,Revenue,AV & Sound Solutions
Brighton & Hove City Council,http://statistics.data.gov.uk/id/local-authority/00ML,Cultural and Related Serv,BVACUL,Culture and Heritage,CHG,Supplies and Services,E,Communications n Computing,EH,23/04/2014,PAY00658517,VENU,Venues,-25.8,Revenue,Avalon Promotions Ltd
Brighton & Hove City Council,http://statistics.data.gov.uk/id/local-authority/00ML,Cultural and Related Serv,BVACUL,Culture and Heritage,CHG,Supplies and Services,E,Equip't Furniture n Materials,EA,23/04/2014,PAY00658517,VENU,Venues,-38,Revenue,Avalon Promotions Ltd
Brighton & Hove City Council,http://statistics.data.gov.uk/id/local-authority/00ML,Cultural and Related Serv,BVACUL,Culture and Heritage,CHG,Supplies and Services,E,Miscellaneous Expenses,EM,23/04/2014,PAY00658517,VENU,Venues,-372.22,Revenue,Avalon Promotions Ltd
Brighton & Hove City Council,http://statistics.data.gov.uk/id/local-authority/00ML,Cultural and Related Serv,BVACUL,Culture and Heritage,CHG,Customer n Client Receipts,M,Fees n Charges,MB,23/04/2014,PAY00658517,VENU,Venues,-15188.95,Revenue,Avalon Promotions Ltd
Brighton & Hove City Council,http://statistics.data.gov.uk/id/local-authority/00ML,Cultural and Related Serv,BVACUL,Culture and Heritage,CHG,Customer n Client Receipts,M,Sales,MA,23/04/2014,PAY00658517,VENU,Venues,43919.79,Revenue,Avalon Promotions Ltd
Brighton & Hove City Council,http://statistics.data.gov.uk/id/local-authority/00ML,Cultural and Related Serv,BVACUL,Culture and Heritage,CHG,Supplies and Services,E,Communications n Computing,EH,30/04/2014,PAY00659988,VENU,Venues,-65.2,Revenue,Avalon Promotions Ltd
Brighton & Hove City Council,http://statistics.data.gov.uk/id/local-authority/00ML,Cultural and Related Serv,BVACUL,Culture and Heritage,CHG,Supplies and Services,E,Equip't Furniture n Materials,EA,30/04/2014,PAY00659988,VENU,Venues,-25.5,Revenue,Avalon Promotions Ltd
Brighton & Hove City Council,http://statistics.data.gov.uk/id/local-authority/00ML,Cultural and Related Serv,BVACUL,Culture and Heritage,CHG,Supplies and Services,E,Miscellaneous Expenses,EM,30/04/2014,PAY00659988,VENU,Venues,-265.83,Revenue,Avalon Promotions Ltd
Brighton & Hove City Council,http://statistics.data.gov.uk/id/local-authority/00ML,Cultural and Related Serv,BVACUL,Culture and Heritage,CHG,Customer n Client Receipts,M,Fees n Charges,MB,30/04/2014,PAY00659988,VENU,Venues,-9804.17,Revenue,Avalon Promotions Ltd
Brighton & Hove City Council,http://statistics.data.gov.uk/id/local-authority/00ML,Cultural and Related Serv,BVACUL,Culture and Heritage,CHG,Customer n Client Receipts,M,Sales,MA,30/04/2014,PAY00659988,VENU,Venues,43518.75,Revenue,Avalon Promotions Ltd
Brighton & Hove City Council,http://statistics.data.gov.uk/id/local-authority/00ML,Adult Social Care,BVASOC,S Svcs - Older People Svcs,PPL,Third Party Payments,F,Other Establishments,FH,02/04/2014,PAY00652755,CCOP,Community Care Older People,2156.28,Revenue,Avery Homes Nuneaton Ltd
Brighton & Hove City Council,http://statistics.data.gov.uk/id/local-authority/00ML,Adult Social Care,BVASOC,S Svcs - Older People Svcs,PPL,Customer n Client Receipts,M,Fees n Charges,MB,02/04/2014,PAY00652755,CCOP,Community Care Older People,-490.9,Revenue,Avery Homes Nuneaton Ltd
Brighton & Hove City Council,http://statistics.data.gov.uk/id/local-authority/00ML,Central Support and Overheads,BVACEN,Support Services (SSC),PPT,Supplies and Services,E,Miscellaneous Expenses,EM,23/04/2014,PAY00658030,ICTA,ICT,1000,Revenue,Aviation Projects Ltd
Brighton & Hove City Council,http://statistics.data.gov.uk/id/local-authority/00ML,Housing General Fund,BVAHOG,Homelessness,HML,Premises Related,C,Rents Payable,CC,02/04/2014,PAY00651879,TAAS,Temp Accom and Allocations,950,Revenue,Avon Estates (London) Ltd
Brighton & Hove City Council,http://statistics.data.gov.uk/id/local-authority/00ML,Housing General Fund,BVAHOG,Homelessness,HML,Premises Related,C,Rents Payable,CC,11/04/2014,PAY00655402,TAAS,Temp Accom and Allocations,600,Revenue,Avon Estates (London) Ltd
Brighton & Hove City Council,http://statistics.data.gov.uk/id/local-authority/00ML,Adult Social Care,BVASOC,ASC Physical Support,PHY,Third Party Payments,F,Other Establishments,FH,09/04/2014,PAY00655091,PHYS,Physical Support,5014.25,Revenue,Avon Lee Lodge
Brighton & Hove City Council,http://statistics.data.gov.uk/id/local-authority/00ML,Adult Social Care,BVASOC,ASC Physical Support,PHY,Customer n Client Receipts,M,Fees n Charges,MB,09/04/2014,PAY00655091,PHYS,Physical Support,-3037.61,Revenue,Avon Lee Lodge
Brighton & Hove City Council,http://statistics.data.gov.uk/id/local-authority/00ML,Adult Social Care,BVASOC,ASC Physical Support,PHY,Third Party Payments,F,Other Establishments,FH,23/04/2014,PAY00658491,PHYS,Physical Support,2600.04,Revenue,Avon Lee Lodge
Brighton & Hove City Council,http://statistics.data.gov.uk/id/local-authority/00ML,Adult Social Care,BVASOC,ASC Physical Support,PHY,Customer n Client Receipts,M,Fees n Charges,MB,23/04/2014,PAY00658491,PHYS,Physical Support,-1327.72,Revenue,Avon Lee Lodge
Brighton & Hove City Council,http://statistics.data.gov.uk/id/local-authority/00ML,Cultural and Related Serv,BVACUL,Recreation and Sport,REC,Supplies and Services,E,Miscellaneous Expenses,EM,09/04/2014,PAY00654403,SDEV,Sports Development,1244.2,Revenue,AVT Ltd
Brighton & Hove City Council,http://statistics.data.gov.uk/id/local-authority/00ML,Cultural and Related Serv,BVACUL,Culture and Heritage,CHG,Supplies and Services,E,Goods for Resale,EG,17/04/2014,PAY00657846,RPMU,Royal Pavilion and Museums,380.94,Revenue,Aynsley China Ltd
Brighton & Hove City Council,http://statistics.data.gov.uk/id/local-authority/00ML,Children`s & Education Serv,BVAEDU,Ed Ed Other LA Attrib Sch,ELA,Transport Related,D,Other Transport Costs,DG,02/04/2014,PAY00652001,OEDS,Other Education Support,34784.87,Revenue,B & H City Cabs
Brighton & Hove City Council,http://statistics.data.gov.uk/id/local-authority/00ML,Children`s & Education Serv,BVAEDU,Ed Ed Other LA Attrib Sch,ELA,Transport Related,D,Other Transport Costs,DG,09/04/2014,PAY00654481,OEDS,Other Education Support,34930.12,Revenue,B & H City Cabs
Brighton & Hove City Council,http://statistics.data.gov.uk/id/local-authority/00ML,Children`s & Education Serv,BVAEDU,Ed Ed Other LA Attrib Sch,ELA,Transport Related,D,Other Transport Costs,DG,11/04/2014,PAY00655629,OEDS,Other Education Support,35163.92,Revenue,B & H City Cabs
Brighton & Hove City Council,http://statistics.data.gov.uk/id/local-authority/00ML,Adult Social Care,BVASOC,ASC Mental Health Support,MHP,Third Party Payments,F,Other Establishments,FH,17/04/2014,PAY00657418,MENH,Mental Health Support,53,Revenue,B & H City Cabs
Brighton & Hove City Council,http://statistics.data.gov.uk/id/local-authority/00ML,Adult Social Care,BVASOC,S Svcs - Mental Health,MHT,Third Party Payments,F,Other Establishments,FH,17/04/2014,PAY00657418,ADMH,Community Care Adult MH,212,Revenue,B & H City Cabs
Brighton & Hove City Council,http://statistics.data.gov.uk/id/local-authority/00ML,Children`s & Education Serv,BVAEDU,Support Services (SSC),PPT,Transport Related,D,Public Transport,DD,25/04/2014,PAY00658832,OEDS,Other Education Support,4466.1,Revenue,B & H City Cabs
Brighton & Hove City Council,http://statistics.data.gov.uk/id/local-authority/00ML,Adult Social Care,BVASOC,ASC Physical Support,PHY,Third Party Payments,F,Other Establishments,FH,09/04/2014,PAY00654565,PHYS,Physical Support,5459.64,Revenue,B & J G Richardson Business Account
Brighton & Hove City Council,http://statistics.data.gov.uk/id/local-authority/00ML,Adult Social Care,BVASOC,ASC Physical Support,PHY,Customer n Client Receipts,M,Fees n Charges,MB,09/04/2014,PAY00654565,PHYS,Physical Support,-616.6,Revenue,B & J G Richardson Business Account
Brighton & Hove City Council,http://statistics.data.gov.uk/id/local-authority/00ML,Housing General Fund,BVAHOG,Homelessness,HML,Premises Related,C,Repair Maint n Alterations,CA,04/04/2014,PAY00653156,TAAS,Temp Accom and Allocations,545.89,Revenue,B & Q Plc
Brighton & Hove City Council,http://statistics.data.gov.uk/id/local-authority/00ML,Housing General Fund,BVAHOG,Homelessness,HML,Premises Related,C,Repair Maint n Alterations,CA,16/04/2014,PAY00656372,TAAS,Temp Accom and Allocations,260.99,Revenue,B & Q Plc
Brighton & Hove City Council,http://statistics.data.gov.uk/id/local-authority/00ML,Housing General Fund,BVAHOG,Homelessness,HML,Premises Related,C,Repair Maint n Alterations,CA,30/04/2014,PAY00659342,TAAS,Temp Accom and Allocations,393.3,Revenue,B & Q Plc
Brighton & Hove City Council,http://statistics.data.gov.uk/id/local-authority/00ML,Children`s & Education Serv,BVAEDU,Child Srvcs - Other Fam Supp,FFX,Transfer Payments,G,Other Transfer Payments,GD,16/04/2014,PAY00656910,FAMP,Families\Prevention,480,Revenue,B Starz Academy Ltd
Brighton & Hove City Council,http://statistics.data.gov.uk/id/local-authority/00ML,Housing General Fund,BVAHOG,Hsing Strat Advice and RSLs,HGR,Transport Related,D,Public Transport,DD,11/04/2014,PAY00655985,HOSS,Housing Supports Services,48.04,Revenue,B&H Action On Homelessness
Brighton & Hove City Council,http://statistics.data.gov.uk/id/local-authority/00ML,Housing General Fund,BVAHOG,Hsing Strat Advice and RSLs,HGR,Supplies and Services,E,Miscellaneous Expenses,EM,11/04/2014,PAY00655985,HOSS,Housing Supports Services,355,Revenue,B&H Action On Homelessness
Brighton & Hove City Council,http://statistics.data.gov.uk/id/local-authority/00ML,Housing General Fund,BVAHOG,Hsing Strat Advice and RSLs,HGR,Supplies and Services,E,Print Stat & Gen Office Exps,ED,11/04/2014,PAY00655985,HOSS,Housing Supports Services,5.99,Revenue,B&H Action On Homelessness
Brighton & Hove City Council,http://statistics.data.gov.uk/id/local-authority/00ML,Housing General Fund,BVAHOG,Hsing Strat Advice and RSLs,HGR,Other Grants Reimbs n Conts,L,Contributions,LC,11/04/2014,PAY00655985,HOSS,Housing Supports Services,-5.06,Revenue,B&H Action On Homelessness
Brighton & Hove City Council,http://statistics.data.gov.uk/id/local-authority/00ML,Children`s & Education Serv,BVAEDU,Child Srvcs - Fostering,FLF,Third Party Payments,F,Other Establishments,FH,09/04/2014,PAY00654811,CHIC,Children In Care,5000,Revenue,B&H Lesbian & Gay Fosterers and Adopters
Brighton & Hove City Council,http://statistics.data.gov.uk/id/local-authority/00ML,Children`s & Education Serv,BVAEDU,Child Srvcs Adoption,FAA,Supplies and Services,E,Miscellaneous Expenses,EM,02/04/2014,PAY00652016,CHIC,Children In Care,2358,Revenue,BAAF Registered Charity
Brighton & Hove City Council,http://statistics.data.gov.uk/id/local-authority/00ML,Children`s & Education Serv,BVAEDU,Child Srvcs - Fostering,FLF,Indirect Employees,B,Training,BM,11/04/2014,PAY00655643,CHIC,Children In Care,370,Revenue,BAAF Registered Charity
Brighton & Hove City Council,http://statistics.data.gov.uk/id/local-authority/00ML,Children`s & Education Serv,BVAEDU,Child Srvcs - Fostering,FLF,Direct Employees,A,Salaries,AA,16/04/2014,PAY00656541,CHIC,Children In Care,200,Revenue,BAAF Registered Charity
Brighton & Hove City Council,http://statistics.data.gov.uk/id/local-authority/00ML,Children`s & Education Serv,BVAEDU,Child Srvcs - Fostering,FLF,Supplies and Services,E,Miscellaneous Expenses,EM,16/04/2014,PAY00656541,CHIC,Children In Care,541,Revenue,BAAF Registered Charity
Brighton & Hove City Council,http://statistics.data.gov.uk/id/local-authority/00ML,Children`s & Education Serv,BVAEDU,Child Srvcs Other,FAX,Indirect Employees,B,Training,BM,16/04/2014,PAY00656541,CHIP,Child Protection,185,Revenue,BAAF Registered Charity
Brighton & Hove City Council,http://statistics.data.gov.uk/id/local-authority/00ML,Children`s & Education Serv,BVAEDU,Child Srvcs - Fostering,FLF,Supplies and Services,E,Services,EF,23/04/2014,PAY00658150,CHIC,Children In Care,370,Revenue,BAAF Registered Charity
Brighton & Hove City Council,http://statistics.data.gov.uk/id/local-authority/00ML,Children`s & Education Serv,BVAEDU,Ed Mgmt and Support Services,EMG,Supplies and Services,E,Miscellaneous Expenses,EM,04/04/2014,PAY00653956,MUSE,Music Service,500,Revenue,Babcock Learning Development Partnership LLP
Brighton & Hove City Council,http://statistics.data.gov.uk/id/local-authority/00ML,Children`s & Education Serv,BVAEDU,Ed EY PVI,ENP,Supplies and Services,E,Grants n Subscriptions,EK,04/04/2014,PAY00653254,EYRS,Early Years,10405,Revenue,Baby Ducks Playgroup
Brighton & Hove City Council,http://statistics.data.gov.uk/id/local-authority/00ML,Children`s & Education Serv,BVAEDU,Ed EY PVI,ENP,Supplies and Services,E,Grants n Subscriptions,EK,09/04/2014,PAY00654396,EYRS,Early Years,753,Revenue,Baby Ducks Playgroup
Brighton & Hove City Council,http://statistics.data.gov.uk/id/local-authority/00ML,Children`s & Education Serv,BVAEDU,Ed Special Ed,EKE,Supplies and Services,E,Equip't Furniture n Materials,EA,11/04/2014,PAY00655760,OEDS,Other Education Support,254.3,Revenue,Badger Publishing Ltd
Brighton & Hove City Council,http://statistics.data.gov.uk/id/local-authority/00ML,Cultural and Related Serv,BVACUL,Recreation and Sport,REC,Supplies and Services,E,Services,EF,02/04/2014,PAY00651890,SFAC,Sports Facilities,1894.68,Revenue,Bailey Partnership
Brighton & Hove City Council,http://statistics.data.gov.uk/id/local-authority/00ML,Cultural and Related Serv,BVACUL,Recreation and Sport,REC,Third Party Payments,F,Independent Units of Council,FA,02/04/2014,PAY00651890,SFAC,Sports Facilities,5664.57,Revenue,Bailey Partnership
Brighton & Hove City Council,http://statistics.data.gov.uk/id/local-authority/00ML,Cultural and Related Serv,BVACUL,Management Services (DEC),MGT,Supplies and Services,E,Equip't Furniture n Materials,EA,04/04/2014,PAY00653195,CIPK,City Parks,364.99,Revenue,Ball Colegrave Ltd
Brighton & Hove City Council,http://statistics.data.gov.uk/id/local-authority/00ML,Cultural and Related Serv,BVACUL,Management Services (DEC),MGT,Supplies and Services,E,Equip't Furniture n Materials,EA,09/04/2014,PAY00654299,CIPK,City Parks,660.29,Revenue,Ball Colegrave Ltd
Brighton & Hove City Council,http://statistics.data.gov.uk/id/local-authority/00ML,Cultural and Related Serv,BVACUL,Management Services (DEC),MGT,Supplies and Services,E,Equip't Furniture n Materials,EA,23/04/2014,PAY00658047,CIPK,City Parks,833.66,Revenue,Ball Colegrave Ltd
Brighton & Hove City Council,http://statistics.data.gov.uk/id/local-authority/00ML,Non I&E,BVANON,CAP Mgmnt and Suppt Services,4PT,New Construction n Conversion,PB,New Construction n Conversion,PBL5,30/04/2014,PAY00659898,ICTA,ICT,750,Capital,Ballard Chalmers Ltd
Brighton & Hove City Council,http://statistics.data.gov.uk/id/local-authority/00ML,Adult Social Care,BVASOC,ASC Learning Disabilities,ALD,Third Party Payments,F,Other Establishments,FH,09/04/2014,PAY00654728,LDIS,Learning Disabilities,7980,Revenue,Ballater House
Brighton & Hove City Council,http://statistics.data.gov.uk/id/local-authority/00ML,Adult Social Care,BVASOC,ASC Learning Disabilities,ALD,Customer n Client Receipts,M,Fees n Charges,MB,09/04/2014,PAY00654728,LDIS,Learning Disabilities,-317.3,Revenue,Ballater House
Brighton & Hove City Council,http://statistics.data.gov.uk/id/local-authority/00ML,Children`s & Education Serv,BVAEDU,Ed Mgmt and Support Services,EMG,Direct Employees,A,Salaries,AA,02/04/2014,PAY00652893,MUSE,Music Service,300,Revenue,Barbican Centre
Brighton & Hove City Council,http://statistics.data.gov.uk/id/local-authority/00ML,Adult Social Care,BVASOC,ASC Memory Cognition Support,MEM,Third Party Payments,F,Other Establishments,FH,11/04/2014,PAY00655403,COGN,Memory Cognition Support,5600,Revenue,Barchester Healthcare Homes Ltd
Brighton & Hove City Council,http://statistics.data.gov.uk/id/local-authority/00ML,Adult Social Care,BVASOC,ASC Memory Cognition Support,MEM,Customer n Client Receipts,M,Fees n Charges,MB,11/04/2014,PAY00655403,COGN,Memory Cognition Support,-486,Revenue,Barchester Healthcare Homes Ltd
Brighton & Hove City Council,http://statistics.data.gov.uk/id/local-authority/00ML,Environment & Regulatory Serv,BVAERS,Management Services (DEC),MGT,Supplies and Services,E,Services,EF,23/04/2014,PAY00658506,CICL,City Clean,12000,Revenue,Barker Langham Ltd
Brighton & Hove City Council,http://statistics.data.gov.uk/id/local-authority/00ML,Children`s & Education Serv,BVAEDU,Child Srvcs - Fostering,FLF,Third Party Payments,F,Other Establishments,FH,02/04/2014,PAY00651770,AVFM,Agency Placements\VFM,3214.68,Revenue,Barnardo`s
Brighton & Hove City Council,http://statistics.data.gov.uk/id/local-authority/00ML,Children`s & Education Serv,BVAEDU,Child Srvcs Adoption,FAA,Third Party Payments,F,Other Establishments,FH,30/04/2014,PAY00659324,CHIC,Children In Care,31534,Revenue,Barnardo`s
Brighton & Hove City Council,http://statistics.data.gov.uk/id/local-authority/00ML,Children`s & Education Serv,BVAEDU,Child Srvcs - Fostering,FLF,Third Party Payments,F,Other Establishments,FH,30/04/2014,PAY00659324,AVFM,Agency Placements\VFM,3214.68,Revenue,Barnardo`s
Brighton & Hove City Council,http://statistics.data.gov.uk/id/local-authority/00ML,Children`s & Education Serv,BVAEDU,Child Srvcs - Other Fam Supp,FFX,Transfer Payments,G,Other Transfer Payments,GD,30/04/2014,PAY00659324,DISS,Disability Services,3160,Revenue,Barnardo`s
Brighton & Hove City Council,http://statistics.data.gov.uk/id/local-authority/00ML,Cultural and Related Serv,BVACUL,Management Services (DEC),MGT,Transport Related,D,Direct Transport Costs,DA,02/04/2014,PAY00651806,CIPK,City Parks,177.46,Revenue,Barnes DAF
Brighton & Hove City Council,http://statistics.data.gov.uk/id/local-authority/00ML,Cultural and Related Serv,BVACUL,Open Spaces,PEN,Transport Related,D,Direct Transport Costs,DA,02/04/2014,PAY00651806,CIPK,City Parks,212.44,Revenue,Barnes DAF
Brighton & Hove City Council,http://statistics.data.gov.uk/id/local-authority/00ML,Environment & Regulatory Serv,BVAERS,Management Services (DEC),MGT,Transport Related,D,Direct Transport Costs,DA,02/04/2014,PAY00651806,CICL,City Clean,213.5,Revenue,Barnes DAF
Brighton & Hove City Council,http://statistics.data.gov.uk/id/local-authority/00ML,Central Support and Overheads,BVACEN,Holding Accounts,PPH,Transport Related,D,Direct Transport Costs,DA,16/04/2014,PAY00656371,CICL,City Clean,424.7,Revenue,Barnes DAF
Brighton & Hove City Council,http://statistics.data.gov.uk/id/local-authority/00ML,Cultural and Related Serv,BVACUL,Management Services (DEC),MGT,Transport Related,D,Direct Transport Costs,DA,16/04/2014,PAY00656371,CIPK,City Parks,28.88,Revenue,Barnes DAF
Brighton & Hove City Council,http://statistics.data.gov.uk/id/local-authority/00ML,Environment & Regulatory Serv,BVAERS,Management Services (DEC),MGT,Transport Related,D,Direct Transport Costs,DA,16/04/2014,PAY00656371,CICL,City Clean,329,Revenue,Barnes DAF
Brighton & Hove City Council,http://statistics.data.gov.uk/id/local-authority/00ML,Housing General Fund,BVAHOG,Homelessness,HML,Premises Related,C,Rents Payable,CC,30/04/2014,PAY00659858,TAAS,Temp Accom and Allocations,2025,Revenue,Baron Developments Ltd
Brighton & Hove City Council,http://statistics.data.gov.uk/id/local-authority/00ML,Housing General Fund,BVAHOG,Homelessness,HML,Premises Related,C,Rents Payable,CC,11/04/2014,PAY00655759,TAAS,Temp Accom and Allocations,650,Revenue,Baron Management Ltd
Brighton & Hove City Council,http://statistics.data.gov.uk/id/local-authority/00ML,Housing General Fund,BVAHOG,Homelessness,HML,Premises Related,C,Rents Payable,CC,17/04/2014,PAY00657497,TAAS,Temp Accom and Allocations,11410,Revenue,Baron Management Ltd
Brighton & Hove City Council,http://statistics.data.gov.uk/id/local-authority/00ML,Adult Social Care,BVASOC,ASC Physical Support,PHY,Third Party Payments,F,Other Establishments,FH,09/04/2014,PAY00654068,PHYS,Physical Support,3860.52,Revenue,Barons Down Nursing Home
Brighton & Hove City Council,http://statistics.data.gov.uk/id/local-authority/00ML,Adult Social Care,BVASOC,ASC Physical Support,PHY,Customer n Client Receipts,M,Fees n Charges,MB,09/04/2014,PAY00654068,PHYS,Physical Support,-1477.88,Revenue,Barons Down Nursing Home
Brighton & Hove City Council,http://statistics.data.gov.uk/id/local-authority/00ML,Adult Social Care,BVASOC,ASC Physical Support,PHY,Third Party Payments,F,Other Establishments,FH,30/04/2014,PAY00659242,PHYS,Physical Support,2354.8,Revenue,Barons Down Nursing Home
Brighton & Hove City Council,http://statistics.data.gov.uk/id/local-authority/00ML,Adult Social Care,BVASOC,ASC Physical Support,PHY,Customer n Client Receipts,M,Fees n Charges,MB,30/04/2014,PAY00659242,PHYS,Physical Support,-607.5,Revenue,Barons Down Nursing Home
Brighton & Hove City Council,http://statistics.data.gov.uk/id/local-authority/00ML,Adult Social Care,BVASOC,ASC Learning Disabilities,ALD,Third Party Payments,F,Other Establishments,FH,09/04/2014,PAY00654497,LDIS,Learning Disabilities,2070,Revenue,Barrington House Ltd
Brighton & Hove City Council,http://statistics.data.gov.uk/id/local-authority/00ML,Adult Social Care,BVASOC,ASC Learning Disabilities,ALD,Customer n Client Receipts,M,Fees n Charges,MB,09/04/2014,PAY00654497,LDIS,Learning Disabilities,-614.85,Revenue,Barrington House Ltd
Brighton & Hove City Council,http://statistics.data.gov.uk/id/local-authority/00ML,Public Health,BVAPHE,Public Health,PHE,Third Party Payments,F,Health Authorities,FC,09/04/2014,PAY00655048,PHCM,PH Commissioning,1067,Revenue,Barts Health NHS Trust
Brighton & Hove City Council,http://statistics.data.gov.uk/id/local-authority/00ML,Public Health,BVAPHE,Public Health,PHE,Third Party Payments,F,Health Authorities,FC,16/04/2014,PAY00656950,PHCM,PH Commissioning,2828.25,Revenue,Barts Health NHS Trust
Brighton & Hove City Council,http://statistics.data.gov.uk/id/local-authority/00ML,Adult Social Care,BVASOC,ASC Sensory Support,AHV,Third Party Payments,F,Other Establishments,FH,02/04/2014,PAY00652718,SORY,Sensory Support,336.86,Revenue,Beachlands Care Ltd
Brighton & Hove City Council,http://statistics.data.gov.uk/id/local-authority/00ML,Adult Social Care,BVASOC,ASC Sensory Support,AHV,Customer n Client Receipts,M,Fees n Charges,MB,02/04/2014,PAY00652718,SORY,Sensory Support,-104.14,Revenue,Beachlands Care Ltd
Brighton & Hove City Council,http://statistics.data.gov.uk/id/local-authority/00ML,Adult Social Care,BVASOC,S Svcs - Older People Svcs,PPL,Third Party Payments,F,Other Establishments,FH,02/04/2014,PAY00652718,CCOP,Community Care Older People,1235.14,Revenue,Beachlands Care Ltd
Brighton & Hove City Council,http://statistics.data.gov.uk/id/local-authority/00ML,Adult Social Care,BVASOC,S Svcs - Older People Svcs,PPL,Customer n Client Receipts,M,Fees n Charges,MB,02/04/2014,PAY00652718,CCOP,Community Care Older People,-381.86,Revenue,Beachlands Care Ltd
Brighton & Hove City Council,http://statistics.data.gov.uk/id/local-authority/00ML,Adult Social Care,BVASOC,ASC Sensory Support,AHV,Third Party Payments,F,Other Establishments,FH,23/04/2014,PAY00658419,SORY,Sensory Support,1572,Revenue,Beachlands Care Ltd
Brighton & Hove City Council,http://statistics.data.gov.uk/id/local-authority/00ML,Adult Social Care,BVASOC,ASC Sensory Support,AHV,Customer n Client Receipts,M,Fees n Charges,MB,23/04/2014,PAY00658419,SORY,Sensory Support,-495.8,Revenue,Beachlands Care Ltd
Brighton & Hove City Council,http://statistics.data.gov.uk/id/local-authority/00ML,Adult Social Care,BVASOC,ASC Mental Health Support,MHP,Third Party Payments,F,Other Establishments,FH,11/04/2014,PAY00655417,MENH,Mental Health Support,4760,Revenue,Beachside Rest Home
Brighton & Hove City Council,http://statistics.data.gov.uk/id/local-authority/00ML,Cultural and Related Serv,BVACUL,Culture and Heritage,CHG,Supplies and Services,E,Services,EF,02/04/2014,PAY00651748,RPMU,Royal Pavilion and Museums,4001,Revenue,Beacon Press
Brighton & Hove City Council,http://statistics.data.gov.uk/id/local-authority/00ML,Children`s & Education Serv,BVAEDU,Ed EY PVI,ENP,Supplies and Services,E,Grants n Subscriptions,EK,02/04/2014,PAY00651784,EYRS,Early Years,2000,Revenue,BeCCA Pre-School Playgroup
Brighton & Hove City Council,http://statistics.data.gov.uk/id/local-authority/00ML,Children`s & Education Serv,BVAEDU,Ed EY PVI,ENP,Supplies and Services,E,Grants n Subscriptions,EK,04/04/2014,PAY00653143,EYRS,Early Years,4285,Revenue,BeCCA Pre-School Playgroup
Brighton & Hove City Council,http://statistics.data.gov.uk/id/local-authority/00ML,Children`s & Education Serv,BVAEDU,Ed EY PVI,ENP,Supplies and Services,E,Grants n Subscriptions,EK,09/04/2014,PAY00654225,EYRS,Early Years,11540,Revenue,BeCCA Pre-School Playgroup
Brighton & Hove City Council,http://statistics.data.gov.uk/id/local-authority/00ML,Adult Social Care,BVASOC,ASC Learning Disabilities,ALD,Third Party Payments,F,Other Establishments,FH,11/04/2014,PAY00655398,LDIS,Learning Disabilities,6379.72,Revenue,Beech Lodge
Brighton & Hove City Council,http://statistics.data.gov.uk/id/local-authority/00ML,Adult Social Care,BVASOC,ASC Learning Disabilities,ALD,Customer n Client Receipts,M,Fees n Charges,MB,11/04/2014,PAY00655398,LDIS,Learning Disabilities,-360.25,Revenue,Beech Lodge
Brighton & Hove City Council,http://statistics.data.gov.uk/id/local-authority/00ML,Adult Social Care,BVASOC,ASC Physical Support,PHY,Third Party Payments,F,Other Establishments,FH,11/04/2014,PAY00655398,PHYS,Physical Support,8832.87,Revenue,Beech Lodge
Brighton & Hove City Council,http://statistics.data.gov.uk/id/local-authority/00ML,Adult Social Care,BVASOC,ASC Physical Support,PHY,Customer n Client Receipts,M,Fees n Charges,MB,11/04/2014,PAY00655398,PHYS,Physical Support,-859.78,Revenue,Beech Lodge
Brighton & Hove City Council,http://statistics.data.gov.uk/id/local-authority/00ML,Adult Social Care,BVASOC,S Svcs - Older People Svcs,PPL,Supplies and Services,E,Equip't Furniture n Materials,EA,04/04/2014,PAY00653760,RCOP,Resource Centres Older People,350,Revenue,Belltree Music Therapy Centre CIC
Brighton & Hove City Council,http://statistics.data.gov.uk/id/local-authority/00ML,Non I&E,BVANON,CAP Social Services,4RV,New Construction n Conversion,PB,New Construction n Conversion,PBL5,02/04/2014,PAY00652884,DAYS,Day Services,10200,Capital,Ben MacDonald Gardens
Brighton & Hove City Council,http://statistics.data.gov.uk/id/local-authority/00ML,Adult Social Care,BVASOC,S Svcs - Physical Disability,PDY,Supplies and Services,E,Communications n Computing,EH,25/04/2014,PAY00658898,SSCT,S75 SCT,80,Revenue,Benmor Medical (UK) Ltd
Brighton & Hove City Council,http://statistics.data.gov.uk/id/local-authority/00ML,Adult Social Care,BVASOC,S Svcs - Physical Disability,PDY,Supplies and Services,E,Equip't Furniture n Materials,EA,25/04/2014,PAY00658898,SSCT,S75 SCT,3264,Revenue,Benmor Medical (UK) Ltd
Brighton & Hove City Council,http://statistics.data.gov.uk/id/local-authority/00ML,Adult Social Care,BVASOC,S Svcs - Older People Svcs,PPL,Third Party Payments,F,Other Establishments,FH,09/04/2014,PAY00654301,OPMH,Community Care Older People MH,868,Revenue,Benwick Kennels & Cattery
Brighton & Hove City Council,http://statistics.data.gov.uk/id/local-authority/00ML,Housing Revenue Account,BVAHOU,Hsing Management - HRA,HGM,Premises Related,C,Repair Maint n Alterations,CA,04/04/2014,PAY00653774,HPAI,Property & Investment,3248,Revenue,Bernard sims Associates
Brighton & Hove City Council,http://statistics.data.gov.uk/id/local-authority/00ML,Housing Revenue Account,BVAHOU,Hsing Management - HRA,HGM,Supplies and Services,E,Services,EF,04/04/2014,PAY00653774,HPAI,Property & Investment,820,Revenue,Bernard sims Associates
Brighton & Hove City Council,http://statistics.data.gov.uk/id/local-authority/00ML,Non I&E,BVANON,Cap - Housing Services - HRA,4HR,New Construction n Conversion,PB,New Construction n Conversion,PBL5,04/04/2014,PAY00653774,HPAI,Property & Investment,1680,Capital,Bernard sims Associates
Brighton & Hove City Council,http://statistics.data.gov.uk/id/local-authority/00ML,Non I&E,BVANON,Cap - Housing Services - HRA,4HR,New Construction n Conversion,PB,New Construction n Conversion,PBL5,16/04/2014,PAY00656798,HPAI,Property & Investment,840,Capital,Bernard sims Associates
Brighton & Hove City Council,http://statistics.data.gov.uk/id/local-authority/00ML,Housing Revenue Account,BVAHOU,Hsing Management - HRA,HGM,Supplies and Services,E,Services,EF,11/04/2014,PAY00655333,HTEN,Tenancy Services,500,Revenue,Best of Brighton & Sussex Cottages Ltd
Brighton & Hove City Council,http://statistics.data.gov.uk/id/local-authority/00ML,Cultural and Related Serv,BVACUL,Recreation and Sport,REC,Premises Related,C,Repair Maint n Alterations,CA,09/04/2014,PAY00654406,SFAC,Sports Facilities,430,Revenue,Betapest
Brighton & Hove City Council,http://statistics.data.gov.uk/id/local-authority/00ML,Housing Revenue Account,BVAHOU,Hsing Management - HRA,HGM,Supplies and Services,E,Grants n Subscriptions,EK,02/04/2014,PAY00652241,HIII,Income Involvement Improvement,303.23,Revenue,Bevendean Tenants Association
Brighton & Hove City Council,http://statistics.data.gov.uk/id/local-authority/00ML,Adult Social Care,BVASOC,ASC Mental Health Support,MHP,Third Party Payments,F,Other Establishments,FH,02/04/2014,PAY00651772,MENH,Mental Health Support,28.47,Revenue,Big Box Storage Co Ltd
Brighton & Hove City Council,http://statistics.data.gov.uk/id/local-authority/00ML,Adult Social Care,BVASOC,S Svcs - Learning Disability,LDY,Third Party Payments,F,Other Establishments,FH,02/04/2014,PAY00651772,CCLD,Com Care Learning Disabilities,62.97,Revenue,Big Box Storage Co Ltd
Brighton & Hove City Council,http://statistics.data.gov.uk/id/local-authority/00ML,Adult Social Care,BVASOC,S Svcs - Mental Health,MHT,Third Party Payments,F,Other Establishments,FH,02/04/2014,PAY00651772,ADMH,Community Care Adult MH,1332.03,Revenue,Big Box Storage Co Ltd
Brighton & Hove City Council,http://statistics.data.gov.uk/id/local-authority/00ML,Adult Social Care,BVASOC,S Svcs - Learning Disability,LDY,Third Party Payments,F,Other Establishments,FH,04/04/2014,PAY00653136,CCLD,Com Care Learning Disabilities,62.97,Revenue,Big Box Storage Co Ltd
Brighton & Hove City Council,http://statistics.data.gov.uk/id/local-authority/00ML,Housing General Fund,BVAHOG,Homelessness,HML,Supplies and Services,E,Services,EF,04/04/2014,PAY00653136,TAAS,Temp Accom and Allocations,209.43,Revenue,Big Box Storage Co Ltd
Brighton & Hove City Council,http://statistics.data.gov.uk/id/local-authority/00ML,Adult Social Care,BVASOC,ASC Learning Disabilities,ALD,Third Party Payments,F,Other Establishments,FH,23/04/2014,PAY00658005,LDIS,Learning Disabilities,114,Revenue,Big Box Storage Co Ltd
Brighton & Hove City Council,http://statistics.data.gov.uk/id/local-authority/00ML,Housing General Fund,BVAHOG,Homelessness,HML,Supplies and Services,E,Miscellaneous Expenses,EM,23/04/2014,PAY00658005,TAAS,Temp Accom and Allocations,146.1,Revenue,Big Box Storage Co Ltd
Brighton & Hove City Council,http://statistics.data.gov.uk/id/local-authority/00ML,Adult Social Care,BVASOC,ASC Mental Health Support,MHP,Third Party Payments,F,Other Establishments,FH,30/04/2014,PAY00659325,MENH,Mental Health Support,328.12,Revenue,Big Box Storage Co Ltd
Brighton & Hove City Council,http://statistics.data.gov.uk/id/local-authority/00ML,Central Support and Overheads,BVACEN,Support Services (SSC),PPT,Supplies and Services,E,Miscellaneous Expenses,EM,02/04/2014,PAY00652840,POLY,Policy,1200,Revenue,Big Egg Films Ltd
Brighton & Hove City Council,http://statistics.data.gov.uk/id/local-authority/00ML,Housing Revenue Account,BVAHOU,Hsing Management - HRA,HGM,Supplies and Services,E,Miscellaneous Expenses,EM,09/04/2014,PAY00654292,HTEN,Tenancy Services,-69.25,Revenue,Big Yellow Self Storage Company Ltd
Brighton & Hove City Council,http://statistics.data.gov.uk/id/local-authority/00ML,Housing Revenue Account,BVAHOU,Hsing Management - HRA,HGM,Supplies and Services,E,Services,EF,09/04/2014,PAY00654292,HTEN,Tenancy Services,599.29,Revenue,Big Yellow Self Storage Company Ltd
Brighton & Hove City Council,http://statistics.data.gov.uk/id/local-authority/00ML,Cultural and Related Serv,BVACUL,Culture and Heritage,CHG,Direct Employees,A,Wages,AB,02/04/2014,PAY00652712,VENU,Venues,-16475.64,Revenue,Bill Kenwright Ltd
Brighton & Hove City Council,http://statistics.data.gov.uk/id/local-authority/00ML,Cultural and Related Serv,BVACUL,Culture and Heritage,CHG,Customer n Client Receipts,M,Fees n Charges,MB,02/04/2014,PAY00652712,VENU,Venues,-43759.64,Revenue,Bill Kenwright Ltd
Brighton & Hove City Council,http://statistics.data.gov.uk/id/local-authority/00ML,Cultural and Related Serv,BVACUL,Culture and Heritage,CHG,Customer n Client Receipts,M,Sales,MA,02/04/2014,PAY00652712,VENU,Venues,201156.55,Revenue,Bill Kenwright Ltd
Brighton & Hove City Council,http://statistics.data.gov.uk/id/local-authority/00ML,Central Support and Overheads,BVACEN,Support Services (SSC),PPT,Third Party Payments,F,Other Establishments,FH,02/04/2014,PAY00651866,FINS,Financial Services,3212.12,Revenue,Birchgrove Healthcare (Sussex) Ltd
Brighton & Hove City Council,http://statistics.data.gov.uk/id/local-authority/00ML,Adult Social Care,BVASOC,ASC Memory Cognition Support,MEM,Third Party Payments,F,Other Establishments,FH,11/04/2014,PAY00655394,COGN,Memory Cognition Support,24004.04,Revenue,Birchgrove Healthcare (Sussex) Ltd
Brighton & Hove City Council,http://statistics.data.gov.uk/id/local-authority/00ML,Adult Social Care,BVASOC,ASC Memory Cognition Support,MEM,Customer n Client Receipts,M,Fees n Charges,MB,11/04/2014,PAY00655394,COGN,Memory Cognition Support,-4631.48,Revenue,Birchgrove Healthcare (Sussex) Ltd
Brighton & Hove City Council,http://statistics.data.gov.uk/id/local-authority/00ML,Adult Social Care,BVASOC,ASC Physical Support,PHY,Third Party Payments,F,Other Establishments,FH,11/04/2014,PAY00655394,PHYS,Physical Support,16822.62,Revenue,Birchgrove Healthcare (Sussex) Ltd
Brighton & Hove City Council,http://statistics.data.gov.uk/id/local-authority/00ML,Adult Social Care,BVASOC,ASC Physical Support,PHY,Customer n Client Receipts,M,Fees n Charges,MB,11/04/2014,PAY00655394,PHYS,Physical Support,-2213.77,Revenue,Birchgrove Healthcare (Sussex) Ltd
Brighton & Hove City Council,http://statistics.data.gov.uk/id/local-authority/00ML,Central Support and Overheads,BVACEN,Support Services (SSC),PPT,Third Party Payments,F,Other Establishments,FH,23/04/2014,PAY00658050,FINS,Financial Services,3242.92,Revenue,Birchgrove Healthcare (Sussex) Ltd
Brighton & Hove City Council,http://statistics.data.gov.uk/id/local-authority/00ML,Housing General Fund,BVAHOG,Homelessness,HML,Supplies and Services,E,Miscellaneous Expenses,EM,02/04/2014,PAY00652178,TAAS,Temp Accom and Allocations,2321.6,Revenue,Bishop`s Move
Brighton & Hove City Council,http://statistics.data.gov.uk/id/local-authority/00ML,Housing General Fund,BVAHOG,Homelessness,HML,Supplies and Services,E,Miscellaneous Expenses,EM,25/04/2014,PAY00658911,TAAS,Temp Accom and Allocations,2873.2,Revenue,Bishop`s Move
Brighton & Hove City Council,http://statistics.data.gov.uk/id/local-authority/00ML,Adult Social Care,BVASOC,ASC Learning Disabilities,ALD,Premises Related,C,Energy Costs,CB,30/04/2014,PAY00659362,SUPE,Supported Employment,840.07,Revenue,Bizspace Ltd
Brighton & Hove City Council,http://statistics.data.gov.uk/id/local-authority/00ML,Adult Social Care,BVASOC,ASC Learning Disabilities,ALD,Premises Related,C,Rents Payable,CC,30/04/2014,PAY00659362,SUPE,Supported Employment,12491,Revenue,Bizspace Ltd
Brighton & Hove City Council,http://statistics.data.gov.uk/id/local-authority/00ML,Adult Social Care,BVASOC,S Svcs Supported Employment,EMP,Supplies and Services,E,Miscellaneous Expenses,EM,23/04/2014,PAY00658425,SUPE,Supported Employment,395,Revenue,Bizz Badge Co Ltd
Brighton & Hove City Council,http://statistics.data.gov.uk/id/local-authority/00ML,Planning and Development,BVAPLA,Community Development,CDV,Supplies and Services,E,Grants n Subscriptions,EK,02/04/2014,PAY00651763,CMNY,Communities and Equalities,1000,Revenue,Black & Minority Ethnic Community Partnership
Brighton & Hove City Council,http://statistics.data.gov.uk/id/local-authority/00ML,Children`s & Education Serv,BVAEDU,Child Srvcs Other,FAX,Premises Related,C,Rents Payable,CC,04/04/2014,PAY00653129,AVFM,Agency Placements\VFM,25,Revenue,Black & Minority Ethnic Community Partnership
Brighton & Hove City Council,http://statistics.data.gov.uk/id/local-authority/00ML,Children`s & Education Serv,BVAEDU,Child Srvcs - Other Fam Supp,FFX,Third Party Payments,F,Other Establishments,FH,04/04/2014,PAY00653129,S75J,Sect 75 Joint Arrangements,236.5,Revenue,Black & Minority Ethnic Community Partnership
Brighton & Hove City Council,http://statistics.data.gov.uk/id/local-authority/00ML,Planning and Development,BVAPLA,Economic Development,ECD,Supplies and Services,E,Grants n Subscriptions,EK,04/04/2014,PAY00653129,CMNY,Communities and Equalities,3571,Revenue,Black & Minority Ethnic Community Partnership
Brighton & Hove City Council,http://statistics.data.gov.uk/id/local-authority/00ML,Housing General Fund,BVAHOG,Homelessness,HML,Premises Related,C,Energy Costs,CB,04/04/2014,PAY00653152,HOSS,Housing Supports Services,317.6,Revenue,Blakes Meats Ltd
Brighton & Hove City Council,http://statistics.data.gov.uk/id/local-authority/00ML,Housing General Fund,BVAHOG,Homelessness,HML,Supplies and Services,E,Catering,EB,04/04/2014,PAY00653152,HOSS,Housing Supports Services,239.72,Revenue,Blakes Meats Ltd
Brighton & Hove City Council,http://statistics.data.gov.uk/id/local-authority/00ML,Adult Social Care,BVASOC,ASC Physical Support,PHY,Supplies and Services,E,Catering,EB,30/04/2014,PAY00659340,DAYS,Day Services,240.35,Revenue,Blakes Meats Ltd
Brighton & Hove City Council,http://statistics.data.gov.uk/id/local-authority/00ML,Housing General Fund,BVAHOG,Homelessness,HML,Supplies and Services,E,Catering,EB,30/04/2014,PAY00659340,HOSS,Housing Supports Services,174.5,Revenue,Blakes Meats Ltd
Brighton & Hove City Council,http://statistics.data.gov.uk/id/local-authority/00ML,Adult Social Care,BVASOC,S Svcs - Older People Svcs,PPL,Third Party Payments,F,Other Establishments,FH,04/04/2014,PAY00653123,CCOP,Community Care Older People,2932.57,Revenue,Blatchington House Nursing Home
Brighton & Hove City Council,http://statistics.data.gov.uk/id/local-authority/00ML,Adult Social Care,BVASOC,S Svcs - Older People Svcs,PPL,Customer n Client Receipts,M,Fees n Charges,MB,04/04/2014,PAY00653123,CCOP,Community Care Older People,-1590.96,Revenue,Blatchington House Nursing Home
Brighton & Hove City Council,http://statistics.data.gov.uk/id/local-authority/00ML,Adult Social Care,BVASOC,ASC Physical Support,PHY,Third Party Payments,F,Other Establishments,FH,11/04/2014,PAY00655315,PHYS,Physical Support,1807.68,Revenue,Blatchington House Nursing Home
Brighton & Hove City Council,http://statistics.data.gov.uk/id/local-authority/00ML,Adult Social Care,BVASOC,ASC Physical Support,PHY,Customer n Client Receipts,M,Fees n Charges,MB,11/04/2014,PAY00655315,PHYS,Physical Support,-493.35,Revenue,Blatchington House Nursing Home
Brighton & Hove City Council,http://statistics.data.gov.uk/id/local-authority/00ML,Library Services,BVACUL,Library Service,LBR,Supplies and Services,E,Communications n Computing,EH,04/04/2014,PAY00653263,LIBS,Libraries,895,Revenue,Bleep Computing Limited
Brighton & Hove City Council,http://statistics.data.gov.uk/id/local-authority/00ML,Children`s & Education Serv,BVAEDU,Ed Ed Other Other,ENF,Third Party Payments,F,Other Establishments,FH,11/04/2014,PAY00656062,OEDS,Other Education Support,900,Revenue,Blenheim Primary School and Childrens Centre
Brighton & Hove City Council,http://statistics.data.gov.uk/id/local-authority/00ML,Central Support and Overheads,BVACEN,Support Services (SSC),PPT,Third Party Payments,F,Other Establishments,FH,02/04/2014,PAY00651774,FINS,Financial Services,2772.96,Revenue,Blind Veterans UK
Brighton & Hove City Council,http://statistics.data.gov.uk/id/local-authority/00ML,Central Support and Overheads,BVACEN,Support Services (SSC),PPT,Third Party Payments,F,Other Establishments,FH,16/04/2014,PAY00656355,FINS,Financial Services,1269.86,Revenue,Blind Veterans UK
Brighton & Hove City Council,http://statistics.data.gov.uk/id/local-authority/00ML,Central Support and Overheads,BVACEN,Support Services (SSC),PPT,Third Party Payments,F,Other Establishments,FH,23/04/2014,PAY00658006,FINS,Financial Services,3242.92,Revenue,Blind Veterans UK
Brighton & Hove City Council,http://statistics.data.gov.uk/id/local-authority/00ML,Children`s & Education Serv,BVAEDU,Ed Ed Other Other,ENF,Premises Related,C,Repair Maint n Alterations,CA,02/04/2014,PAY00651777,PROP,Property and Design,2520,Revenue,Blockbusters Contracts Ltd
Brighton & Hove City Council,http://statistics.data.gov.uk/id/local-authority/00ML,Highways and Transportation,BVAHRT,Parking Services,PRK,Supplies and Services,E,Equip't Furniture n Materials,EA,04/04/2014,PAY00653936,PARK,Parking,1750,Revenue,Blue Box Batteries Ltd
Brighton & Hove City Council,http://statistics.data.gov.uk/id/local-authority/00ML,Children`s & Education Serv,BVAEDU,Child Srvcs - Fostering,FLF,Third Party Payments,F,Other Establishments,FH,02/04/2014,PAY00652250,AVFM,Agency Placements\VFM,67635.76,Revenue,Blue Sky Fostering Limited
Brighton & Hove City Council,http://statistics.data.gov.uk/id/local-authority/00ML,Children`s & Education Serv,BVAEDU,Child Srvcs - Fostering,FLF,Third Party Payments,F,Other Establishments,FH,09/04/2014,PAY00654734,AVFM,Agency Placements\VFM,290.25,Revenue,Blue Sky Fostering Limited
Brighton & Hove City Council,http://statistics.data.gov.uk/id/local-authority/00ML,Children`s & Education Serv,BVAEDU,Child Srvcs - Fostering,FLF,Third Party Payments,F,Other Establishments,FH,30/04/2014,PAY00659688,AVFM,Agency Placements\VFM,74662.24,Revenue,Blue Sky Fostering Limited
Brighton & Hove City Council,http://statistics.data.gov.uk/id/local-authority/00ML,Children`s & Education Serv,BVAEDU,Ed EY PVI,ENP,Supplies and Services,E,Grants n Subscriptions,EK,04/04/2014,PAY00653501,EYRS,Early Years,47314,Revenue,Blueberry Nursery & Early Learning Organisation Ld
Brighton & Hove City Council,http://statistics.data.gov.uk/id/local-authority/00ML,Children`s & Education Serv,BVAEDU,Ed EY PVI,ENP,Supplies and Services,E,Grants n Subscriptions,EK,11/04/2014,PAY00655698,EYRS,Early Years,1277,Revenue,Blueberry Nursery & Early Learning Organisation Ld
Brighton & Hove City Council,http://statistics.data.gov.uk/id/local-authority/00ML,Housing General Fund,BVAHOG,Homelessness,HML,Supplies and Services,E,Services,EF,04/04/2014,PAY00653597,TAAS,Temp Accom and Allocations,630,Revenue,BNK Jevington LLP
Brighton & Hove City Council,http://statistics.data.gov.uk/id/local-authority/00ML,Housing General Fund,BVAHOG,Homelessness,HML,Supplies and Services,E,Services,EF,23/04/2014,PAY00658213,TAAS,Temp Accom and Allocations,315,Revenue,BNK Jevington LLP
Brighton & Hove City Council,http://statistics.data.gov.uk/id/local-authority/00ML,Housing General Fund,BVAHOG,Homelessness,HML,Supplies and Services,E,Services,EF,30/04/2014,PAY00659616,TAAS,Temp Accom and Allocations,630,Revenue,BNK Jevington LLP
Brighton & Hove City Council,http://statistics.data.gov.uk/id/local-authority/00ML,Cultural and Related Serv,BVACUL,Recreation and Sport,REC,Supplies and Services,E,Equip't Furniture n Materials,EA,09/04/2014,PAY00655111,SDEV,Sports Development,639.58,Revenue,Boccia England Ltd
Brighton & Hove City Council,http://statistics.data.gov.uk/id/local-authority/00ML,Children`s & Education Serv,BVAEDU,Ed EY PVI,ENP,Supplies and Services,E,Grants n Subscriptions,EK,04/04/2014,PAY00653149,EYRS,Early Years,43787,Revenue,Boomerang Kids
Brighton & Hove City Council,http://statistics.data.gov.uk/id/local-authority/00ML,Children`s & Education Serv,BVAEDU,Ed EY PVI,ENP,Supplies and Services,E,Grants n Subscriptions,EK,09/04/2014,PAY00654238,EYRS,Early Years,753,Revenue,Boomerang Kids
Brighton & Hove City Council,http://statistics.data.gov.uk/id/local-authority/00ML,Central Support and Overheads,BVACEN,Support Services (SSC),PPT,Supplies and Services,E,Communications n Computing,EH,17/04/2014,PAY00657173,ICTA,ICT,3857.5,Revenue,Bottomline Technologies Limited
Brighton & Hove City Council,http://statistics.data.gov.uk/id/local-authority/00ML,Cultural and Related Serv,BVACUL,Open Spaces,PEN,Supplies and Services,E,Equip't Furniture n Materials,EA,09/04/2014,PAY00654372,CIPK,City Parks,1195.13,Revenue,Bourne Amenity Ltd
Brighton & Hove City Council,http://statistics.data.gov.uk/id/local-authority/00ML,Children`s & Education Serv,BVAEDU,Ed Mgmt and Support Services,EMG,Supplies and Services,E,Services,EF,09/04/2014,PAY00654677,SACH,Standards and Achievement,1600,Revenue,Brackley Educational Consultancy
Brighton & Hove City Council,http://statistics.data.gov.uk/id/local-authority/00ML,Children`s & Education Serv,BVAEDU,Ed Mgmt and Support Services,EMG,Supplies and Services,E,Services,EF,23/04/2014,PAY00658231,SACH,Standards and Achievement,2400,Revenue,Brackley Educational Consultancy
Brighton & Hove City Council,http://statistics.data.gov.uk/id/local-authority/00ML,Adult Social Care,BVASOC,ASC Learning Disabilities,ALD,Third Party Payments,F,Other Establishments,FH,11/04/2014,PAY00655813,LDIS,Learning Disabilities,12960,Revenue,Bradfield House
Brighton & Hove City Council,http://statistics.data.gov.uk/id/local-authority/00ML,Adult Social Care,BVASOC,ASC Learning Disabilities,ALD,Customer n Client Receipts,M,Fees n Charges,MB,11/04/2014,PAY00655813,LDIS,Learning Disabilities,-318.35,Revenue,Bradfield House
Brighton & Hove City Council,http://statistics.data.gov.uk/id/local-authority/00ML,Central Support and Overheads,BVACEN,Support Services (SSC),PPT,Premises Related,C,Repair Maint n Alterations,CA,09/04/2014,PAY00654581,PROP,Property and Design,1552.31,Revenue,Bramber Construction Co Ltd
Brighton & Hove City Council,http://statistics.data.gov.uk/id/local-authority/00ML,Central Support and Overheads,BVACEN,Trading Services,TRD,Supplies and Services,E,Services,EF,30/04/2014,PAY00659551,PROP,Property and Design,27686.9,Revenue,Bramber Construction Co Ltd
Brighton & Hove City Council,http://statistics.data.gov.uk/id/local-authority/00ML,Adult Social Care,BVASOC,ASC Physical Support,PHY,Third Party Payments,F,Other Establishments,FH,11/04/2014,PAY00655385,PHYS,Physical Support,9716,Revenue,Bramble Care Homes Ltd
Brighton & Hove City Council,http://statistics.data.gov.uk/id/local-authority/00ML,Adult Social Care,BVASOC,ASC Physical Support,PHY,Customer n Client Receipts,M,Fees n Charges,MB,11/04/2014,PAY00655385,PHYS,Physical Support,-4211.98,Revenue,Bramble Care Homes Ltd
Brighton & Hove City Council,http://statistics.data.gov.uk/id/local-authority/00ML,Children`s & Education Serv,BVAEDU,Child Srvcs - Residential Svcs,FLR,Third Party Payments,F,Other Establishments,FH,02/04/2014,PAY00652585,AVFM,Agency Placements\VFM,15559.64,Revenue,Bramley Care Ltd T/A Apple Orchard
Brighton & Hove City Council,http://statistics.data.gov.uk/id/local-authority/00ML,Children`s & Education Serv,BVAEDU,Child Srvcs - Residential Svcs,FLR,Third Party Payments,F,Other Establishments,FH,30/04/2014,PAY00659834,AVFM,Agency Placements\VFM,15559.64,Revenue,Bramley Care Ltd T/A Apple Orchard
Brighton & Hove City Council,http://statistics.data.gov.uk/id/local-authority/00ML,Adult Social Care,BVASOC,S Svcs - Older People Svcs,PPL,Third Party Payments,F,Other Establishments,FH,02/04/2014,PAY00652033,CCOP,Community Care Older People,4857.14,Revenue,Bravery Care
Brighton & Hove City Council,http://statistics.data.gov.uk/id/local-authority/00ML,Adult Social Care,BVASOC,ASC Memory Cognition Support,MEM,Third Party Payments,F,Other Establishments,FH,11/04/2014,PAY00655687,COGN,Memory Cognition Support,22371.89,Revenue,Bravery Care
Brighton & Hove City Council,http://statistics.data.gov.uk/id/local-authority/00ML,Adult Social Care,BVASOC,ASC Memory Cognition Support,MEM,Customer n Client Receipts,M,Fees n Charges,MB,11/04/2014,PAY00655687,COGN,Memory Cognition Support,-6336.05,Revenue,Bravery Care
Brighton & Hove City Council,http://statistics.data.gov.uk/id/local-authority/00ML,Housing Revenue Account,BVAHOU,Hsing Management - HRA,HGM,Supplies and Services,E,Miscellaneous Expenses,EM,04/04/2014,PAY00653220,HIII,Income Involvement Improvement,350,Revenue,Bridge Community Education Centre
Brighton & Hove City Council,http://statistics.data.gov.uk/id/local-authority/00ML,Children`s & Education Serv,BVAEDU,Ed Ed Other Strat Mgt,ENM,Premises Related,C,Rents Payable,CC,30/04/2014,PAY00659401,SACH,Standards and Achievement,322,Revenue,Bridge Community Education Centre
Brighton & Hove City Council,http://statistics.data.gov.uk/id/local-authority/00ML,Children`s & Education Serv,BVAEDU,Child Srvcs - Fostering,FLF,Third Party Payments,F,Other Establishments,FH,02/04/2014,PAY00652237,AVFM,Agency Placements\VFM,30961.6,Revenue,Brighter Futures Foster Care Ltd
Brighton & Hove City Council,http://statistics.data.gov.uk/id/local-authority/00ML,Children`s & Education Serv,BVAEDU,Child Srvcs - Fostering,FLF,Third Party Payments,F,Other Establishments,FH,30/04/2014,PAY00659682,AVFM,Agency Placements\VFM,30524.28,Revenue,Brighter Futures Foster Care Ltd
Brighton & Hove City Council,http://statistics.data.gov.uk/id/local-authority/00ML,Children`s & Education Serv,BVAEDU,Ed EY PVI,ENP,Supplies and Services,E,Grants n Subscriptions,EK,04/04/2014,PAY00653560,EYRS,Early Years,4693,Revenue,Brighthelm Pre-School 
Brighton & Hove City Council,http://statistics.data.gov.uk/id/local-authority/00ML,Children`s & Education Serv,BVAEDU,Ed EY PVI,ENP,Supplies and Services,E,Grants n Subscriptions,EK,09/04/2014,PAY00654609,EYRS,Early Years,2492,Revenue,Brighthelm Pre-School 
Brighton & Hove City Council,http://statistics.data.gov.uk/id/local-authority/00ML,Cultural and Related Serv,BVACUL,Open Spaces,PEN,Supplies and Services,E,Grants n Subscriptions,EK,02/04/2014,PAY00651892,CIPK,City Parks,908.52,Revenue,Brighton & Hove Allotment Federation
Brighton & Hove City Council,http://statistics.data.gov.uk/id/local-authority/00ML,Adult Social Care,BVASOC,ASC Physical Support,PHY,Third Party Payments,F,Other Establishments,FH,11/04/2014,PAY00655254,PHYS,Physical Support,5052,Revenue,Brighton & Hove Bethesda Home
Brighton & Hove City Council,http://statistics.data.gov.uk/id/local-authority/00ML,Adult Social Care,BVASOC,ASC Physical Support,PHY,Customer n Client Receipts,M,Fees n Charges,MB,11/04/2014,PAY00655254,PHYS,Physical Support,-1810.65,Revenue,Brighton & Hove Bethesda Home
Brighton & Hove City Council,http://statistics.data.gov.uk/id/local-authority/00ML,Children`s & Education Serv,BVAEDU,Child Srvcs Other,FAX,Supplies and Services,E,Services,EF,02/04/2014,PAY00652064,YOTS,Youth Service,826,Revenue,Brighton & Hove Bus and Coach Co Ltd
Brighton & Hove City Council,http://statistics.data.gov.uk/id/local-authority/00ML,Children`s & Education Serv,BVAEDU,Child Srvcs - Other Fam Supp,FFX,Transport Related,D,Public Transport,DD,02/04/2014,PAY00652064,SFSC,Stronger Families Stronger Com,826,Revenue,Brighton & Hove Bus and Coach Co Ltd
Brighton & Hove City Council,http://statistics.data.gov.uk/id/local-authority/00ML,Children`s & Education Serv,BVAEDU,Child Srvcs - Othr LAC Svcs,FLX,Transfer Payments,G,Other Transfer Payments,GD,02/04/2014,PAY00652064,CHIC,Children In Care,780,Revenue,Brighton & Hove Bus and Coach Co Ltd
Brighton & Hove City Council,http://statistics.data.gov.uk/id/local-authority/00ML,Housing General Fund,BVAHOG,Hsing Welfare,HGW,Transport Related,D,Public Transport,DD,02/04/2014,PAY00652064,HOSS,Housing Supports Services,206.5,Revenue,Brighton & Hove Bus and Coach Co Ltd
Brighton & Hove City Council,http://statistics.data.gov.uk/id/local-authority/00ML,Children`s & Education Serv,BVAEDU,Ed Ed Other LA Attrib Sch,ELA,Transport Related,D,Public Transport,DD,04/04/2014,PAY00653544,OEDS,Other Education Support,162,Revenue,Brighton & Hove Bus and Coach Co Ltd
Brighton & Hove City Council,http://statistics.data.gov.uk/id/local-authority/00ML,Children`s & Education Serv,BVAEDU,Ed EY Central,EAE,Transport Related,D,Public Transport,DD,04/04/2014,PAY00653544,EYRS,Early Years,413,Revenue,Brighton & Hove Bus and Coach Co Ltd
Brighton & Hove City Council,http://statistics.data.gov.uk/id/local-authority/00ML,Housing General Fund,BVAHOG,Homelessness,HML,Transport Related,D,Public Transport,DD,04/04/2014,PAY00653544,TAAS,Temp Accom and Allocations,1239,Revenue,Brighton & Hove Bus and Coach Co Ltd
Brighton & Hove City Council,http://statistics.data.gov.uk/id/local-authority/00ML,Children`s & Education Serv,BVAEDU,Child Srvcs - Fostering,FLF,Third Party Payments,F,Other Establishments,FH,09/04/2014,PAY00654599,CHIC,Children In Care,826,Revenue,Brighton & Hove Bus and Coach Co Ltd
Brighton & Hove City Council,http://statistics.data.gov.uk/id/local-authority/00ML,Children`s & Education Serv,BVAEDU,Ed Ed Other LA Attrib Sch,ELA,Transport Related,D,Public Transport,DD,09/04/2014,PAY00654599,OEDS,Other Education Support,492,Revenue,Brighton & Hove Bus and Coach Co Ltd
Brighton & Hove City Council,http://statistics.data.gov.uk/id/local-authority/00ML,Environment & Regulatory Serv,BVAERS,Environmental Health,EVH,Transport Related,D,Contract Hire n Operating Leas,DB,09/04/2014,PAY00654599,PROT,Public Protection,1000.22,Revenue,Brighton & Hove Bus and Coach Co Ltd
Brighton & Hove City Council,http://statistics.data.gov.uk/id/local-authority/00ML,Environment & Regulatory Serv,BVAERS,Management Services (DEC),MGT,Transport Related,D,Other Transport Costs,DG,09/04/2014,PAY00654599,CICL,City Clean,495.6,Revenue,Brighton & Hove Bus and Coach Co Ltd
Brighton & Hove City Council,http://statistics.data.gov.uk/id/local-authority/00ML,Environment & Regulatory Serv,BVAERS,Waste Management,WMT,Transport Related,D,Contract Hire n Operating Leas,DB,09/04/2014,PAY00654599,CICL,City Clean,336,Revenue,Brighton & Hove Bus and Coach Co Ltd
Brighton & Hove City Council,http://statistics.data.gov.uk/id/local-authority/00ML,Adult Social Care,BVASOC,S Svcs - Older People Svcs,PPL,Transport Related,D,Public Transport,DD,16/04/2014,PAY00656624,ASIT,Assessment and SIT,65,Revenue,Brighton & Hove Bus and Coach Co Ltd
Brighton & Hove City Council,http://statistics.data.gov.uk/id/local-authority/00ML,Children`s & Education Serv,BVAEDU,Child Srvcs - Other Fam Supp,FFX,Transfer Payments,G,Other Transfer Payments,GD,16/04/2014,PAY00656624,FAMP,Families\Prevention,1163.5,Revenue,Brighton & Hove Bus and Coach Co Ltd
Brighton & Hove City Council,http://statistics.data.gov.uk/id/local-authority/00ML,Children`s & Education Serv,BVAEDU,Ed Ed Other LA Attrib Sch,ELA,Transport Related,D,Public Transport,DD,16/04/2014,PAY00656624,OEDS,Other Education Support,1043,Revenue,Brighton & Hove Bus and Coach Co Ltd
Brighton & Hove City Council,http://statistics.data.gov.uk/id/local-authority/00ML,Environment & Regulatory Serv,BVAERS,Environmental Health,EVH,Transport Related,D,Contract Hire n Operating Leas,DB,16/04/2014,PAY00656624,PROT,Public Protection,1737.23,Revenue,Brighton & Hove Bus and Coach Co Ltd
Brighton & Hove City Council,http://statistics.data.gov.uk/id/local-authority/00ML,Highways and Transportation,BVAHRT,Public Transport,PTR,Third Party Payments,F,Private Contractors,FJ,16/04/2014,PAY00656624,TPRS,Transport Plan and Road Safety,109875.72,Revenue,Brighton & Hove Bus and Coach Co Ltd
Brighton & Hove City Council,http://statistics.data.gov.uk/id/local-authority/00ML,Highways and Transportation,BVAHRT,Transport Plan Policy Strategy,TPP,Third Party Payments,F,Private Contractors,FJ,16/04/2014,PAY00656624,TPRS,Transport Plan and Road Safety,8570.13,Revenue,Brighton & Hove Bus and Coach Co Ltd
Brighton & Hove City Council,http://statistics.data.gov.uk/id/local-authority/00ML,Housing Revenue Account,BVAHOU,Hsing Management - HRA,HGM,Transport Related,D,Public Transport,DD,16/04/2014,PAY00656624,HIII,Income Involvement Improvement,516.25,Revenue,Brighton & Hove Bus and Coach Co Ltd
Brighton & Hove City Council,http://statistics.data.gov.uk/id/local-authority/00ML,Adult Social Care,BVASOC,ASC Learning Disabilities,ALD,Transport Related,D,Public Transport,DD,17/04/2014,PAY00657466,HOME,Home Care,206.5,Revenue,Brighton & Hove Bus and Coach Co Ltd
Brighton & Hove City Council,http://statistics.data.gov.uk/id/local-authority/00ML,Central Support and Overheads,BVACEN,Support Services (SSC),PPT,Transport Related,D,Public Transport,DD,17/04/2014,PAY00657466,ICTA,ICT,1239,Revenue,Brighton & Hove Bus and Coach Co Ltd
Brighton & Hove City Council,http://statistics.data.gov.uk/id/local-authority/00ML,Children`s & Education Serv,BVAEDU,Child Srvcs - Other Fam Supp,FFX,Transport Related,D,Public Transport,DD,17/04/2014,PAY00657466,SFSC,Stronger Families Stronger Com,826,Revenue,Brighton & Hove Bus and Coach Co Ltd
Brighton & Hove City Council,http://statistics.data.gov.uk/id/local-authority/00ML,Children`s & Education Serv,BVAEDU,Child Srvcs - Other Fam Supp,FFX,Transfer Payments,G,Other Transfer Payments,GD,17/04/2014,PAY00657466,FAMP,Families\Prevention,1088,Revenue,Brighton & Hove Bus and Coach Co Ltd
Brighton & Hove City Council,http://statistics.data.gov.uk/id/local-authority/00ML,Children`s & Education Serv,BVAEDU,Ed EY Central,EAE,Transport Related,D,Public Transport,DD,17/04/2014,PAY00657466,EYRS,Early Years,991.2,Revenue,Brighton & Hove Bus and Coach Co Ltd
Brighton & Hove City Council,http://statistics.data.gov.uk/id/local-authority/00ML,Children`s & Education Serv,BVAEDU,Ed EY Central,EAE,Supplies and Services,E,Services,EF,17/04/2014,PAY00657466,EYRS,Early Years,660.8,Revenue,Brighton & Hove Bus and Coach Co Ltd
Brighton & Hove City Council,http://statistics.data.gov.uk/id/local-authority/00ML,Children`s & Education Serv,BVAEDU,Child Srvcs - Fostering,FLF,Third Party Payments,F,Other Establishments,FH,23/04/2014,PAY00658185,CHIC,Children In Care,750.5,Revenue,Brighton & Hove Bus and Coach Co Ltd
Brighton & Hove City Council,http://statistics.data.gov.uk/id/local-authority/00ML,Housing General Fund,BVAHOG,Homelessness,HML,Transport Related,D,Contract Hire n Operating Leas,DB,23/04/2014,PAY00658185,TRAV,Travellers,253.71,Revenue,Brighton & Hove Bus and Coach Co Ltd
Brighton & Hove City Council,http://statistics.data.gov.uk/id/local-authority/00ML,Adult Social Care,BVASOC,ASC Learning Disabilities,ALD,Transport Related,D,Public Transport,DD,30/04/2014,PAY00659564,HOME,Home Care,413,Revenue,Brighton & Hove Bus and Coach Co Ltd
Brighton & Hove City Council,http://statistics.data.gov.uk/id/local-authority/00ML,Adult Social Care,BVASOC,S Svcs - Older People Svcs,PPL,Transport Related,D,Other Transport Costs,DG,30/04/2014,PAY00659564,ASIT,Assessment and SIT,65,Revenue,Brighton & Hove Bus and Coach Co Ltd
Brighton & Hove City Council,http://statistics.data.gov.uk/id/local-authority/00ML,Adult Social Care,BVASOC,S Svcs - Older People Svcs,PPL,Transport Related,D,Public Transport,DD,30/04/2014,PAY00659564,ASIT,Assessment and SIT,160,Revenue,Brighton & Hove Bus and Coach Co Ltd
Brighton & Hove City Council,http://statistics.data.gov.uk/id/local-authority/00ML,Central Support and Overheads,BVACEN,Support Services (SSC),PPT,Transport Related,D,Public Transport,DD,30/04/2014,PAY00659564,DEMO,Democratic Services,6860,Revenue,Brighton & Hove Bus and Coach Co Ltd
Brighton & Hove City Council,http://statistics.data.gov.uk/id/local-authority/00ML,Central Support and Overheads,BVACEN,Support Services (SSC),PPT,Transport Related,D,Public Transport,DD,30/04/2014,PAY00659564,POLY,Policy,200,Revenue,Brighton & Hove Bus and Coach Co Ltd
Brighton & Hove City Council,http://statistics.data.gov.uk/id/local-authority/00ML,Children`s & Education Serv,BVAEDU,Ed Ed Other LA Attrib Sch,ELA,Transport Related,D,Public Transport,DD,30/04/2014,PAY00659564,OEDS,Other Education Support,-536,Revenue,Brighton & Hove Bus and Coach Co Ltd
Brighton & Hove City Council,http://statistics.data.gov.uk/id/local-authority/00ML,Highways and Transportation,BVAHRT,Public Transport,PTR,Transport Related,D,Public Transport,DD,30/04/2014,PAY00659564,CONF,Concessionary Fares,784250,Revenue,Brighton & Hove Bus and Coach Co Ltd
Brighton & Hove City Council,http://statistics.data.gov.uk/id/local-authority/00ML,Housing General Fund,BVAHOG,Hsing Welfare,HGW,Transport Related,D,Public Transport,DD,30/04/2014,PAY00659564,HOSS,Housing Supports Services,413,Revenue,Brighton & Hove Bus and Coach Co Ltd
Brighton & Hove City Council,http://statistics.data.gov.uk/id/local-authority/00ML,Library Services,BVACUL,Library Service,LBR,Transport Related,D,Public Transport,DD,30/04/2014,PAY00659564,LIBS,Libraries,2065,Revenue,Brighton & Hove Bus and Coach Co Ltd
Brighton & Hove City Council,http://statistics.data.gov.uk/id/local-authority/00ML,Planning and Development,BVAPLA,Economic Development,ECD,Supplies and Services,E,Miscellaneous Expenses,EM,02/04/2014,PAY00651786,ECOD,Economic Development,486.89,Revenue,Brighton & Hove Business Forum Ltd
Brighton & Hove City Council,http://statistics.data.gov.uk/id/local-authority/00ML,Children`s & Education Serv,BVAEDU,Child Srvcs Other,FAX,Direct Employees,A,Salaries,AA,23/04/2014,PAY00658458,CHIP,Child Protection,3228,Revenue,Brighton & Hove CCG
Brighton & Hove City Council,http://statistics.data.gov.uk/id/local-authority/00ML,Planning and Development,BVAPLA,Economic Development,ECD,Supplies and Services,E,Miscellaneous Expenses,EM,23/04/2014,PAY00658192,ECOD,Economic Development,15000,Revenue,Brighton & Hove Chamber of Commerce
Brighton & Hove City Council,http://statistics.data.gov.uk/id/local-authority/00ML,Planning and Development,BVAPLA,Economic Development,ECD,Supplies and Services,E,Grants n Subscriptions,EK,09/04/2014,PAY00654413,CMNY,Communities and Equalities,25000,Revenue,Brighton & Hove Citizens Advice Bureau
Brighton & Hove City Council,http://statistics.data.gov.uk/id/local-authority/00ML,Public Health,BVAPHE,Public Health,PHE,Supplies and Services,E,Miscellaneous Expenses,EM,23/04/2014,PAY00658104,PHCM,PH Commissioning,3000,Revenue,Brighton & Hove Citizens Advice Bureau
Brighton & Hove City Council,http://statistics.data.gov.uk/id/local-authority/00ML,Non-BHC Organisations,BVANON,Trusts,TRT,Supplies and Services,E,Services,EF,04/04/2014,PAY00653265,NBHC,Non Council,1800,Revenue,Brighton & Hove City Council
Brighton & Hove City Council,http://statistics.data.gov.uk/id/local-authority/00ML,Planning and Development,BVAPLA,Economic Development,ECD,Supplies and Services,E,Grants n Subscriptions,EK,04/04/2014,PAY00653122,CMNY,Communities and Equalities,46200,Revenue,Brighton & Hove Community Works
Brighton & Hove City Council,http://statistics.data.gov.uk/id/local-authority/00ML,Public Health,BVAPHE,Public Health,PHE,Supplies and Services,E,Miscellaneous Expenses,EM,04/04/2014,PAY00653122,PHCM,PH Commissioning,1000,Revenue,Brighton & Hove Community Works
Brighton & Hove City Council,http://statistics.data.gov.uk/id/local-authority/00ML,Planning and Development,BVAPLA,Economic Development,ECD,Supplies and Services,E,Grants n Subscriptions,EK,09/04/2014,PAY00654188,CMNY,Communities and Equalities,7500,Revenue,Brighton & Hove Community Works
Brighton & Hove City Council,http://statistics.data.gov.uk/id/local-authority/00ML,Children`s & Education Serv,BVAEDU,Ed EY Central,EAE,Supplies and Services,E,Catering,EB,11/04/2014,PAY00655727,EYRS,Early Years,350,Revenue,Brighton & Hove FareShare
Brighton & Hove City Council,http://statistics.data.gov.uk/id/local-authority/00ML,Housing General Fund,BVAHOG,Homelessness,HML,Supplies and Services,E,Catering,EB,17/04/2014,PAY00657474,HOSS,Housing Supports Services,1250,Revenue,Brighton & Hove FareShare
Brighton & Hove City Council,http://statistics.data.gov.uk/id/local-authority/00ML,Planning and Development,BVAPLA,Economic Development,ECD,Supplies and Services,E,Grants n Subscriptions,EK,30/04/2014,PAY00659569,CMNY,Communities and Equalities,3000,Revenue,Brighton & Hove FareShare
Brighton & Hove City Council,http://statistics.data.gov.uk/id/local-authority/00ML,Children`s & Education Serv,BVAEDU,Ed Ed Other Other,ENF,Supplies and Services,E,Miscellaneous Expenses,EM,04/04/2014,PAY00653272,PROP,Property and Design,90,Revenue,Brighton & Hove Federation of Disabled People 
Brighton & Hove City Council,http://statistics.data.gov.uk/id/local-authority/00ML,Planning and Development,BVAPLA,Economic Development,ECD,Supplies and Services,E,Grants n Subscriptions,EK,04/04/2014,PAY00653272,CMNY,Communities and Equalities,3750,Revenue,Brighton & Hove Federation of Disabled People 
Brighton & Hove City Council,http://statistics.data.gov.uk/id/local-authority/00ML,Adult Social Care,BVASOC,Info & Early Intervention,PRV,Third Party Payments,F,Other Establishments,FH,16/04/2014,PAY00656479,CONT,Contracts,14500,Revenue,Brighton & Hove Federation of Disabled People 
Brighton & Hove City Council,http://statistics.data.gov.uk/id/local-authority/00ML,Housing Revenue Account,BVAHOU,Hsing Management - HRA,HGM,Indirect Employees,B,Training,BM,23/04/2014,PAY00658109,HIII,Income Involvement Improvement,90,Revenue,Brighton & Hove Federation of Disabled People 
Brighton & Hove City Council,http://statistics.data.gov.uk/id/local-authority/00ML,Public Health,BVAPHE,Public Health,PHE,Supplies and Services,E,Miscellaneous Expenses,EM,23/04/2014,PAY00658109,PHCM,PH Commissioning,2800,Revenue,Brighton & Hove Federation of Disabled People 
Brighton & Hove City Council,http://statistics.data.gov.uk/id/local-authority/00ML,Adult Social Care,BVASOC,Info & Early Intervention,PRV,Third Party Payments,F,Other Establishments,FH,30/04/2014,PAY00659457,CONT,Contracts,43265.5,Revenue,Brighton & Hove Federation of Disabled People 
Brighton & Hove City Council,http://statistics.data.gov.uk/id/local-authority/00ML,Housing General Fund,BVAHOG,Hsing Benefits,HGB,Supplies and Services,E,Miscellaneous Expenses,EM,04/04/2014,PAY00653616,REVS,Revenues and Benefits,43.8,Revenue,Brighton & Hove Food Partnership
Brighton & Hove City Council,http://statistics.data.gov.uk/id/local-authority/00ML,Housing Revenue Account,BVAHOU,Hsing Management - HRA,HGM,Supplies and Services,E,Miscellaneous Expenses,EM,04/04/2014,PAY00653616,HIII,Income Involvement Improvement,750,Revenue,Brighton & Hove Food Partnership
Brighton & Hove City Council,http://statistics.data.gov.uk/id/local-authority/00ML,Children`s & Education Serv,BVAEDU,Ed EY Central,EAE,Supplies and Services,E,Grants n Subscriptions,EK,09/04/2014,PAY00654682,EYRS,Early Years,625,Revenue,Brighton & Hove Food Partnership
Brighton & Hove City Council,http://statistics.data.gov.uk/id/local-authority/00ML,Children`s & Education Serv,BVAEDU,Ed EY PVI,ENP,Supplies and Services,E,Grants n Subscriptions,EK,04/04/2014,PAY00653096,EYRS,Early Years,20500,Revenue,Brighton & Hove High School- Junior Dept
Brighton & Hove City Council,http://statistics.data.gov.uk/id/local-authority/00ML,Planning and Development,BVAPLA,Economic Development,ECD,Supplies and Services,E,Grants n Subscriptions,EK,04/04/2014,PAY00653124,CMNY,Communities and Equalities,7000,Revenue,Brighton & Hove Impetus Ltd
Brighton & Hove City Council,http://statistics.data.gov.uk/id/local-authority/00ML,Planning and Development,BVAPLA,Economic Development,ECD,Supplies and Services,E,Grants n Subscriptions,EK,09/04/2014,PAY00654191,CMNY,Communities and Equalities,6250,Revenue,Brighton & Hove Impetus Ltd
Brighton & Hove City Council,http://statistics.data.gov.uk/id/local-authority/00ML,Housing General Fund,BVAHOG,Hsing Welfare,HGW,Transfer Payments,G,Supporting People,GF,30/04/2014,PAY00659268,SUPP,Supporting People,1085.84,Revenue,Brighton & Hove Jewish Housing Assoc Ltd
Brighton & Hove City Council,http://statistics.data.gov.uk/id/local-authority/00ML,Environment & Regulatory Serv,BVAERS,Community Safety,CMY,Supplies and Services,E,Miscellaneous Expenses,EM,16/04/2014,PAY00656893,CSTP,Comm Safety Team & Partnership,3000,Revenue,Brighton & Hove LGBT Community Safety Forum
Brighton & Hove City Council,http://statistics.data.gov.uk/id/local-authority/00ML,Planning and Development,BVAPLA,Community Development,CDV,Supplies and Services,E,Grants n Subscriptions,EK,04/04/2014,PAY00653145,CMNY,Communities and Equalities,5000,Revenue,Brighton & Hove LGBT Switchboard
Brighton & Hove City Council,http://statistics.data.gov.uk/id/local-authority/00ML,Planning and Development,BVAPLA,Economic Development,ECD,Supplies and Services,E,Grants n Subscriptions,EK,04/04/2014,PAY00653145,CMNY,Communities and Equalities,5500,Revenue,Brighton & Hove LGBT Switchboard
Brighton & Hove City Council,http://statistics.data.gov.uk/id/local-authority/00ML,Planning and Development,BVAPLA,Economic Development,ECD,Supplies and Services,E,Grants n Subscriptions,EK,09/04/2014,PAY00654228,CMNY,Communities and Equalities,7000,Revenue,Brighton & Hove LGBT Switchboard
Brighton & Hove City Council,http://statistics.data.gov.uk/id/local-authority/00ML,Housing General Fund,BVAHOG,Hsing Welfare,HGW,Transfer Payments,G,Supporting People,GF,30/04/2014,PAY00659279,SUPP,Supporting People,11537,Revenue,Brighton & Hove Mencap
Brighton & Hove City Council,http://statistics.data.gov.uk/id/local-authority/00ML,Children`s & Education Serv,BVAEDU,Ed EY PVI,ENP,Supplies and Services,E,Grants n Subscriptions,EK,04/04/2014,PAY00653078,EYRS,Early Years,8278,Revenue,Brighton & Hove Montessori School
Brighton & Hove City Council,http://statistics.data.gov.uk/id/local-authority/00ML,Children`s & Education Serv,BVAEDU,Support Services (SSC),PPT,Transport Related,D,Public Transport,DD,02/04/2014,PAY00652062,OEDS,Other Education Support,2885.4,Revenue,Brighton & Hove Radio Cabs Ltd
Brighton & Hove City Council,http://statistics.data.gov.uk/id/local-authority/00ML,Cultural and Related Serv,BVACUL,Culture and Heritage,CHG,Transport Related,D,Public Transport,DD,17/04/2014,PAY00657464,VENU,Venues,549.4,Revenue,Brighton & Hove Radio Cabs Ltd
Brighton & Hove City Council,http://statistics.data.gov.uk/id/local-authority/00ML,Children`s & Education Serv,BVAEDU,Child Srvcs - Other Fam Supp,FFX,Transport Related,D,Public Transport,DD,23/04/2014,PAY00658184,FAMP,Families\Prevention,29,Revenue,Brighton & Hove Radio Cabs Ltd
Brighton & Hove City Council,http://statistics.data.gov.uk/id/local-authority/00ML,Children`s & Education Serv,BVAEDU,Ed Ed Other LA Attrib Sch,ELA,Transport Related,D,Other Transport Costs,DG,23/04/2014,PAY00658184,OEDS,Other Education Support,9676.1,Revenue,Brighton & Hove Radio Cabs Ltd
Brighton & Hove City Council,http://statistics.data.gov.uk/id/local-authority/00ML,Children`s & Education Serv,BVAEDU,Ed Ed Other LA Attrib Sch,ELA,Transport Related,D,Public Transport,DD,23/04/2014,PAY00658184,OEDS,Other Education Support,6019,Revenue,Brighton & Hove Radio Cabs Ltd
Brighton & Hove City Council,http://statistics.data.gov.uk/id/local-authority/00ML,Children`s & Education Serv,BVAEDU,Support Services (SSC),PPT,Transport Related,D,Public Transport,DD,23/04/2014,PAY00658184,OEDS,Other Education Support,7247,Revenue,Brighton & Hove Radio Cabs Ltd
Brighton & Hove City Council,http://statistics.data.gov.uk/id/local-authority/00ML,Children`s & Education Serv,BVAEDU,Ed Ed Other LA Attrib Sch,ELA,Transport Related,D,Public Transport,DD,30/04/2014,PAY00659562,OEDS,Other Education Support,1465,Revenue,Brighton & Hove Radio Cabs Ltd
Brighton & Hove City Council,http://statistics.data.gov.uk/id/local-authority/00ML,Children`s & Education Serv,BVAEDU,Ed Primary Ed,EHE,Transport Related,D,Public Transport,DD,30/04/2014,PAY00659562,SACH,Standards and Achievement,73.1,Revenue,Brighton & Hove Radio Cabs Ltd
Brighton & Hove City Council,http://statistics.data.gov.uk/id/local-authority/00ML,Children`s & Education Serv,BVAEDU,Support Services (SSC),PPT,Transport Related,D,Public Transport,DD,30/04/2014,PAY00659562,OEDS,Other Education Support,2561.8,Revenue,Brighton & Hove Radio Cabs Ltd
Brighton & Hove City Council,http://statistics.data.gov.uk/id/local-authority/00ML,Planning and Development,BVAPLA,Economic Development,ECD,Supplies and Services,E,Grants n Subscriptions,EK,09/04/2014,PAY00654407,CMNY,Communities and Equalities,22500,Revenue,Brighton & Hove Social Welfare Educational Trust
Brighton & Hove City Council,http://statistics.data.gov.uk/id/local-authority/00ML,Housing Revenue Account,BVAHOU,Hsing Management - HRA,HGM,Supplies and Services,E,Grants n Subscriptions,EK,16/04/2014,PAY00656469,HIII,Income Involvement Improvement,10098.58,Revenue,Brighton & Hove Social Welfare Educational Trust
Brighton & Hove City Council,http://statistics.data.gov.uk/id/local-authority/00ML,Planning and Development,BVAPLA,Economic Development,ECD,Supplies and Services,E,Grants n Subscriptions,EK,04/04/2014,PAY00653130,CMNY,Communities and Equalities,7000,Revenue,Brighton & Hove Speak Out
Brighton & Hove City Council,http://statistics.data.gov.uk/id/local-authority/00ML,Adult Social Care,BVASOC,S Svcs - Learning Disability,LDY,Indirect Employees,B,Training,BM,09/04/2014,PAY00654205,ORGD,Organisational Development,1000,Revenue,Brighton & Hove Speak Out
Brighton & Hove City Council,http://statistics.data.gov.uk/id/local-authority/00ML,Planning and Development,BVAPLA,Economic Development,ECD,Supplies and Services,E,Grants n Subscriptions,EK,09/04/2014,PAY00654205,CMNY,Communities and Equalities,2500,Revenue,Brighton & Hove Speak Out
Brighton & Hove City Council,http://statistics.data.gov.uk/id/local-authority/00ML,Housing Revenue Account,BVAHOU,Hsing Management - HRA,HGM,Transport Related,D,Public Transport,DD,02/04/2014,PAY00651956,HIII,Income Involvement Improvement,751.4,Revenue,Brighton & Hove Streamline Taxis Ltd
Brighton & Hove City Council,http://statistics.data.gov.uk/id/local-authority/00ML,Children`s & Education Serv,BVAEDU,Ed Ed Other LA Attrib Sch,ELA,Transport Related,D,Other Transport Costs,DG,04/04/2014,PAY00653266,OEDS,Other Education Support,8651.3,Revenue,Brighton & Hove Streamline Taxis Ltd
Brighton & Hove City Council,http://statistics.data.gov.uk/id/local-authority/00ML,Children`s & Education Serv,BVAEDU,Ed EY Central,EAE,Transport Related,D,Public Transport,DD,09/04/2014,PAY00654410,EYRS,Early Years,43.12,Revenue,Brighton & Hove Streamline Taxis Ltd
Brighton & Hove City Council,http://statistics.data.gov.uk/id/local-authority/00ML,Highways and Transportation,BVAHRT,Parking Services,PRK,Transport Related,D,Public Transport,DD,09/04/2014,PAY00654410,HIGH,Highways,1106.71,Revenue,Brighton & Hove Streamline Taxis Ltd
Brighton & Hove City Council,http://statistics.data.gov.uk/id/local-authority/00ML,Children`s & Education Serv,BVAEDU,Ed EY Central,EAE,Transport Related,D,Public Transport,DD,16/04/2014,PAY00656474,EYRS,Early Years,38.72,Revenue,Brighton & Hove Streamline Taxis Ltd
Brighton & Hove City Council,http://statistics.data.gov.uk/id/local-authority/00ML,Children`s & Education Serv,BVAEDU,Management Services (DEC),MGT,Transport Related,D,Public Transport,DD,16/04/2014,PAY00656474,SOCK,Social Work,200.2,Revenue,Brighton & Hove Streamline Taxis Ltd
Brighton & Hove City Council,http://statistics.data.gov.uk/id/local-authority/00ML,Cultural and Related Serv,BVACUL,Culture and Heritage,CHG,Transport Related,D,Public Transport,DD,16/04/2014,PAY00656474,VENU,Venues,291.61,Revenue,Brighton & Hove Streamline Taxis Ltd
Brighton & Hove City Council,http://statistics.data.gov.uk/id/local-authority/00ML,Housing Revenue Account,BVAHOU,Hsing Management - HRA,HGM,Transport Related,D,Public Transport,DD,23/04/2014,PAY00658102,HIII,Income Involvement Improvement,450.45,Revenue,Brighton & Hove Streamline Taxis Ltd
Brighton & Hove City Council,http://statistics.data.gov.uk/id/local-authority/00ML,Adult Social Care,BVASOC,Commission & Service Delivery,CMM,Transport Related,D,Public Transport,DD,30/04/2014,PAY00659455,COMM,Commissioning,30.14,Revenue,Brighton & Hove Streamline Taxis Ltd
Brighton & Hove City Council,http://statistics.data.gov.uk/id/local-authority/00ML,Central Support and Overheads,BVACEN,Support Services (SSC),PPT,Transport Related,D,Public Transport,DD,30/04/2014,PAY00659455,ICTA,ICT,3.74,Revenue,Brighton & Hove Streamline Taxis Ltd
Brighton & Hove City Council,http://statistics.data.gov.uk/id/local-authority/00ML,Central Support and Overheads,BVACEN,Support Services (SSC),PPT,Transport Related,D,Public Transport,DD,30/04/2014,PAY00659455,POLY,Policy,83.4,Revenue,Brighton & Hove Streamline Taxis Ltd
Brighton & Hove City Council,http://statistics.data.gov.uk/id/local-authority/00ML,Children`s & Education Serv,BVAEDU,Child Srvcs - Other Fam Supp,FFX,Transport Related,D,Public Transport,DD,30/04/2014,PAY00659455,SFSC,Stronger Families Stronger Com,12,Revenue,Brighton & Hove Streamline Taxis Ltd
Brighton & Hove City Council,http://statistics.data.gov.uk/id/local-authority/00ML,Children`s & Education Serv,BVAEDU,Ed Mgmt and Support Services,EMG,Transport Related,D,Public Transport,DD,30/04/2014,PAY00659455,SACH,Standards and Achievement,14.08,Revenue,Brighton & Hove Streamline Taxis Ltd
Brighton & Hove City Council,http://statistics.data.gov.uk/id/local-authority/00ML,Children`s & Education Serv,BVAEDU,Management Services (DEC),MGT,Transport Related,D,Public Transport,DD,30/04/2014,PAY00659455,OEDS,Other Education Support,25.46,Revenue,Brighton & Hove Streamline Taxis Ltd
Brighton & Hove City Council,http://statistics.data.gov.uk/id/local-authority/00ML,Housing General Fund,BVAHOG,Homelessness,HML,Transport Related,D,Public Transport,DD,30/04/2014,PAY00659455,HOSS,Housing Supports Services,6.6,Revenue,Brighton & Hove Streamline Taxis Ltd
Brighton & Hove City Council,http://statistics.data.gov.uk/id/local-authority/00ML,Housing General Fund,BVAHOG,Management Services (DEC),MGT,Transport Related,D,Public Transport,DD,30/04/2014,PAY00659455,HOHG,Head of Housing GF,31.46,Revenue,Brighton & Hove Streamline Taxis Ltd
Brighton & Hove City Council,http://statistics.data.gov.uk/id/local-authority/00ML,Housing Revenue Account,BVAHOU,Hsing Management - HRA,HGM,Transport Related,D,Public Transport,DD,30/04/2014,PAY00659455,HIII,Income Involvement Improvement,140.36,Revenue,Brighton & Hove Streamline Taxis Ltd
Brighton & Hove City Council,http://statistics.data.gov.uk/id/local-authority/00ML,Library Services,BVACUL,Library Service,LBR,Transport Related,D,Public Transport,DD,30/04/2014,PAY00659455,LIBS,Libraries,141.02,Revenue,Brighton & Hove Streamline Taxis Ltd
Brighton & Hove City Council,http://statistics.data.gov.uk/id/local-authority/00ML,Central Support and Overheads,BVACEN,Support Services (SSC),PPT,Supplies and Services,E,Services,EF,17/04/2014,PAY00657234,POLI,Policy and Initiatives,1550,Revenue,Brighton & Hove Unemployed Workers Centre
Brighton & Hove City Council,http://statistics.data.gov.uk/id/local-authority/00ML,Cultural and Related Serv,BVACUL,Culture and Heritage,CHG,Supplies and Services,E,Miscellaneous Expenses,EM,30/04/2014,PAY00659453,VENU,Venues,1045.4,Revenue,Brighton & Sussex Sign Co
Brighton & Hove City Council,http://statistics.data.gov.uk/id/local-authority/00ML,Adult Social Care,BVASOC,S Svcs - Older People Svcs,PPL,Third Party Payments,F,Other Establishments,FH,02/04/2014,PAY00651958,ASIT,Assessment and SIT,1104.99,Revenue,Brighton & Sussex University Hospitals NHS Trust
Brighton & Hove City Council,http://statistics.data.gov.uk/id/local-authority/00ML,Children`s & Education Serv,BVAEDU,Ed EY PVI,ENP,Supplies and Services,E,Grants n Subscriptions,EK,04/04/2014,PAY00653269,EYRS,Early Years,19165,Revenue,Brighton & Sussex University Hospitals NHS Trust
Brighton & Hove City Council,http://statistics.data.gov.uk/id/local-authority/00ML,Children`s & Education Serv,BVAEDU,Ed EY PVI,ENP,Supplies and Services,E,Grants n Subscriptions,EK,09/04/2014,PAY00654415,EYRS,Early Years,1000,Revenue,Brighton & Sussex University Hospitals NHS Trust
Brighton & Hove City Council,http://statistics.data.gov.uk/id/local-authority/00ML,Children`s & Education Serv,BVAEDU,Management Services (DEC),MGT,Supplies and Services,E,Miscellaneous Expenses,EM,11/04/2014,PAY00655451,SOCK,Social Work,50,Revenue,Brighton & Sussex University Hospitals NHS Trust
Brighton & Hove City Council,http://statistics.data.gov.uk/id/local-authority/00ML,Environment & Regulatory Serv,BVAERS,Court Services,CRT,Supplies and Services,E,Equip't Furniture n Materials,EA,11/04/2014,PAY00655451,LIFE,Life Events,7056.5,Revenue,Brighton & Sussex University Hospitals NHS Trust
Brighton & Hove City Council,http://statistics.data.gov.uk/id/local-authority/00ML,Public Health,BVAPHE,Public Health,PHE,Third Party Payments,F,Health Authorities,FC,16/04/2014,PAY00656476,PHCM,PH Commissioning,5760.95,Revenue,Brighton & Sussex University Hospitals NHS Trust
Brighton & Hove City Council,http://statistics.data.gov.uk/id/local-authority/00ML,Public Health,BVAPHE,Public Health,PHE,Third Party Payments,F,Health Authorities,FC,23/04/2014,PAY00658106,PHCM,PH Commissioning,652232.6,Revenue,Brighton & Sussex University Hospitals NHS Trust
Brighton & Hove City Council,http://statistics.data.gov.uk/id/local-authority/00ML,Public Health,BVAPHE,Public Health,PHE,Supplies and Services,E,Miscellaneous Expenses,EM,25/04/2014,PAY00658666,PHCM,PH Commissioning,1010,Revenue,Brighton & Sussex University Hospitals NHS Trust
Brighton & Hove City Council,http://statistics.data.gov.uk/id/local-authority/00ML,Adult Social Care,BVASOC,ASC Learning Disabilities,ALD,Third Party Payments,F,Other Establishments,FH,23/04/2014,PAY00658337,LDIS,Learning Disabilities,19784.04,Revenue,Brighton and Sussex Care Ltd
Brighton & Hove City Council,http://statistics.data.gov.uk/id/local-authority/00ML,Adult Social Care,BVASOC,ASC Learning Disabilities,ALD,Customer n Client Receipts,M,Fees n Charges,MB,23/04/2014,PAY00658337,LDIS,Learning Disabilities,-192,Revenue,Brighton and Sussex Care Ltd
Brighton & Hove City Council,http://statistics.data.gov.uk/id/local-authority/00ML,Adult Social Care,BVASOC,ASC Mental Health Support,MHP,Third Party Payments,F,Other Establishments,FH,23/04/2014,PAY00658337,MENH,Mental Health Support,2441.32,Revenue,Brighton and Sussex Care Ltd
Brighton & Hove City Council,http://statistics.data.gov.uk/id/local-authority/00ML,Adult Social Care,BVASOC,ASC Mental Health Support,MHP,Customer n Client Receipts,M,Fees n Charges,MB,23/04/2014,PAY00658337,MENH,Mental Health Support,-104,Revenue,Brighton and Sussex Care Ltd
Brighton & Hove City Council,http://statistics.data.gov.uk/id/local-authority/00ML,Non I&E,BVANON,Non-Council,NNC,Third Party Payments,F,Other Establishments,FH,11/04/2014,PAY00655440,DEVP,Development Planning,5736.58,Revenue,Brighton BID Limited
Brighton & Hove City Council,http://statistics.data.gov.uk/id/local-authority/00ML,Children`s & Education Serv,BVAEDU,Ed EY PVI,ENP,Supplies and Services,E,Grants n Subscriptions,EK,04/04/2014,PAY00653514,EYRS,Early Years,25444,Revenue,Brighton College Nursery & Pre-Prep School
Brighton & Hove City Council,http://statistics.data.gov.uk/id/local-authority/00ML,Children`s & Education Serv,BVAEDU,Ed EY PVI,ENP,Supplies and Services,E,Grants n Subscriptions,EK,04/04/2014,PAY00653127,EYRS,Early Years,11557,Revenue,Brighton Day Nursery
Brighton & Hove City Council,http://statistics.data.gov.uk/id/local-authority/00ML,Children`s & Education Serv,BVAEDU,Ed EY PVI,ENP,Supplies and Services,E,Grants n Subscriptions,EK,09/04/2014,PAY00654200,EYRS,Early Years,2260,Revenue,Brighton Day Nursery
Brighton & Hove City Council,http://statistics.data.gov.uk/id/local-authority/00ML,Children`s & Education Serv,BVAEDU,Ed EY PVI,ENP,Supplies and Services,E,Grants n Subscriptions,EK,11/04/2014,PAY00655321,EYRS,Early Years,518,Revenue,Brighton Day Nursery
Brighton & Hove City Council,http://statistics.data.gov.uk/id/local-authority/00ML,Cultural and Related Serv,BVACUL,Culture and Heritage,CHG,Third Party Payments,F,Other Establishments,FH,16/04/2014,PAY00656332,ARTS,Arts,474498,Revenue,Brighton Dome & Festival Ltd
Brighton & Hove City Council,http://statistics.data.gov.uk/id/local-authority/00ML,Cultural and Related Serv,BVACUL,Culture and Heritage,CHG,Third Party Payments,F,Other Establishments,FH,17/04/2014,PAY00657161,ARTS,Arts,827.16,Revenue,Brighton Dome & Festival Ltd
Brighton & Hove City Council,http://statistics.data.gov.uk/id/local-authority/00ML,Housing General Fund,BVAHOG,Homelessness,HML,Third Party Payments,F,Other Establishments,FH,02/04/2014,PAY00652407,TAAS,Temp Accom and Allocations,585.49,Revenue,Brighton Homes Ltd
Brighton & Hove City Council,http://statistics.data.gov.uk/id/local-authority/00ML,Adult Social Care,BVASOC,Hsing Welfare,HGW,Transport Related,D,Direct Transport Costs,DA,11/04/2014,PAY00655431,ASIT,Assessment and SIT,723.32,Revenue,Brighton Honda
Brighton & Hove City Council,http://statistics.data.gov.uk/id/local-authority/00ML,Adult Social Care,BVASOC,Hsing Welfare,HGW,Transport Related,D,Direct Transport Costs,DA,17/04/2014,PAY00657222,ASIT,Assessment and SIT,590.01,Revenue,Brighton Honda
Brighton & Hove City Council,http://statistics.data.gov.uk/id/local-authority/00ML,Housing General Fund,BVAHOG,Hsing Welfare,HGW,Transfer Payments,G,Supporting People,GF,04/04/2014,PAY00653271,SUPP,Supporting People,416.66,Revenue,Brighton Housing Trust
Brighton & Hove City Council,http://statistics.data.gov.uk/id/local-authority/00ML,Adult Social Care,BVASOC,ASC Physical Support,PHY,Third Party Payments,F,Other Establishments,FH,09/04/2014,PAY00654417,PHYS,Physical Support,-259.71,Revenue,Brighton Housing Trust
Brighton & Hove City Council,http://statistics.data.gov.uk/id/local-authority/00ML,Adult Social Care,BVASOC,ASC Physical Support,PHY,Customer n Client Receipts,M,Fees n Charges,MB,09/04/2014,PAY00654417,PHYS,Physical Support,104.14,Revenue,Brighton Housing Trust
Brighton & Hove City Council,http://statistics.data.gov.uk/id/local-authority/00ML,Housing General Fund,BVAHOG,Homelessness,HML,Third Party Payments,F,Other Establishments,FH,09/04/2014,PAY00654417,HLES,Homelessness,11206.88,Revenue,Brighton Housing Trust
Brighton & Hove City Council,http://statistics.data.gov.uk/id/local-authority/00ML,Planning and Development,BVAPLA,Economic Development,ECD,Supplies and Services,E,Grants n Subscriptions,EK,09/04/2014,PAY00654417,CMNY,Communities and Equalities,30000,Revenue,Brighton Housing Trust
Brighton & Hove City Council,http://statistics.data.gov.uk/id/local-authority/00ML,Adult Social Care,BVASOC,ASC Mental Health Support,MHP,Third Party Payments,F,Other Establishments,FH,11/04/2014,PAY00655452,MENH,Mental Health Support,15756,Revenue,Brighton Housing Trust
Brighton & Hove City Council,http://statistics.data.gov.uk/id/local-authority/00ML,Adult Social Care,BVASOC,ASC Mental Health Support,MHP,Customer n Client Receipts,M,Fees n Charges,MB,11/04/2014,PAY00655452,MENH,Mental Health Support,-1093.15,Revenue,Brighton Housing Trust
Brighton & Hove City Council,http://statistics.data.gov.uk/id/local-authority/00ML,Adult Social Care,BVASOC,Social Care Activities,ACM,Third Party Payments,F,Other Establishments,FH,16/04/2014,PAY00656478,SPFT,S75 SPFT,6102,Revenue,Brighton Housing Trust
Brighton & Hove City Council,http://statistics.data.gov.uk/id/local-authority/00ML,Adult Social Care,BVASOC,Info & Early Intervention,PRV,Third Party Payments,F,Other Establishments,FH,30/04/2014,PAY00659456,CCGC,CCG Commissioned Services,25312,Revenue,Brighton Housing Trust
Brighton & Hove City Council,http://statistics.data.gov.uk/id/local-authority/00ML,Housing General Fund,BVAHOG,Hsing Welfare,HGW,Transfer Payments,G,Supporting People,GF,30/04/2014,PAY00659456,SUPP,Supporting People,199140.34,Revenue,Brighton Housing Trust
Brighton & Hove City Council,http://statistics.data.gov.uk/id/local-authority/00ML,Planning and Development,BVAPLA,Economic Development,ECD,Supplies and Services,E,Grants n Subscriptions,EK,09/04/2014,PAY00654248,CMNY,Communities and Equalities,6250,Revenue,Brighton Oasis Project
Brighton & Hove City Council,http://statistics.data.gov.uk/id/local-authority/00ML,Children`s & Education Serv,BVAEDU,Child Srvcs - Other Fam Supp,FFX,Third Party Payments,F,Other Establishments,FH,25/04/2014,PAY00658638,SFSC,Stronger Families Stronger Com,2400,Revenue,Brighton Oasis Project
Brighton & Hove City Council,http://statistics.data.gov.uk/id/local-authority/00ML,Public Health,BVAPHE,Public Health,PHE,Third Party Payments,F,Voluntary Associations,FG,25/04/2014,PAY00658638,PHCM,PH Commissioning,8396,Revenue,Brighton Oasis Project
Brighton & Hove City Council,http://statistics.data.gov.uk/id/local-authority/00ML,Children`s & Education Serv,BVAEDU,Ed EY Central,EAE,Supplies and Services,E,Grants n Subscriptions,EK,30/04/2014,PAY00659345,EYRS,Early Years,500,Revenue,Brighton Oasis Project
Brighton & Hove City Council,http://statistics.data.gov.uk/id/local-authority/00ML,Central Support and Overheads,BVACEN,Support Services (SSC),PPT,Premises Related,C,Cleaning n Domestic Supps,CH,11/04/2014,PAY00655613,PROP,Property and Design,940,Revenue,Brighton Paper Round Ltd
Brighton & Hove City Council,http://statistics.data.gov.uk/id/local-authority/00ML,Cultural and Related Serv,BVACUL,Management Services (DEC),MGT,Premises Related,C,Repair Maint n Alterations,CA,17/04/2014,PAY00657405,CIPK,City Parks,1310,Revenue,Brighton Paper Round Ltd
Brighton & Hove City Council,http://statistics.data.gov.uk/id/local-authority/00ML,Public Health,BVAPHE,Public Health,PHE,Supplies and Services,E,Miscellaneous Expenses,EM,04/04/2014,PAY00653095,PHCM,PH Commissioning,1014.6,Revenue,Brighton Peace & Environment Centre
Brighton & Hove City Council,http://statistics.data.gov.uk/id/local-authority/00ML,Children`s & Education Serv,BVAEDU,Ed EY Central,EAE,Premises Related,C,Repair Maint n Alterations,CA,04/04/2014,PAY00653554,EYRS,Early Years,2555,Revenue,Brighton Permaculture Trust
Brighton & Hove City Council,http://statistics.data.gov.uk/id/local-authority/00ML,Children`s & Education Serv,BVAEDU,Ed Mgmt and Support Services,EMG,Premises Related,C,Rents Payable,CC,02/04/2014,PAY00651754,SACH,Standards and Achievement,174.5,Revenue,Brighton Quaker Meeting
Brighton & Hove City Council,http://statistics.data.gov.uk/id/local-authority/00ML,Children`s & Education Serv,BVAEDU,Ed Mgmt and Support Services,EMG,Supplies and Services,E,Miscellaneous Expenses,EM,02/04/2014,PAY00651754,SACH,Standards and Achievement,155,Revenue,Brighton Quaker Meeting
Brighton & Hove City Council,http://statistics.data.gov.uk/id/local-authority/00ML,Children`s & Education Serv,BVAEDU,Child Srvcs - Other Fam Supp,FFX,Premises Related,C,Rents Payable,CC,04/04/2014,PAY00653121,FAMP,Families\Prevention,544,Revenue,Brighton Quaker Meeting
Brighton & Hove City Council,http://statistics.data.gov.uk/id/local-authority/00ML,Children`s & Education Serv,BVAEDU,Ed EY PVI,ENP,Supplies and Services,E,Grants n Subscriptions,EK,04/04/2014,PAY00653670,EYRS,Early Years,15898,Revenue,Brighton Steiner School Ltd
Brighton & Hove City Council,http://statistics.data.gov.uk/id/local-authority/00ML,Children`s & Education Serv,BVAEDU,Ed Special Ed,EKE,Third Party Payments,F,Other Agencies,FL,30/04/2014,PAY00659720,SENS,Special Educational Needs,6184,Revenue,Brighton Steiner School Ltd
Brighton & Hove City Council,http://statistics.data.gov.uk/id/local-authority/00ML,Cultural and Related Serv,BVACUL,Recreation and Sport,REC,Third Party Payments,F,Independent Units of Council,FA,16/04/2014,PAY00656888,SFAC,Sports Facilities,822.5,Revenue,Brighton Swimming Centre Ltd
Brighton & Hove City Council,http://statistics.data.gov.uk/id/local-authority/00ML,Planning and Development,BVAPLA,Economic Development,ECD,Supplies and Services,E,Services,EF,16/04/2014,PAY00656982,ECOD,Economic Development,5000,Revenue,Brighton Think Big
Brighton & Hove City Council,http://statistics.data.gov.uk/id/local-authority/00ML,Adult Social Care,BVASOC,Assistive Equipment & Tech,AET,Supplies and Services,E,Equip't Furniture n Materials,EA,17/04/2014,PAY00657240,SSCT,S75 SCT,356.09,Revenue,Brighton Tools & Fixings Ltd
Brighton & Hove City Council,http://statistics.data.gov.uk/id/local-authority/00ML,Cultural and Related Serv,BVACUL,Culture and Heritage,CHG,Premises Related,C,Repair Maint n Alterations,CA,23/04/2014,PAY00658107,VENU,Venues,120.54,Revenue,Brighton Tools & Fixings Ltd
Brighton & Hove City Council,http://statistics.data.gov.uk/id/local-authority/00ML,Environment & Regulatory Serv,BVAERS,Street Cleansing,CLE,Supplies and Services,E,Equip't Furniture n Materials,EA,23/04/2014,PAY00658107,CICL,City Clean,167.37,Revenue,Brighton Tools & Fixings Ltd
Brighton & Hove City Council,http://statistics.data.gov.uk/id/local-authority/00ML,Cultural and Related Serv,BVACUL,Culture and Heritage,CHG,Premises Related,C,Repair Maint n Alterations,CA,25/04/2014,PAY00658668,VENU,Venues,557.92,Revenue,Brighton Tools & Fixings Ltd
Brighton & Hove City Council,http://statistics.data.gov.uk/id/local-authority/00ML,Cultural and Related Serv,BVACUL,Open Spaces,PEN,Premises Related,C,Repair Maint n Alterations,CA,17/04/2014,PAY00657122,CIPK,City Parks,3372,Revenue,Brighton Tree Specialists Ltd
Brighton & Hove City Council,http://statistics.data.gov.uk/id/local-authority/00ML,Library Services,BVACUL,Library Service,LBR,Premises Related,C,Repair Maint n Alterations,CA,17/04/2014,PAY00657122,LIBS,Libraries,540,Revenue,Brighton Tree Specialists Ltd
Brighton & Hove City Council,http://statistics.data.gov.uk/id/local-authority/00ML,Public Health,BVAPHE,Public Health,PHE,Supplies and Services,E,Miscellaneous Expenses,EM,09/04/2014,PAY00654418,PHCM,PH Commissioning,2600,Revenue,Brighton Unemployed Ctr Families Project Playroom
Brighton & Hove City Council,http://statistics.data.gov.uk/id/local-authority/00ML,Central Support and Overheads,BVACEN,Support Services (SSC),PPT,Supplies and Services,E,Services,EF,04/04/2014,PAY00653144,LEGS,Legal Services,268,Revenue,Brighton Unitarian Church
Brighton & Hove City Council,http://statistics.data.gov.uk/id/local-authority/00ML,Adult Social Care,BVASOC,S Svcs - Learning Disability,LDY,Third Party Payments,F,Other Establishments,FH,02/04/2014,PAY00652812,CCLD,Com Care Learning Disabilities,2556.4,Revenue,Brighton Vision
Brighton & Hove City Council,http://statistics.data.gov.uk/id/local-authority/00ML,Adult Social Care,BVASOC,S Svcs - Learning Disability,LDY,Customer n Client Receipts,M,Fees n Charges,MB,02/04/2014,PAY00652812,CCLD,Com Care Learning Disabilities,-272,Revenue,Brighton Vision
Brighton & Hove City Council,http://statistics.data.gov.uk/id/local-authority/00ML,Adult Social Care,BVASOC,ASC Learning Disabilities,ALD,Third Party Payments,F,Other Establishments,FH,09/04/2014,PAY00655046,LDIS,Learning Disabilities,1960,Revenue,Brighton Vision
Brighton & Hove City Council,http://statistics.data.gov.uk/id/local-authority/00ML,Adult Social Care,BVASOC,ASC Learning Disabilities,ALD,Customer n Client Receipts,M,Fees n Charges,MB,09/04/2014,PAY00655046,LDIS,Learning Disabilities,-296,Revenue,Brighton Vision
Brighton & Hove City Council,http://statistics.data.gov.uk/id/local-authority/00ML,Adult Social Care,BVASOC,ASC Learning Disabilities,ALD,Third Party Payments,F,Other Establishments,FH,23/04/2014,PAY00658456,LDIS,Learning Disabilities,2556.4,Revenue,Brighton Vision
Brighton & Hove City Council,http://statistics.data.gov.uk/id/local-authority/00ML,Adult Social Care,BVASOC,ASC Learning Disabilities,ALD,Customer n Client Receipts,M,Fees n Charges,MB,23/04/2014,PAY00658456,LDIS,Learning Disabilities,-272,Revenue,Brighton Vision
Brighton & Hove City Council,http://statistics.data.gov.uk/id/local-authority/00ML,Children`s & Education Serv,BVAEDU,Ed EY Central,EAE,Third Party Payments,F,Other Establishments,FH,02/04/2014,PAY00651957,EYRS,Early Years,1500,Revenue,Brighton Women`s Centre Ltd/BWC Toybox
Brighton & Hove City Council,http://statistics.data.gov.uk/id/local-authority/00ML,Planning and Development,BVAPLA,Community Development,CDV,Supplies and Services,E,Grants n Subscriptions,EK,02/04/2014,PAY00651957,CMNY,Communities and Equalities,4000,Revenue,Brighton Women`s Centre Ltd/BWC Toybox
Brighton & Hove City Council,http://statistics.data.gov.uk/id/local-authority/00ML,Children`s & Education Serv,BVAEDU,Ed EY PVI,ENP,Supplies and Services,E,Grants n Subscriptions,EK,04/04/2014,PAY00653267,EYRS,Early Years,1392,Revenue,Brighton Women`s Centre Ltd/BWC Toybox
Brighton & Hove City Council,http://statistics.data.gov.uk/id/local-authority/00ML,Planning and Development,BVAPLA,Economic Development,ECD,Supplies and Services,E,Grants n Subscriptions,EK,09/04/2014,PAY00654411,CMNY,Communities and Equalities,3000,Revenue,Brighton Women`s Centre Ltd/BWC Toybox
Brighton & Hove City Council,http://statistics.data.gov.uk/id/local-authority/00ML,Housing General Fund,BVAHOG,Hsing Welfare,HGW,Transfer Payments,G,Supporting People,GF,30/04/2014,PAY00659287,SUPP,Supporting People,53105.34,Revenue,Brighton YMCA
Brighton & Hove City Council,http://statistics.data.gov.uk/id/local-authority/00ML,Children`s & Education Serv,BVAEDU,Ed EY Central,EAE,Third Party Payments,F,Other Establishments,FH,02/04/2014,PAY00651801,EYRS,Early Years,827.12,Revenue,"Brighton, Hove & District Early Childhood Project"
Brighton & Hove City Council,http://statistics.data.gov.uk/id/local-authority/00ML,Children`s & Education Serv,BVAEDU,Ed EY Central,EAE,Third Party Payments,F,Other Establishments,FH,04/04/2014,PAY00653151,EYRS,Early Years,16009.46,Revenue,"Brighton, Hove & District Early Childhood Project"
Brighton & Hove City Council,http://statistics.data.gov.uk/id/local-authority/00ML,Planning and Development,BVAPLA,Economic Development,ECD,Supplies and Services,E,Grants n Subscriptions,EK,09/04/2014,PAY00654239,CMNY,Communities and Equalities,2000,Revenue,"Brighton, Hove & District Early Childhood Project"
Brighton & Hove City Council,http://statistics.data.gov.uk/id/local-authority/00ML,Children`s & Education Serv,BVAEDU,Child Srvcs - Other Fam Supp,FFX,Transfer Payments,G,Other Transfer Payments,GD,02/04/2014,PAY00652823,FAMP,Families\Prevention,466.43,Revenue,Brightsaurus Nursery
Brighton & Hove City Council,http://statistics.data.gov.uk/id/local-authority/00ML,Children`s & Education Serv,BVAEDU,Ed EY PVI,ENP,Supplies and Services,E,Grants n Subscriptions,EK,04/04/2014,PAY00653932,EYRS,Early Years,13572,Revenue,Brightsaurus Nursery
Brighton & Hove City Council,http://statistics.data.gov.uk/id/local-authority/00ML,Children`s & Education Serv,BVAEDU,Ed EY PVI,ENP,Supplies and Services,E,Grants n Subscriptions,EK,09/04/2014,PAY00655053,EYRS,Early Years,753,Revenue,Brightsaurus Nursery
Brighton & Hove City Council,http://statistics.data.gov.uk/id/local-authority/00ML,Central Support and Overheads,BVACEN,Support Services (SSC),PPT,Indirect Employees,B,Training,BM,09/04/2014,PAY00654667,ORGD,Organisational Development,39162,Revenue,Brightstone Consulting Ltd
Brighton & Hove City Council,http://statistics.data.gov.uk/id/local-authority/00ML,Adult Social Care,BVASOC,S Svcs Other Adult Services,ADT,Indirect Employees,B,Training,BM,16/04/2014,PAY00656668,ORGD,Organisational Development,11910,Revenue,Brightstone Consulting Ltd
Brighton & Hove City Council,http://statistics.data.gov.uk/id/local-authority/00ML,Cultural and Related Serv,BVACUL,Tourism,TRM,Supplies and Services,E,Grants n Subscriptions,EK,30/04/2014,PAY00659255,TOMA,Tourism and Marketing,550,Revenue,British Destinations
Brighton & Hove City Council,http://statistics.data.gov.uk/id/local-authority/00ML,Housing Revenue Account,BVAHOU,Hsing Management - HRA,HGM,Premises Related,C,Repair Maint n Alterations,CA,02/04/2014,PAY00651919,HPAI,Property & Investment,1277.58,Revenue,British Gas Social Housing Ltd t/a PH Jones
Brighton & Hove City Council,http://statistics.data.gov.uk/id/local-authority/00ML,Non I&E,BVANON,Cap - Housing Services - HRA,4HR,New Construction n Conversion,PB,New Construction n Conversion,PBL5,02/04/2014,PAY00651919,HPAI,Property & Investment,84996.93,Capital,British Gas Social Housing Ltd t/a PH Jones
Brighton & Hove City Council,http://statistics.data.gov.uk/id/local-authority/00ML,Housing Revenue Account,BVAHOU,Hsing Management - HRA,HGM,Premises Related,C,Repair Maint n Alterations,CA,16/04/2014,PAY00656439,HPAI,Property & Investment,39186.01,Revenue,British Gas Social Housing Ltd t/a PH Jones
Brighton & Hove City Council,http://statistics.data.gov.uk/id/local-authority/00ML,Non I&E,BVANON,Cap - Housing Services - HRA,4HR,New Construction n Conversion,PB,New Construction n Conversion,PBL5,23/04/2014,PAY00658073,HPAI,Property & Investment,4735.13,Capital,British Gas Social Housing Ltd t/a PH Jones
Brighton & Hove City Council,http://statistics.data.gov.uk/id/local-authority/00ML,Housing General Fund,BVAHOG,Homelessness,HML,Premises Related,C,Repair Maint n Alterations,CA,25/04/2014,PAY00658655,SSHS,Seaside Homes (BHSCH),2233.34,Revenue,British Gas Social Housing Ltd t/a PH Jones
Brighton & Hove City Council,http://statistics.data.gov.uk/id/local-authority/00ML,Housing Revenue Account,BVAHOU,Hsing Management - HRA,HGM,Premises Related,C,Repair Maint n Alterations,CA,25/04/2014,PAY00658655,HPAI,Property & Investment,42927.32,Revenue,British Gas Social Housing Ltd t/a PH Jones
